Workbook

Sheet Lotto3_R7425-1
B1: TOTALE PRODOTTI CONVENZIONE | C1: =SUM(G13:G194)*$C$10 -> 0 | F1: =IF(I1+I2=0,(C1+C2),"ERRORE VERIFICARE LA CONFIGURAZIONE") -> 0 | I1: =IF(A47="",0,1) -> 0
B2: TOTALE ARTICOLI 20% | C2: =SUM(H13:H194)*$C$10 -> 0 | I2: =IF(A89="",0,1) -> 0
B3: Quantità Server | C3: 0 | F3: =Riepilogo!T6 -> ver. 3.3
A5: POWEREDGE R7425
B10: Quantità: | C10: =C3 -> 0
B12: Modello Server
B13: PowerEdge R7425 Server | C13: 1 | D13: [210-APFK] | F13: TS2L3-SRV | G13: 2087
B15: Configurazione dello chassis
B16: Chassis with up to 24 x 2.5" SAS/SATA Hard Drives for 1&2CPU Configuration, Risers 1, 3, 5, 7 | C16: 1 | D16: [321-BDGE]
B18: Trusted Platform Module
B19: No Trusted Platform Module | C19: 1 | D19: [461-AADZ]
B21: Processore
B22: AMD EPYC™ 7301 2.2GHz/2.7GHz, 16C/32T, 64M Cache (155W/170W) DDR4-2400/2666 | C22: 1 | D22: [338-BNBZ]
B24: Processore aggiuntivo
B25: No Additional Processor | C25: =VLOOKUP($B$25,TS2L3CPU,2,FALSE) -> 0 | D25: =VLOOKUP($B$25,TS2L3CPU,3,FALSE) -> [374-BBBX] | E25: =VLOOKUP($B$25,TS2L3CPU,4,FALSE) ->  | F25: =VLOOKUP($B$25,TS2L3CPU,5,FALSE) ->  | G25: =VLOOKUP($B$25,TS2L3CPU,6,FALSE) -> 0 | H25: =VLOOKUP($B$25,TS2L3CPU,7,FALSE) -> 
B27: Configurazione Termica del Processore
B28: =VLOOKUP($B$25,TS2L3CPU,8,FALSE) -> Standard Heatsinks, below 180W CPU | C28: =VLOOKUP($B$25,TS2L3CPU,9,FALSE) -> 1 | D28: =VLOOKUP($B$25,TS2L3CPU,10,FALSE) -> [412-AALN] | E28: =VLOOKUP($B$25,TS2L3CPU,11,FALSE) -> 412-AALJ
B29: =VLOOKUP($B$25,TS2L3CPU,12,FALSE) -> Blank for 1 CPU Configuration | C29: =VLOOKUP($B$25,TS2L3CPU,13,FALSE) -> 1 | D29: =VLOOKUP($B$25,TS2L3CPU,14,FALSE) -> [379-BCWU]
B32: Memoria Totale in GB | C32: 64 (DIMM 32GB)
B34: Tipo di configurazione memoria
B35: Performance Optimized | C35: 1 | D35: [370-AAIP]
B37: Tipo e velocità della memoria DIMM
B38: =IF($C$25=0,VLOOKUP($C$32,TS2L3MEM1CPU,9,FALSE),VLOOKUP($C$32,TS2L3MEM2CPU,9,FALSE)) -> 2666MT/s RDIMMs | C38: =IF($C$25=0,VLOOKUP($C$32,TS2L3MEM1CPU,10,FALSE),VLOOKUP($C$32,TS2L3MEM2CPU,10,FALSE)) -> 1 | D38: =IF($C$25=0,VLOOKUP($C$32,TS2L3MEM1CPU,11,FALSE),VLOOKUP($C$32,TS2L3MEM2CPU,11,FALSE)) -> [370-ADNU]
B40: Capacità di memoria
B41: =IF($C$25=0,VLOOKUP($C$32,TS2L3MEM1CPU,2,FALSE),VLOOKUP($C$32,TS2L3MEM2CPU,2,FALSE)) -> 32GB RDIMM, 2666MT/s, Dual Rank | C41: =IF($C$25=0,VLOOKUP($C$32,TS2L3MEM1CPU,3,FALSE),VLOOKUP($C$32,TS2L3MEM2CPU,3,FALSE)) -> 2 | D41: =IF($C$25=0,VLOOKUP($C$32,TS2L3MEM1CPU,4,FALSE),VLOOKUP($C$32,TS2L3MEM2CPU,4,FALSE)) -> [370-ADNF] | E41: =IF($C$25=0,VLOOKUP($C$32,TS2L3MEM1CPU,5,FALSE),VLOOKUP($C$32,TS2L3MEM2CPU,5,FALSE)) -> A9781929 | F41: =IF($C$25=0,VLOOKUP($C$32,TS2L3MEM1CPU,6,FALSE),VLOOKUP($C$32,TS2L3MEM2CPU,6,FALSE)) ->  | G41: =IF($C$25=0,VLOOKUP($C$32,TS2L3MEM1CPU,7,FALSE),VLOOKUP($C$32,TS2L3MEM2CPU,7,FALSE)) -> 0
B43: Sistema operativo preinstallato
B44: None | C44: =VLOOKUP($B$44,TS2L3OS,2,FALSE) ->  | D44: =VLOOKUP($B$44,TS2L3OS,3,FALSE) -> [619-ABVR] | E44: =VLOOKUP($B$44,TS2L3OS,4,FALSE) ->  | F44: =VLOOKUP($B$44,TS2L3OS,5,FALSE) ->  | G44: =VLOOKUP($B$44,TS2L3OS,6,FALSE) -> 0 | H44: =VLOOKUP($B$44,TS2L3OS,7,FALSE) -> 0 | I44: =IF(E44="",1,0) -> 1
B45: =IF($C$25=1,(VLOOKUP($B$44,TS2L3OS,8,FALSE)),"") ->  | C45: =IF($C$25=1,(VLOOKUP($B$44,TS2L3OS,9,FALSE)),"") ->  | D45: =IF($C$25=1,(VLOOKUP($B$44,TS2L3OS,10,FALSE)),"") ->  | E45: =IF($C$25=1,(VLOOKUP($B$44,TS2L3OS,11,FALSE)),"") ->  | F45: =IF($C$25=1,(VLOOKUP($B$44,TS2L3OS,12,FALSE)),"") ->  | G45: =IF($C$25=1,(VLOOKUP($B$44,TS2L3OS,13,FALSE)),"") ->  | H45: =IF($C$25=1,(VLOOKUP($B$44,TS2L3OS,14,FALSE)),0) -> 0
A47: =IF((I44*I48)=0,"","ERRORE: La selezione di licenze CAL senza il Sistema Operativo Microsoft Windows non è consentita.") ->  | B47: Client Access Licenses
B48: =IF($E$44>0,'Regole di configurazione'!A95,"") -> 1 Windows Server 2019 Device CALs (Standard or Datacenter),CUS | C48: 0 | D48: =IF($E$44>0,'Regole di configurazione'!C95,"") -> 0 | E48: =IF($E$44>0,'Regole di configurazione'!D95,"") -> 623-BBBX | F48: =IF($E$44>0,'Regole di configurazione'!E95,"") -> TS2L3-CALDEV | G48: =IF($E$44>0,'Regole di configurazione'!F95,0)*C48 -> 0 | H48: =IF($E$44>0,'Regole di configurazione'!G95,"") -> 0 | I48: =C48+C50 -> 0
B50: =IF($E$44>0,'Regole di configurazione'!A96,"") -> 1 Windows Server 2019 User CALs (Standard or Datacenter),CUS | C50: 0 | D50: =IF($E$44>0,'Regole di configurazione'!C96,"") -> 0 | E50: =IF($E$44>0,'Regole di configurazione'!D96,"") -> 623-BBCC | F50: =IF($E$44>0,'Regole di configurazione'!E96,"") -> TS2L3-CALUSER | G50: =IF($E$44>0,'Regole di configurazione'!F96,0)*C50 -> 0 | H50: =IF($E$44>0,'Regole di configurazione'!G96,"") -> 0
B52: Sistema operativo VMware
B53: Vmware vSphere Essentials Plus Kit
B54: None | C54: =VLOOKUP($B$54,TS2L3VMWARE1,2,FALSE) -> 1 | D54: =VLOOKUP($B$54,TS2L3VMWARE1,3,FALSE) ->  | E54: =VLOOKUP($B$54,TS2L3VMWARE1,4,FALSE) ->  | F54: =VLOOKUP($B$54,TS2L3VMWARE1,5,FALSE) ->  | G54: =VLOOKUP($B$54,TS2L3VMWARE1,6,FALSE) -> 0 | H54: =VLOOKUP($B$54,TS2L3VMWARE1,7,FALSE)*C54 -> 0
B55: VMware vCenter Server Standard
B56: None | C56: =VLOOKUP($B$56,TS2L3VMWARE2,2,FALSE) -> 1 | D56: =VLOOKUP($B$56,TS2L3VMWARE2,3,FALSE) ->  | E56: =VLOOKUP($B$56,TS2L3VMWARE2,4,FALSE) ->  | F56: =VLOOKUP($B$56,TS2L3VMWARE2,5,FALSE) ->  | G56: =VLOOKUP($B$56,TS2L3VMWARE2,6,FALSE) -> 0 | H56: =VLOOKUP($B$56,TS2L3VMWARE2,7,FALSE)*C56 -> 0
B57: Vmware vSphere Standard/Enterprise
B58: None | C58: =(VLOOKUP($B$58,TS2L3VMWARE3,2,FALSE))+C25 -> 0 | D58: =VLOOKUP($B$58,TS2L3VMWARE3,3,FALSE) ->  | E58: =VLOOKUP($B$58,TS2L3VMWARE3,4,FALSE) ->  | F58: =VLOOKUP($B$58,TS2L3VMWARE3,5,FALSE) ->  | G58: =VLOOKUP($B$58,TS2L3VMWARE3,6,FALSE) -> 0 | H58: =VLOOKUP($B$58,TS2L3VMWARE3,7,FALSE)*C58 -> 0
B59: VMware vSAN
B60: None | C60: =(VLOOKUP($B$60,TS2L3VMWARE4,2,FALSE))+C25 -> 0 | D60: =VLOOKUP($B$60,TS2L3VMWARE4,3,FALSE) ->  | E60: =VLOOKUP($B$60,TS2L3VMWARE4,4,FALSE) ->  | F60: =VLOOKUP($B$60,TS2L3VMWARE4,5,FALSE) ->  | G60: =VLOOKUP($B$60,TS2L3VMWARE4,6,FALSE) -> 0 | H60: =VLOOKUP($B$60,TS2L3VMWARE4,7,FALSE)*C60 -> 0
B62: Controller Dischi
B63: =B122 -> PERC H730P RAID Controller, 2Gb NV Cache, Adapter, Full Height | C63: =C122 -> 1 | D63: =D122 -> [405-AAMR] | E63: =E122 -> 405-AAMY
B65: Dischi rigidi (numero massimo totale 24)
A66: SAS 10K | B66: 600GB 10K RPM SAS 12Gbps 512n 2.5in Hot-plug Hard Drive | C66: 2 | D66: [400-ASGS] | E66: 400-AUNQ | F66: =IF(C66<=2,"","TS2L3-10K600") ->  | G66: =IF(C66<=2,0,(C66-2)*'Regole di configurazione'!F13) -> 0
B68: 1.2TB 10K RPM SAS 12Gbps 512n 2.5in Hot-plug Hard Drive | C68: 0 | D68: [400-ASHI] | E68: 400-ATJL | F68: =IF(C68=0,"","TS2L3-10K1200") ->  | G68: =C68*'Regole di configurazione'!F14 -> 0
B70: 1.8TB 10K RPM SAS 12Gbps 512e 2.5in Hot-plug Hard Drive | C70: 0 | D70: [400-ARXC] | E70: 400-ATJR | F70: =IF(C70=0,"","TS2L3-10K1800") ->  | G70: =C70*'Regole di configurazione'!F15 -> 0
B72: 2.4TB 10K RPM SAS 12Gbps 512e 2.5in Hot-plug Hard Drive NO VMWARE A20 | C72: 0 | E72: 400-AVBX | F72: =IF(C72=0,"","TS2L3-10K2400") ->  | H72: =C72*'Regole di configurazione'!G43 -> 0
A73: SSD
B74: SSD 480GB SAS MU 12Gbps 2.5in Hot-Plug A20 | C74: 0 | E74: 400-BCOD | F74: =IF(C74=0,"","TS2L3-SSDM480") ->  | H74: =C74*'Regole di configurazione'!G44 -> 0
B76: SSD 400GB SAS WI 12Gbps 2.5in Hot-plug Drive, 10 DWPD A20 | C76: 0 | E76: 400-ATGH | F76: =IF(C76=0,"","TS2L3-SSDW400") ->  | H76: =C76*'Regole di configurazione'!G45 -> 0
B78: SSD 1600GB SAS WI 12Gb 2.5in Hot-plug Drive, 10 DWPD A20 | C78: 0 | F78: =IF(C78=0,"","TS2L3-SSDW1600") ->  | H78: =C78*'Regole di configurazione'!G46 -> 0
B80: 960GB SSD SAS Read Intensive 12Gbps 512e 2.5in Hot-plug Drive, PM5-R, 1 DWPD, 1752 TBW | C80: 0 | D80: [400-BBPL] | E80: 400-ATLL | F80: =IF(C80=0,"","TS2L3-SSDR960") ->  | G80: =C80*'Regole di configurazione'!F16 -> 0
F81: =IF(C81=0,"","TS2L3-SSDR960") -> 
B82: SSD 960GB SAS Mixed Use 12Gbps 2.5in Hot-plug Drive A20 | C82: 0 | E82: 400-BCNN | H82: =C82*'Regole di configurazione'!G47 -> 0
B84: 1.92TB SSD SAS Read Intensive 12Gbps 512e 2.5in Hot-plug Drive, PM1633a | C84: 0 | D84: [400-ASFX] | E84: 400-ATND | F84: =IF(C84=0,"","TS2L3-SSDR1920") ->  | G84: =C84*'Regole di configurazione'!F17 -> 0
B86: DISCHI TOTALI | C86: =SUM(C66:C85) -> 2
B88: NOTE sulla configurazione (CAMPO OBBLIGATORIO)
A89: =IF(C86<=24,"","ERRORE: Totale n° di dischi superiore al consentito") ->  | B89: Specificare la configurazione RAID per l'installazione del Sistema Operativo, se richiesto. e/o inserire eventuali note. | E89: Specificare la configurazione RAID per l'installazione del Sistema Operativo, se richiesto. e/o inserire eventuali note. | F89: =IF(B89=E89,"ERRORE: Compilare il campo NOTE","") -> ERRORE: Compilare il campo NOTE
B91: Ventole
B92: 6 Standard Fans | C92: 1 | D92: [384-BBSU]
B94: Alimentatore
B95: Dual, Hot-plug, Redundant Power Supply (1+1), 1100W | C95: 1 | D95: [450-ADWM]
B97: Cavi di alimentazione
B98: Rack Power Cord 2M (C13/C14 10A) | C98: 2 | D98: [450-AADY]
B100: PCIe Riser
B101: =VLOOKUP($B$25,TS2L3CPU,15,FALSE) -> Riser Config 1, 2 x8, 1 x16 slots | C101: =VLOOKUP($B$25,TS2L3CPU,16,FALSE) -> 1 | D101: =VLOOKUP($B$25,TS2L3CPU,17,FALSE) -> [330-BBIY] | E101: =VLOOKUP($B$25,TS2L3CPU,18,FALSE) -> 
B103: Modulo Doppia SD - Internal Dual SD Module (IDSDM)
B104: None | C104: =VLOOKUP(B104,TS2L3IDSDM,2,FALSE) -> 0 | D104: =VLOOKUP(B104,TS2L3IDSDM,3,FALSE) -> 0 | E104: =VLOOKUP(B104,TS2L3IDSDM,4,FALSE) -> 0 | F104: =VLOOKUP(B104,TS2L3IDSDM,5,FALSE) ->  | G104: =VLOOKUP(B104,TS2L3IDSDM,6,FALSE) -> 0 | H104: =VLOOKUP(B104,TS2L3IDSDM,7,FALSE) -> 0
B106: Embedded Systems Management
B107: iDRAC9,Enterprise | C107: 1 | D107: [385-BBKT]
B110: None
B112: Network Daughter Card
B113: Broadcom 5720 QP 1Gb Network Daughter Card | C113: 1 | D113: [540-BBBW]
B115: Additional Card for PCIe Slot 1 (Full height) (CPU 1)
B116: None | C116: =VLOOKUP(B116,TS2L3PCI1,2,FALSE) ->  | D116: =VLOOKUP(B116,TS2L3PCI1,3,FALSE) ->  | E116: =VLOOKUP(B116,TS2L3PCI1,4,FALSE) ->  | F116: =VLOOKUP(B116,TS2L3PCI1,5,FALSE) ->  | G116: =VLOOKUP(B116,TS2L3PCI1,6,FALSE) -> 0 | H116: =VLOOKUP(B116,TS2L3PCI1,7,FALSE) -> 0
B118: Additional Card for PCIe Slot 2 (Full height) (CPU 1)
B119: None | C119: =VLOOKUP(B119,TS2L3PCI2,2,FALSE) ->  | D119: =VLOOKUP(B119,TS2L3PCI2,3,FALSE) ->  | E119: =VLOOKUP(B119,TS2L3PCI2,4,FALSE) ->  | F119: =VLOOKUP(B119,TS2L3PCI2,5,FALSE) ->  | G119: =VLOOKUP(B119,TS2L3PCI2,6,FALSE) -> 0 | H119: =VLOOKUP(B119,TS2L3PCI2,7,FALSE) -> 0
B121: Additional Card for PCIe Slot 3 (Full height) (CPU 1)
B122: PERC H730P RAID Controller, 2Gb NV Cache, Adapter, Full Height | C122: =VLOOKUP(B122,TS2L3PCI3,2,FALSE) -> 1 | D122: =VLOOKUP(B122,TS2L3PCI3,3,FALSE) -> [405-AAMR] | E122: =VLOOKUP(B122,TS2L3PCI3,4,FALSE) -> 405-AAMY | F122: =VLOOKUP(B122,TS2L3PCI3,5,FALSE) ->  | G122: =VLOOKUP(B122,TS2L3PCI3,6,FALSE) -> 0 | H122: =VLOOKUP(B122,TS2L3PCI3,7,FALSE) -> 0
B124: Additional Card for PCIe Slot 4 (Full height) (CPU 2)
B125: None | C125: =IF(B125=TS2L3ASP,"",VLOOKUP(B125,TS2L3PCI4,2,FALSE)) ->  | D125: =IF(B125=TS2L3ASP,"",VLOOKUP(B125,TS2L3PCI4,3,FALSE)) ->  | E125: =IF(B125=TS2L3ASP,"",VLOOKUP(B125,TS2L3PCI4,4,FALSE)) ->  | F125: =IF(B125=TS2L3ASP,"",VLOOKUP(B125,TS2L3PCI4,5,FALSE)) ->  | G125: =IF(B125=TS2L3ASP,0,VLOOKUP(B125,TS2L3PCI4,6,FALSE)) -> 0 | H125: =IF(B125=TS2L3ASP,0,VLOOKUP(B125,TS2L3PCI4,7,FALSE)) -> 0
B127: Additional Card for PCIe Slot 5 (Full height) (CPU 2)
B128: None
B130: Additional Card for PCIe Slot 6 (Low height) (CPU 2)
B131: None | C131: =IF(B131=TS2L3ASP,"",VLOOKUP(B131,TS2L3PCI6,2,FALSE)) ->  | D131: =IF(B131=TS2L3ASP,"",VLOOKUP(B131,TS2L3PCI6,3,FALSE)) ->  | E131: =IF(B131=TS2L3ASP,"",VLOOKUP(B131,TS2L3PCI6,4,FALSE)) ->  | F131: =IF(B131=TS2L3ASP,"",VLOOKUP(B131,TS2L3PCI6,5,FALSE)) ->  | G131: =IF(B131=TS2L3ASP,0,VLOOKUP(B131,TS2L3PCI6,6,FALSE)) -> 0 | H131: =IF(B131=TS2L3ASP,0,VLOOKUP(B131,TS2L3PCI6,7,FALSE)) -> 0
B133: Additional Card for PCIe Slot 7 (Full height) (CPU 2) (BOSS controller card Slot)
B134: None | C134: =IF(B134=TS2L3ASP,"",VLOOKUP(B134,TS2L3PCI7,2,FALSE)) ->  | D134: =IF(B134=TS2L3ASP,"",VLOOKUP(B134,TS2L3PCI7,3,FALSE)) ->  | E134: =IF(B134=TS2L3ASP,"",VLOOKUP(B134,TS2L3PCI7,4,FALSE)) ->  | F134: =IF(B134=TS2L3ASP,"",VLOOKUP(B134,TS2L3PCI7,5,FALSE)) ->  | G134: =IF(B134=TS2L3ASP,0,VLOOKUP(B134,TS2L3PCI7,6,FALSE)) -> 0 | H134: =IF(B134=TS2L3ASP,0,VLOOKUP(B134,TS2L3PCI7,7,FALSE)) -> 0
B136: Additional Card for PCIe Slot 8 (Full height) (CPU 2)
B137: None | C137: =IF(B137=TS2L3ASP,"",VLOOKUP(B137,TS2L3PCI8,2,FALSE)) ->  | D137: =IF(B137=TS2L3ASP,"",VLOOKUP(B137,TS2L3PCI8,3,FALSE)) ->  | E137: =IF(B137=TS2L3ASP,"",VLOOKUP(B137,TS2L3PCI8,4,FALSE)) ->  | F137: =IF(B137=TS2L3ASP,"",VLOOKUP(B137,TS2L3PCI8,5,FALSE)) ->  | G137: =IF(B137=TS2L3ASP,0,VLOOKUP(B137,TS2L3PCI8,6,FALSE)) -> 0 | H137: =IF(B137=TS2L3ASP,0,VLOOKUP(B137,TS2L3PCI8,7,FALSE)) -> 0
B139: Bezel
B140: No Bezel | C140: =VLOOKUP($B$140,TS2L3BEZEL,2,FALSE) -> 0 | D140: =VLOOKUP($B$140,TS2L3BEZEL,3,FALSE) -> [350-BBBW] | E140: =VLOOKUP($B$140,TS2L3BEZEL,4,FALSE) -> 0 | F140: =VLOOKUP($B$140,TS2L3BEZEL,5,FALSE) ->  | G140: =VLOOKUP($B$140,TS2L3BEZEL,6,FALSE) -> 0 | H140: =VLOOKUP($B$140,TS2L3BEZEL,7,FALSE) -> 0
B141: MOD,TRAY,LGG,R7425 | C141: 1 | D141: [350-BBMF]
B143: Quick Sync
B144: No Quick Sync | C144: 1 | D144: [350-BBJV]
B146: Rack Rails
B147: =VLOOKUP($B$140,TS2L3BEZEL,8,FALSE) -> ReadyRails™ Sliding Rails Without Cable Management Arm | C147: =VLOOKUP($B$140,TS2L3BEZEL,9,FALSE) -> 1 | D147: =VLOOKUP($B$140,TS2L3BEZEL,10,FALSE) -> [770-BBBQ] | E147: =VLOOKUP($B$140,TS2L3BEZEL,11,FALSE) -> 0
B149: Password
B150: iDRAC,Factory Generated Password | C150: 1 | D150: [379-BCSF]
B152: Group Manager
B153: iDRAC Group Manager, Enabled | C153: 1 | D153: [379-BCQV]
B155: Internal Optical Drive
B156: No Internal Optical Drive for 12/24 HD Chassis | C156: 1 | D156: [429-AAIQ]
B158: Dell Services: Deployment Services
B159: No Installation Service Selected (Contact Sales rep for more details) | C159: 1 | D159: [683-11870]
B161: Channel only - Support Extension
B162: Channel 39M Basic Warranty - Next Business Day | C162: 1 | D162: [723-41450]
B164: System Documentation
B165: No Systems Documentation, No OpenManage DVD Kit | C165: 1 | D165: [631-AACK]
B167: Shipping Material
B168: PowerEdge R7425 Shipping Material | C168: 1 | D168: [343-BBHK]
B170: Direct Attach Cable
B171: 5 x Dell Networking, Cable, SFP+ to SFP+, 10GbE, Copper Twinax DAC, 3 Meter A20 | C171: 0 | E171: 470-AAVJ | F171: =IF(C171=0,"","TS2L3-5XDAC10M3") ->  | H171: ='Regole di configurazione'!G49*C171 -> 0
B173: 5 x Dell Networking Cable, 100GbE QSFP28 to QSFP28,Passive Copper DAC, 2 Meter A20 | C173: 0 | E173: 470-ABQG | F173: =IF(C173=0,"","TS2L3-5XDAC100M2") ->  | H173: ='Regole di configurazione'!G50*C173 -> 0
B175: 5 x Dell Networking Cable,100GbE QSFP28 to QSFP28, Passive Copper DAC, 3 Meter A20 | C175: 0 | E175: 470-ABQE | F175: =IF(C175=0,"","TS2L3-5XDAC100M3") ->  | H175: ='Regole di configurazione'!G51*C175 -> 0
B177: Cavi rj45
B178: Cavo Rete UTP cat. 5e 3 metri | C178: 5 | E178: ROS1403/G | F178: =IF(C178=0,"","TS2L3-3MRJ45") -> TS2L3-3MRJ45 | H178: =2*C178 -> 10
B180: Estenzione di Garanzia
B181: None | C181: =VLOOKUP(B181,TS2L3WARRANTY,2,FALSE) ->  | D181: =VLOOKUP(B181,TS2L3WARRANTY,3,FALSE) ->  | E181: =VLOOKUP(B181,TS2L3WARRANTY,4,FALSE) ->  | F181: =VLOOKUP(B181,TS2L3WARRANTY,5,FALSE) ->  | G181: =VLOOKUP(B181,TS2L3WARRANTY,6,FALSE) -> 0
B183: Warranty Upgrades - Non-Std/Local POS
B184: CSTM CONSIP - 39M Onsite Labor Support for CRU for Servers with Basic Warranty | C184: 1 | D184: [681-24467]

Sheet Lotto3_R7425-2
B1: TOTALE PRODOTTI CONVENZIONE | C1: =SUM(G13:G194)*$C$10 -> 0 | F1: =IF(I1+I2=0,(C1+C2),"ERRORE VERIFICARE LA CONFIGURAZIONE") -> 0 | I1: =IF(A47="",0,1) -> 0
B2: TOTALE ARTICOLI 20% | C2: =SUM(H13:H194)*$C$10 -> 0 | I2: =IF(A89="",0,1) -> 0
B3: Quantità Server | F3: =Riepilogo!T6 -> ver. 3.3
A5: POWEREDGE R7425
B10: Quantità: | C10: =C3 -> 0
B12: Modello Server
B13: PowerEdge R7425 Server | C13: 1 | D13: [210-APFK] | F13: TS2L3-SRV | G13: 2087
B15: Configurazione dello chassis
B16: Chassis with up to 24 x 2.5" SAS/SATA Hard Drives for 1&2CPU Configuration, Risers 1, 3, 5, 7 | C16: 1 | D16: [321-BDGE]
B18: Trusted Platform Module
B19: No Trusted Platform Module | C19: 1 | D19: [461-AADZ]
B21: Processore
B22: AMD EPYC™ 7301 2.2GHz/2.7GHz, 16C/32T, 64M Cache (155W/170W) DDR4-2400/2666 | C22: 1 | D22: [338-BNBZ]
B24: Processore aggiuntivo
B25: No Additional Processor | C25: =VLOOKUP($B$25,TS2L3CPU,2,FALSE) -> 0 | D25: =VLOOKUP($B$25,TS2L3CPU,3,FALSE) -> [374-BBBX] | E25: =VLOOKUP($B$25,TS2L3CPU,4,FALSE) ->  | F25: =VLOOKUP($B$25,TS2L3CPU,5,FALSE) ->  | G25: =VLOOKUP($B$25,TS2L3CPU,6,FALSE) -> 0 | H25: =VLOOKUP($B$25,TS2L3CPU,7,FALSE) -> 
B27: Configurazione Termica del Processore
B28: =VLOOKUP($B$25,TS2L3CPU,8,FALSE) -> Standard Heatsinks, below 180W CPU | C28: =VLOOKUP($B$25,TS2L3CPU,9,FALSE) -> 1 | D28: =VLOOKUP($B$25,TS2L3CPU,10,FALSE) -> [412-AALN] | E28: =VLOOKUP($B$25,TS2L3CPU,11,FALSE) -> 412-AALJ
B29: =VLOOKUP($B$25,TS2L3CPU,12,FALSE) -> Blank for 1 CPU Configuration | C29: =VLOOKUP($B$25,TS2L3CPU,13,FALSE) -> 1 | D29: =VLOOKUP($B$25,TS2L3CPU,14,FALSE) -> [379-BCWU]
B32: Memoria Totale in GB | C32: 64 (DIMM 32GB)
B34: Tipo di configurazione memoria
B35: Performance Optimized | C35: 1 | D35: [370-AAIP]
B37: Tipo e velocità della memoria DIMM
B38: =IF($C$25=0,VLOOKUP($C$32,TS2L3MEM1CPU,9,FALSE),VLOOKUP($C$32,TS2L3MEM2CPU,9,FALSE)) -> 2666MT/s RDIMMs | C38: =IF($C$25=0,VLOOKUP($C$32,TS2L3MEM1CPU,10,FALSE),VLOOKUP($C$32,TS2L3MEM2CPU,10,FALSE)) -> 1 | D38: =IF($C$25=0,VLOOKUP($C$32,TS2L3MEM1CPU,11,FALSE),VLOOKUP($C$32,TS2L3MEM2CPU,11,FALSE)) -> [370-ADNU]
B40: Capacità di memoria
B41: =IF($C$25=0,VLOOKUP($C$32,TS2L3MEM1CPU,2,FALSE),VLOOKUP($C$32,TS2L3MEM2CPU,2,FALSE)) -> 32GB RDIMM, 2666MT/s, Dual Rank | C41: =IF($C$25=0,VLOOKUP($C$32,TS2L3MEM1CPU,3,FALSE),VLOOKUP($C$32,TS2L3MEM2CPU,3,FALSE)) -> 2 | D41: =IF($C$25=0,VLOOKUP($C$32,TS2L3MEM1CPU,4,FALSE),VLOOKUP($C$32,TS2L3MEM2CPU,4,FALSE)) -> [370-ADNF] | E41: =IF($C$25=0,VLOOKUP($C$32,TS2L3MEM1CPU,5,FALSE),VLOOKUP($C$32,TS2L3MEM2CPU,5,FALSE)) -> A9781929 | F41: =IF($C$25=0,VLOOKUP($C$32,TS2L3MEM1CPU,6,FALSE),VLOOKUP($C$32,TS2L3MEM2CPU,6,FALSE)) ->  | G41: =IF($C$25=0,VLOOKUP($C$32,TS2L3MEM1CPU,7,FALSE),VLOOKUP($C$32,TS2L3MEM2CPU,7,FALSE)) -> 0
B43: Sistema operativo preinstallato
B44: None | C44: =VLOOKUP($B$44,TS2L3OS,2,FALSE) ->  | D44: =VLOOKUP($B$44,TS2L3OS,3,FALSE) -> [619-ABVR] | E44: =VLOOKUP($B$44,TS2L3OS,4,FALSE) ->  | F44: =VLOOKUP($B$44,TS2L3OS,5,FALSE) ->  | G44: =VLOOKUP($B$44,TS2L3OS,6,FALSE) -> 0 | H44: =VLOOKUP($B$44,TS2L3OS,7,FALSE) -> 0 | I44: =IF(E44=0,1,0) -> 0
B45: =IF($C$25=1,(VLOOKUP($B$44,TS2L3OS,8,FALSE)),"") ->  | C45: =IF($C$25=1,(VLOOKUP($B$44,TS2L3OS,9,FALSE)),"") ->  | D45: =IF($C$25=1,(VLOOKUP($B$44,TS2L3OS,10,FALSE)),"") ->  | E45: =IF($C$25=1,(VLOOKUP($B$44,TS2L3OS,11,FALSE)),"") ->  | F45: =IF($C$25=1,(VLOOKUP($B$44,TS2L3OS,12,FALSE)),"") ->  | G45: =IF($C$25=1,(VLOOKUP($B$44,TS2L3OS,13,FALSE)),"") ->  | H45: =IF($C$25=1,(VLOOKUP($B$44,TS2L3OS,14,FALSE)),0) -> 0
A47: =IF((I44*I48)=0,"","ERRORE: La selezione di licenze CAL senza il Sistema Operativo Microsoft Windows non è consentita.") ->  | B47: Client Access Licenses
B48: =IF($E$44>0,'Regole di configurazione'!A95,"") -> 1 Windows Server 2019 Device CALs (Standard or Datacenter),CUS | C48: 0 | D48: =IF($E$44>0,'Regole di configurazione'!C95,"") -> 0 | E48: =IF($E$44>0,'Regole di configurazione'!D95,"") -> 623-BBBX | F48: =IF($E$44>0,'Regole di configurazione'!E95,"") -> TS2L3-CALDEV | G48: =IF($E$44>0,'Regole di configurazione'!F95,0)*C48 -> 0 | H48: =IF($E$44>0,'Regole di configurazione'!G95,"") -> 0 | I48: =C48+C50 -> 0
B50: =IF($E$44>0,'Regole di configurazione'!A96,"") -> 1 Windows Server 2019 User CALs (Standard or Datacenter),CUS | C50: 0 | D50: =IF($E$44>0,'Regole di configurazione'!C96,"") -> 0 | E50: =IF($E$44>0,'Regole di configurazione'!D96,"") -> 623-BBCC | F50: =IF($E$44>0,'Regole di configurazione'!E96,"") -> TS2L3-CALUSER | G50: =IF($E$44>0,'Regole di configurazione'!F96,0)*C50 -> 0 | H50: =IF($E$44>0,'Regole di configurazione'!G96,"") -> 0
B52: Sistema operativo VMware
B53: Vmware vSphere Essentials Plus Kit
B54: None | C54: =VLOOKUP($B$54,TS2L3VMWARE1,2,FALSE) -> 1 | D54: =VLOOKUP($B$54,TS2L3VMWARE1,3,FALSE) ->  | E54: =VLOOKUP($B$54,TS2L3VMWARE1,4,FALSE) ->  | F54: =VLOOKUP($B$54,TS2L3VMWARE1,5,FALSE) ->  | G54: =VLOOKUP($B$54,TS2L3VMWARE1,6,FALSE) -> 0 | H54: =VLOOKUP($B$54,TS2L3VMWARE1,7,FALSE)*C54 -> 0
B55: VMware vCenter Server Standard
B56: None | C56: =VLOOKUP($B$56,TS2L3VMWARE2,2,FALSE) -> 1 | D56: =VLOOKUP($B$56,TS2L3VMWARE2,3,FALSE) ->  | E56: =VLOOKUP($B$56,TS2L3VMWARE2,4,FALSE) ->  | F56: =VLOOKUP($B$56,TS2L3VMWARE2,5,FALSE) ->  | G56: =VLOOKUP($B$56,TS2L3VMWARE2,6,FALSE) -> 0 | H56: =VLOOKUP($B$56,TS2L3VMWARE2,7,FALSE)*C56 -> 0
B57: Vmware vSphere Standard/Enterprise
B58: None | C58: =(VLOOKUP($B$58,TS2L3VMWARE3,2,FALSE))+C25 -> 0 | D58: =VLOOKUP($B$58,TS2L3VMWARE3,3,FALSE) ->  | E58: =VLOOKUP($B$58,TS2L3VMWARE3,4,FALSE) ->  | F58: =VLOOKUP($B$58,TS2L3VMWARE3,5,FALSE) ->  | G58: =VLOOKUP($B$58,TS2L3VMWARE3,6,FALSE) -> 0 | H58: =VLOOKUP($B$58,TS2L3VMWARE3,7,FALSE)*C58 -> 0
B59: VMware vSAN
B60: None | C60: =(VLOOKUP($B$60,TS2L3VMWARE4,2,FALSE))+C25 -> 0 | D60: =VLOOKUP($B$60,TS2L3VMWARE4,3,FALSE) ->  | E60: =VLOOKUP($B$60,TS2L3VMWARE4,4,FALSE) ->  | F60: =VLOOKUP($B$60,TS2L3VMWARE4,5,FALSE) ->  | G60: =VLOOKUP($B$60,TS2L3VMWARE4,6,FALSE) -> 0 | H60: =VLOOKUP($B$60,TS2L3VMWARE4,7,FALSE)*C60 -> 0
B62: Controller Dischi
B63: =B122 -> PERC H730P RAID Controller, 2Gb NV Cache, Adapter, Full Height | C63: =C122 -> 1 | D63: =D122 -> [405-AAMR] | E63: =E122 -> 405-AAMY
B65: Dischi rigidi (numero massimo totale 24)
A66: SAS 10K | B66: 600GB 10K RPM SAS 12Gbps 512n 2.5in Hot-plug Hard Drive | C66: 2 | D66: [400-ASGS] | E66: 400-AUNQ | F66: =IF(C66<=2,"","TS2L3-10K600") ->  | G66: =IF(C66<=2,0,(C66-2)*'Regole di configurazione'!F13) -> 0
B68: 1.2TB 10K RPM SAS 12Gbps 512n 2.5in Hot-plug Hard Drive | C68: 0 | D68: [400-ASHI] | E68: 400-ATJL | F68: =IF(C68=0,"","TS2L3-10K1200") ->  | G68: =C68*'Regole di configurazione'!F14 -> 0
B70: 1.8TB 10K RPM SAS 12Gbps 512e 2.5in Hot-plug Hard Drive | C70: 0 | D70: [400-ARXC] | E70: 400-ATJR | F70: =IF(C70=0,"","TS2L3-10K1800") ->  | G70: =C70*'Regole di configurazione'!F15 -> 0
B72: 2.4TB 10K RPM SAS 12Gbps 512e 2.5in Hot-plug Hard Drive NO VMWARE A20 | C72: 0 | E72: 400-AVBX | F72: =IF(C72=0,"","TS2L3-10K2400") ->  | H72: =C72*'Regole di configurazione'!G43 -> 0
A73: SSD
B74: SSD 480GB SAS MU 12Gbps 2.5in Hot-Plug A20 | C74: 0 | E74: 400-BCOD | F74: =IF(C74=0,"","TS2L3-SSDM480") ->  | H74: =C74*'Regole di configurazione'!G44 -> 0
B76: SSD 400GB SAS WI 12Gbps 2.5in Hot-plug Drive, 10 DWPD A20 | C76: 0 | E76: 400-ATGH | F76: =IF(C76=0,"","TS2L3-SSDW400") ->  | H76: =C76*'Regole di configurazione'!G45 -> 0
B78: SSD 1600GB SAS WI 12Gb 2.5in Hot-plug Drive, 10 DWPD A20 | C78: 0 | F78: =IF(C78=0,"","TS2L3-SSDW1600") ->  | H78: =C78*'Regole di configurazione'!G46 -> 0
B80: 960GB SSD SAS Read Intensive 12Gbps 512e 2.5in Hot-plug Drive, PM5-R, 1 DWPD, 1752 TBW | C80: 0 | D80: [400-BBPL] | E80: 400-ATLL | F80: =IF(C80=0,"","TS2L3-SSDR960") ->  | G80: =C80*'Regole di configurazione'!F16 -> 0
F81: =IF(C81=0,"","TS2L3-SSDR960") -> 
B82: SSD 960GB SAS Mixed Use 12Gbps 2.5in Hot-plug Drive A20 | C82: 0 | E82: 400-BCNN | H82: =C82*'Regole di configurazione'!G47 -> 0
B84: 1.92TB SSD SAS Read Intensive 12Gbps 512e 2.5in Hot-plug Drive, PM1633a | C84: 0 | D84: [400-ASFX] | E84: 400-ATND | F84: =IF(C84=0,"","TS2L3-SSDR1920") ->  | G84: =C84*'Regole di configurazione'!F17 -> 0
B86: DISCHI TOTALI | C86: =SUM(C66:C84) -> 2
B88: NOTE sulla configurazione (CAMPO OBBLIGATORIO)
A89: =IF(C86<=24,"","ERRORE: Totale n° di dischi superiore al consentito") ->  | B89: Specificare la configurazione RAID per l'installazione del Sistema Operativo, se richiesto. e/o inserire eventuali note. | E89: Specificare la configurazione RAID per l'installazione del Sistema Operativo, se richiesto. e/o inserire eventuali note. | F89: =IF(B89=E89,"ERRORE: Compilare il campo NOTE","") -> ERRORE: Compilare il campo NOTE
B91: Ventole
B92: 6 Standard Fans | C92: 1 | D92: [384-BBSU]
B94: Alimentatore
B95: Dual, Hot-plug, Redundant Power Supply (1+1), 1100W | C95: 1 | D95: [450-ADWM]
B97: Cavi di alimentazione
B98: Rack Power Cord 2M (C13/C14 10A) | C98: 2 | D98: [450-AADY]
B100: PCIe Riser
B101: =VLOOKUP($B$25,TS2L3CPU,15,FALSE) -> Riser Config 1, 2 x8, 1 x16 slots | C101: =VLOOKUP($B$25,TS2L3CPU,16,FALSE) -> 1 | D101: =VLOOKUP($B$25,TS2L3CPU,17,FALSE) -> [330-BBIY] | E101: =VLOOKUP($B$25,TS2L3CPU,18,FALSE) -> 
B103: Modulo Doppia SD - Internal Dual SD Module (IDSDM)
B104: None | C104: =VLOOKUP(B104,TS2L3IDSDM,2,FALSE) -> 0 | D104: =VLOOKUP(B104,TS2L3IDSDM,3,FALSE) -> 0 | E104: =VLOOKUP(B104,TS2L3IDSDM,4,FALSE) -> 0 | F104: =VLOOKUP(B104,TS2L3IDSDM,5,FALSE) ->  | G104: =VLOOKUP(B104,TS2L3IDSDM,6,FALSE) -> 0 | H104: =VLOOKUP(B104,TS2L3IDSDM,7,FALSE) -> 0
B106: Embedded Systems Management
B107: iDRAC9,Enterprise | C107: 1 | D107: [385-BBKT]
B112: Network Daughter Card
B113: Broadcom 5720 QP 1Gb Network Daughter Card | C113: 1 | D113: [540-BBBW]
B115: Additional Card for PCIe Slot 1 (Full height) (CPU 1)
B116: None | C116: =VLOOKUP(B116,TS2L3PCI1,2,FALSE) ->  | D116: =VLOOKUP(B116,TS2L3PCI1,3,FALSE) ->  | E116: =VLOOKUP(B116,TS2L3PCI1,4,FALSE) ->  | F116: =VLOOKUP(B116,TS2L3PCI1,5,FALSE) ->  | G116: =VLOOKUP(B116,TS2L3PCI1,6,FALSE) -> 0 | H116: =VLOOKUP(B116,TS2L3PCI1,7,FALSE) -> 0
B118: Additional Card for PCIe Slot 2 (Full height) (CPU 1)
B119: None | C119: =VLOOKUP(B119,TS2L3PCI2,2,FALSE) ->  | D119: =VLOOKUP(B119,TS2L3PCI2,3,FALSE) ->  | E119: =VLOOKUP(B119,TS2L3PCI2,4,FALSE) ->  | F119: =VLOOKUP(B119,TS2L3PCI2,5,FALSE) ->  | G119: =VLOOKUP(B119,TS2L3PCI2,6,FALSE) -> 0 | H119: =VLOOKUP(B119,TS2L3PCI2,7,FALSE) -> 0
B121: Additional Card for PCIe Slot 3 (Full height) (CPU 1)
B122: PERC H730P RAID Controller, 2Gb NV Cache, Adapter, Full Height | C122: =VLOOKUP(B122,TS2L3PCI3,2,FALSE) -> 1 | D122: =VLOOKUP(B122,TS2L3PCI3,3,FALSE) -> [405-AAMR] | E122: =VLOOKUP(B122,TS2L3PCI3,4,FALSE) -> 405-AAMY | F122: =VLOOKUP(B122,TS2L3PCI3,5,FALSE) ->  | G122: =VLOOKUP(B122,TS2L3PCI3,6,FALSE) -> 0 | H122: =VLOOKUP(B122,TS2L3PCI3,7,FALSE) -> 0
B124: Additional Card for PCIe Slot 4 (Full height) (CPU 2)
B125: None | C125: =IF(B125=TS2L3ASP,"",VLOOKUP(B125,TS2L3PCI4,2,FALSE)) ->  | D125: =IF(B125=TS2L3ASP,"",VLOOKUP(B125,TS2L3PCI4,3,FALSE)) ->  | E125: =IF(B125=TS2L3ASP,"",VLOOKUP(B125,TS2L3PCI4,4,FALSE)) ->  | F125: =IF(B125=TS2L3ASP,"",VLOOKUP(B125,TS2L3PCI4,5,FALSE)) ->  | G125: =IF(B125=TS2L3ASP,0,VLOOKUP(B125,TS2L3PCI4,6,FALSE)) -> 0 | H125: =IF(B125=TS2L3ASP,0,VLOOKUP(B125,TS2L3PCI4,7,FALSE)) -> 0
B127: Additional Card for PCIe Slot 5 (Full height) (CPU 2)
B128: None
B130: Additional Card for PCIe Slot 6 (Low height) (CPU 2)
B131: None | C131: =IF(B131=TS2L3ASP,"",VLOOKUP(B131,TS2L3PCI6,2,FALSE)) ->  | D131: =IF(B131=TS2L3ASP,"",VLOOKUP(B131,TS2L3PCI6,3,FALSE)) ->  | E131: =IF(B131=TS2L3ASP,"",VLOOKUP(B131,TS2L3PCI6,4,FALSE)) ->  | F131: =IF(B131=TS2L3ASP,"",VLOOKUP(B131,TS2L3PCI6,5,FALSE)) ->  | G131: =IF(B131=TS2L3ASP,0,VLOOKUP(B131,TS2L3PCI6,6,FALSE)) -> 0 | H131: =IF(B131=TS2L3ASP,0,VLOOKUP(B131,TS2L3PCI6,7,FALSE)) -> 0
B133: Additional Card for PCIe Slot 7 (Full height) (CPU 2) (BOSS controller card Slot)
B134: None | C134: =IF(B134=TS2L3ASP,"",VLOOKUP(B134,TS2L3PCI7,2,FALSE)) ->  | D134: =IF(B134=TS2L3ASP,"",VLOOKUP(B134,TS2L3PCI7,3,FALSE)) ->  | E134: =IF(B134=TS2L3ASP,"",VLOOKUP(B134,TS2L3PCI7,4,FALSE)) ->  | F134: =IF(B134=TS2L3ASP,"",VLOOKUP(B134,TS2L3PCI7,5,FALSE)) ->  | G134: =IF(B134=TS2L3ASP,0,VLOOKUP(B134,TS2L3PCI7,6,FALSE)) -> 0 | H134: =IF(B134=TS2L3ASP,0,VLOOKUP(B134,TS2L3PCI7,7,FALSE)) -> 0
B136: Additional Card for PCIe Slot 8 (Full height) (CPU 2)
B137: None | C137: =IF(B137=TS2L3ASP,"",VLOOKUP(B137,TS2L3PCI8,2,FALSE)) ->  | D137: =IF(B137=TS2L3ASP,"",VLOOKUP(B137,TS2L3PCI8,3,FALSE)) ->  | E137: =IF(B137=TS2L3ASP,"",VLOOKUP(B137,TS2L3PCI8,4,FALSE)) ->  | F137: =IF(B137=TS2L3ASP,"",VLOOKUP(B137,TS2L3PCI8,5,FALSE)) ->  | G137: =IF(B137=TS2L3ASP,0,VLOOKUP(B137,TS2L3PCI8,6,FALSE)) -> 0 | H137: =IF(B137=TS2L3ASP,0,VLOOKUP(B137,TS2L3PCI8,7,FALSE)) -> 0
B139: Bezel
B140: No Bezel | C140: =VLOOKUP($B$140,TS2L3BEZEL,2,FALSE) -> 0 | D140: =VLOOKUP($B$140,TS2L3BEZEL,3,FALSE) -> [350-BBBW] | E140: =VLOOKUP($B$140,TS2L3BEZEL,4,FALSE) -> 0 | F140: =VLOOKUP($B$140,TS2L3BEZEL,5,FALSE) ->  | G140: =VLOOKUP($B$140,TS2L3BEZEL,6,FALSE) -> 0 | H140: =VLOOKUP($B$140,TS2L3BEZEL,7,FALSE) -> 0
B141: MOD,TRAY,LGG,R7425 | C141: 1 | D141: [350-BBMF]
B143: Quick Sync
B144: No Quick Sync | C144: 1 | D144: [350-BBJV]
B146: Rack Rails
B147: =VLOOKUP($B$140,TS2L3BEZEL,8,FALSE) -> ReadyRails™ Sliding Rails Without Cable Management Arm | C147: =VLOOKUP($B$140,TS2L3BEZEL,9,FALSE) -> 1 | D147: =VLOOKUP($B$140,TS2L3BEZEL,10,FALSE) -> [770-BBBQ] | E147: =VLOOKUP($B$140,TS2L3BEZEL,11,FALSE) -> 0
B149: Password
B150: iDRAC,Factory Generated Password | C150: 1 | D150: [379-BCSF]
B152: Group Manager
B153: iDRAC Group Manager, Enabled | C153: 1 | D153: [379-BCQV]
B155: Internal Optical Drive
B156: No Internal Optical Drive for 12/24 HD Chassis | C156: 1 | D156: [429-AAIQ]
B158: Dell Services: Deployment Services
B159: No Installation Service Selected (Contact Sales rep for more details) | C159: 1 | D159: [683-11870]
B161: Channel only - Support Extension
B162: Channel 39M Basic Warranty - Next Business Day | C162: 1 | D162: [723-41450]
B164: System Documentation
B165: No Systems Documentation, No OpenManage DVD Kit | C165: 1 | D165: [631-AACK]
B167: Shipping Material
B168: PowerEdge R7425 Shipping Material | C168: 1 | D168: [343-BBHK]
B170: Direct Attach Cable
B171: 5 x Dell Networking, Cable, SFP+ to SFP+, 10GbE, Copper Twinax DAC, 3 Meter A20 | C171: 0 | E171: 470-AAVJ | F171: =IF(C171=0,"","TS2L3-5XDAC10M3") ->  | H171: ='Regole di configurazione'!G49*C171 -> 0
B173: 5 x Dell Networking Cable, 100GbE QSFP28 to QSFP28,Passive Copper DAC, 2 Meter A20 | C173: 0 | E173: 470-ABQG | F173: =IF(C173=0,"","TS2L3-5XDAC100M2") ->  | H173: ='Regole di configurazione'!G50*C173 -> 0
B175: 5 x Dell Networking Cable,100GbE QSFP28 to QSFP28, Passive Copper DAC, 3 Meter A20 | C175: 0 | E175: 470-ABQE | F175: =IF(C175=0,"","TS2L3-5XDAC100M3") ->  | H175: ='Regole di configurazione'!G51*C175 -> 0
B177: Cavi rj45
B178: Cavo Rete UTP cat. 5e 3 metri | C178: 5 | E178: ROS1403/G | F178: =IF(C178=0,"","TS2L3-3MRJ45") -> TS2L3-3MRJ45 | H178: =2*C178 -> 10
B180: Estenzione di Garanzia
B181: None | C181: =VLOOKUP(B181,TS2L3WARRANTY,2,FALSE) ->  | D181: =VLOOKUP(B181,TS2L3WARRANTY,3,FALSE) ->  | E181: =VLOOKUP(B181,TS2L3WARRANTY,4,FALSE) ->  | F181: =VLOOKUP(B181,TS2L3WARRANTY,5,FALSE) ->  | G181: =VLOOKUP(B181,TS2L3WARRANTY,6,FALSE) -> 0
B183: Warranty Upgrades - Non-Std/Local POS
B184: None | C184: 1 | D184: [681-24467]

Sheet Lotto3_R7425-3
B1: TOTALE PRODOTTI CONVENZIONE | C1: =SUM(G13:G194)*$C$10 -> 0 | F1: =IF(I1+I2=0,(C1+C2),"ERRORE VERIFICARE LA CONFIGURAZIONE") -> 0 | I1: =IF(A47="",0,1) -> 0
B2: TOTALE ARTICOLI 20% | C2: =SUM(H13:H194)*$C$10 -> 0 | I2: =IF(A89="",0,1) -> 0
B3: Quantità Server | F3: =Riepilogo!T6 -> ver. 3.3
A5: POWEREDGE R7425
B10: Quantità: | C10: =C3 -> 0
B12: Modello Server
B13: PowerEdge R7425 Server | C13: 1 | D13: [210-APFK] | F13: TS2L3-SRV | G13: 2087
B15: Configurazione dello chassis
B16: Chassis with up to 24 x 2.5" SAS/SATA Hard Drives for 1&2CPU Configuration, Risers 1, 3, 5, 7 | C16: 1 | D16: [321-BDGE]
B18: Trusted Platform Module
B19: No Trusted Platform Module | C19: 1 | D19: [461-AADZ]
B21: Processore
B22: AMD EPYC™ 7301 2.2GHz/2.7GHz, 16C/32T, 64M Cache (155W/170W) DDR4-2400/2666 | C22: 1 | D22: [338-BNBZ]
B24: Processore aggiuntivo
B25: No Additional Processor | C25: =VLOOKUP($B$25,TS2L3CPU,2,FALSE) -> 0 | D25: =VLOOKUP($B$25,TS2L3CPU,3,FALSE) -> [374-BBBX] | E25: =VLOOKUP($B$25,TS2L3CPU,4,FALSE) ->  | F25: =VLOOKUP($B$25,TS2L3CPU,5,FALSE) ->  | G25: =VLOOKUP($B$25,TS2L3CPU,6,FALSE) -> 0 | H25: =VLOOKUP($B$25,TS2L3CPU,7,FALSE) -> 
B27: Configurazione Termica del Processore
B28: =VLOOKUP($B$25,TS2L3CPU,8,FALSE) -> Standard Heatsinks, below 180W CPU | C28: =VLOOKUP($B$25,TS2L3CPU,9,FALSE) -> 1 | D28: =VLOOKUP($B$25,TS2L3CPU,10,FALSE) -> [412-AALN] | E28: =VLOOKUP($B$25,TS2L3CPU,11,FALSE) -> 412-AALJ
B29: =VLOOKUP($B$25,TS2L3CPU,12,FALSE) -> Blank for 1 CPU Configuration | C29: =VLOOKUP($B$25,TS2L3CPU,13,FALSE) -> 1 | D29: =VLOOKUP($B$25,TS2L3CPU,14,FALSE) -> [379-BCWU]
B32: Memoria Totale in GB | C32: 64 (DIMM 32GB)
B34: Tipo di configurazione memoria
B35: Performance Optimized | C35: 1 | D35: [370-AAIP]
B37: Tipo e velocità della memoria DIMM
B38: =IF($C$25=0,VLOOKUP($C$32,TS2L3MEM1CPU,9,FALSE),VLOOKUP($C$32,TS2L3MEM2CPU,9,FALSE)) -> 2666MT/s RDIMMs | C38: =IF($C$25=0,VLOOKUP($C$32,TS2L3MEM1CPU,10,FALSE),VLOOKUP($C$32,TS2L3MEM2CPU,10,FALSE)) -> 1 | D38: =IF($C$25=0,VLOOKUP($C$32,TS2L3MEM1CPU,11,FALSE),VLOOKUP($C$32,TS2L3MEM2CPU,11,FALSE)) -> [370-ADNU]
B40: Capacità di memoria
B41: =IF($C$25=0,VLOOKUP($C$32,TS2L3MEM1CPU,2,FALSE),VLOOKUP($C$32,TS2L3MEM2CPU,2,FALSE)) -> 32GB RDIMM, 2666MT/s, Dual Rank | C41: =IF($C$25=0,VLOOKUP($C$32,TS2L3MEM1CPU,3,FALSE),VLOOKUP($C$32,TS2L3MEM2CPU,3,FALSE)) -> 2 | D41: =IF($C$25=0,VLOOKUP($C$32,TS2L3MEM1CPU,4,FALSE),VLOOKUP($C$32,TS2L3MEM2CPU,4,FALSE)) -> [370-ADNF] | E41: =IF($C$25=0,VLOOKUP($C$32,TS2L3MEM1CPU,5,FALSE),VLOOKUP($C$32,TS2L3MEM2CPU,5,FALSE)) -> A9781929 | F41: =IF($C$25=0,VLOOKUP($C$32,TS2L3MEM1CPU,6,FALSE),VLOOKUP($C$32,TS2L3MEM2CPU,6,FALSE)) ->  | G41: =IF($C$25=0,VLOOKUP($C$32,TS2L3MEM1CPU,7,FALSE),VLOOKUP($C$32,TS2L3MEM2CPU,7,FALSE)) -> 0
B43: Sistema operativo preinstallato
B44: None | C44: =VLOOKUP($B$44,TS2L3OS,2,FALSE) ->  | D44: =VLOOKUP($B$44,TS2L3OS,3,FALSE) -> [619-ABVR] | E44: =VLOOKUP($B$44,TS2L3OS,4,FALSE) ->  | F44: =VLOOKUP($B$44,TS2L3OS,5,FALSE) ->  | G44: =VLOOKUP($B$44,TS2L3OS,6,FALSE) -> 0 | H44: =VLOOKUP($B$44,TS2L3OS,7,FALSE) -> 0 | I44: =IF(E44=0,1,0) -> 0
B45: =IF($C$25=1,(VLOOKUP($B$44,TS2L3OS,8,FALSE)),"") ->  | C45: =IF($C$25=1,(VLOOKUP($B$44,TS2L3OS,9,FALSE)),"") ->  | D45: =IF($C$25=1,(VLOOKUP($B$44,TS2L3OS,10,FALSE)),"") ->  | E45: =IF($C$25=1,(VLOOKUP($B$44,TS2L3OS,11,FALSE)),"") ->  | F45: =IF($C$25=1,(VLOOKUP($B$44,TS2L3OS,12,FALSE)),"") ->  | G45: =IF($C$25=1,(VLOOKUP($B$44,TS2L3OS,13,FALSE)),"") ->  | H45: =IF($C$25=1,(VLOOKUP($B$44,TS2L3OS,14,FALSE)),0) -> 0
A47: =IF((I44*I48)=0,"","ERRORE: La selezione di licenze CAL senza il Sistema Operativo Microsoft Windows non è consentita.") ->  | B47: Client Access Licenses
B48: =IF($E$44>0,'Regole di configurazione'!A95,"") -> 1 Windows Server 2019 Device CALs (Standard or Datacenter),CUS | C48: 0 | D48: =IF($E$44>0,'Regole di configurazione'!C95,"") -> 0 | E48: =IF($E$44>0,'Regole di configurazione'!D95,"") -> 623-BBBX | F48: =IF($E$44>0,'Regole di configurazione'!E95,"") -> TS2L3-CALDEV | G48: =IF($E$44>0,'Regole di configurazione'!F95,0)*C48 -> 0 | H48: =IF($E$44>0,'Regole di configurazione'!G95,"") -> 0 | I48: =C48+C50 -> 0
B50: =IF($E$44>0,'Regole di configurazione'!A96,"") -> 1 Windows Server 2019 User CALs (Standard or Datacenter),CUS | C50: 0 | D50: =IF($E$44>0,'Regole di configurazione'!C96,"") -> 0 | E50: =IF($E$44>0,'Regole di configurazione'!D96,"") -> 623-BBCC | F50: =IF($E$44>0,'Regole di configurazione'!E96,"") -> TS2L3-CALUSER | G50: =IF($E$44>0,'Regole di configurazione'!F96,0)*C50 -> 0 | H50: =IF($E$44>0,'Regole di configurazione'!G96,"") -> 0
B52: Sistema operativo VMware
B53: Vmware vSphere Essentials Plus Kit
B54: None | C54: =VLOOKUP($B$54,TS2L3VMWARE1,2,FALSE) -> 1 | D54: =VLOOKUP($B$54,TS2L3VMWARE1,3,FALSE) ->  | E54: =VLOOKUP($B$54,TS2L3VMWARE1,4,FALSE) ->  | F54: =VLOOKUP($B$54,TS2L3VMWARE1,5,FALSE) ->  | G54: =VLOOKUP($B$54,TS2L3VMWARE1,6,FALSE) -> 0 | H54: =VLOOKUP($B$54,TS2L3VMWARE1,7,FALSE)*C54 -> 0
B55: VMware vCenter Server Standard
B56: None | C56: =VLOOKUP($B$56,TS2L3VMWARE2,2,FALSE) -> 1 | D56: =VLOOKUP($B$56,TS2L3VMWARE2,3,FALSE) ->  | E56: =VLOOKUP($B$56,TS2L3VMWARE2,4,FALSE) ->  | F56: =VLOOKUP($B$56,TS2L3VMWARE2,5,FALSE) ->  | G56: =VLOOKUP($B$56,TS2L3VMWARE2,6,FALSE) -> 0 | H56: =VLOOKUP($B$56,TS2L3VMWARE2,7,FALSE)*C56 -> 0
B57: Vmware vSphere Standard/Enterprise
B58: None | C58: =(VLOOKUP($B$58,TS2L3VMWARE3,2,FALSE))+C25 -> 0 | D58: =VLOOKUP($B$58,TS2L3VMWARE3,3,FALSE) ->  | E58: =VLOOKUP($B$58,TS2L3VMWARE3,4,FALSE) ->  | F58: =VLOOKUP($B$58,TS2L3VMWARE3,5,FALSE) ->  | G58: =VLOOKUP($B$58,TS2L3VMWARE3,6,FALSE) -> 0 | H58: =VLOOKUP($B$58,TS2L3VMWARE3,7,FALSE)*C58 -> 0
B59: VMware vSAN
B60: None | C60: =(VLOOKUP($B$60,TS2L3VMWARE4,2,FALSE))+C25 -> 0 | D60: =VLOOKUP($B$60,TS2L3VMWARE4,3,FALSE) ->  | E60: =VLOOKUP($B$60,TS2L3VMWARE4,4,FALSE) ->  | F60: =VLOOKUP($B$60,TS2L3VMWARE4,5,FALSE) ->  | G60: =VLOOKUP($B$60,TS2L3VMWARE4,6,FALSE) -> 0 | H60: =VLOOKUP($B$60,TS2L3VMWARE4,7,FALSE)*C60 -> 0
B62: Controller Dischi
B63: =B122 -> PERC H730P RAID Controller, 2Gb NV Cache, Adapter, Full Height | C63: =C122 -> 1 | D63: =D122 -> [405-AAMR] | E63: =E122 -> 405-AAMY
B65: Dischi rigidi (numero massimo totale 24)
A66: SAS 10K | B66: 600GB 10K RPM SAS 12Gbps 512n 2.5in Hot-plug Hard Drive | C66: 2 | D66: [400-ASGS] | E66: 400-AUNQ | F66: =IF(C66<=2,"","TS2L3-10K600") ->  | G66: =IF(C66<=2,0,(C66-2)*'Regole di configurazione'!F13) -> 0
B68: 1.2TB 10K RPM SAS 12Gbps 512n 2.5in Hot-plug Hard Drive | C68: 0 | D68: [400-ASHI] | E68: 400-ATJL | F68: =IF(C68=0,"","TS2L3-10K1200") ->  | G68: =C68*'Regole di configurazione'!F14 -> 0
B70: 1.8TB 10K RPM SAS 12Gbps 512e 2.5in Hot-plug Hard Drive | C70: 0 | D70: [400-ARXC] | E70: 400-ATJR | F70: =IF(C70=0,"","TS2L3-10K1800") ->  | G70: =C70*'Regole di configurazione'!F15 -> 0
B72: 2.4TB 10K RPM SAS 12Gbps 512e 2.5in Hot-plug Hard Drive NO VMWARE A20 | C72: 0 | E72: 400-AVBX | F72: =IF(C72=0,"","TS2L3-10K2400") ->  | H72: =C72*'Regole di configurazione'!G43 -> 0
A73: SSD
B74: SSD 480GB SAS MU 12Gbps 2.5in Hot-Plug A20 | C74: 0 | E74: 400-BCOD | F74: =IF(C74=0,"","TS2L3-SSDM480") ->  | H74: =C74*'Regole di configurazione'!G44 -> 0
B76: SSD 400GB SAS WI 12Gbps 2.5in Hot-plug Drive, 10 DWPD A20 | C76: 0 | E76: 400-ATGH | F76: =IF(C76=0,"","TS2L3-SSDW400") ->  | H76: =C76*'Regole di configurazione'!G45 -> 0
B78: SSD 1600GB SAS WI 12Gb 2.5in Hot-plug Drive, 10 DWPD A20 | C78: 0 | F78: =IF(C78=0,"","TS2L3-SSDW1600") ->  | H78: =C78*'Regole di configurazione'!G46 -> 0
B80: 960GB SSD SAS Read Intensive 12Gbps 512e 2.5in Hot-plug Drive, PM5-R, 1 DWPD, 1752 TBW | C80: 0 | D80: [400-BBPL] | E80: 400-ATLL | F80: =IF(C80=0,"","TS2L3-SSDR960") ->  | G80: =C80*'Regole di configurazione'!F16 -> 0
F81: =IF(C81=0,"","TS2L3-SSDR960") -> 
B82: SSD 960GB SAS Mixed Use 12Gbps 2.5in Hot-plug Drive A20 | C82: 0 | E82: 400-BCNN | H82: =C82*'Regole di configurazione'!G47 -> 0
B84: 1.92TB SSD SAS Read Intensive 12Gbps 512e 2.5in Hot-plug Drive, PM1633a | C84: 0 | D84: [400-ASFX] | E84: 400-ATND | F84: =IF(C84=0,"","TS2L3-SSDR1920") ->  | G84: =C84*'Regole di configurazione'!F17 -> 0
B86: DISCHI TOTALI | C86: =SUM(C66:C77) -> 2
B88: NOTE sulla configurazione (CAMPO OBBLIGATORIO)
A89: =IF(C86<=24,"","ERRORE: Totale n° di dischi superiore al consentito") ->  | B89: Specificare la configurazione RAID per l'installazione del Sistema Operativo, se richiesto. e/o inserire eventuali note. | E89: Specificare la configurazione RAID per l'installazione del Sistema Operativo, se richiesto. e/o inserire eventuali note. | F89: =IF(B89=E89,"ERRORE: Compilare il campo NOTE","") -> ERRORE: Compilare il campo NOTE
B91: Ventole
B92: 6 Standard Fans | C92: 1 | D92: [384-BBSU]
B94: Alimentatore
B95: Dual, Hot-plug, Redundant Power Supply (1+1), 1100W | C95: 1 | D95: [450-ADWM]
B97: Cavi di alimentazione
B98: Rack Power Cord 2M (C13/C14 10A) | C98: 2 | D98: [450-AADY]
B100: PCIe Riser
B101: =VLOOKUP($B$25,TS2L3CPU,15,FALSE) -> Riser Config 1, 2 x8, 1 x16 slots | C101: =VLOOKUP($B$25,TS2L3CPU,16,FALSE) -> 1 | D101: =VLOOKUP($B$25,TS2L3CPU,17,FALSE) -> [330-BBIY] | E101: =VLOOKUP($B$25,TS2L3CPU,18,FALSE) -> 
B103: Modulo Doppia SD - Internal Dual SD Module (IDSDM)
B104: None | C104: =VLOOKUP(B104,TS2L3IDSDM,2,FALSE) -> 0 | D104: =VLOOKUP(B104,TS2L3IDSDM,3,FALSE) -> 0 | E104: =VLOOKUP(B104,TS2L3IDSDM,4,FALSE) -> 0 | F104: =VLOOKUP(B104,TS2L3IDSDM,5,FALSE) ->  | G104: =VLOOKUP(B104,TS2L3IDSDM,6,FALSE) -> 0 | H104: =VLOOKUP(B104,TS2L3IDSDM,7,FALSE) -> 0
B106: Embedded Systems Management
B107: iDRAC9,Enterprise | C107: 1 | D107: [385-BBKT]
B110: None
B112: Network Daughter Card
B113: Broadcom 5720 QP 1Gb Network Daughter Card | C113: 1 | D113: [540-BBBW]
B115: Additional Card for PCIe Slot 1 (Full height) (CPU 1)
B116: None | C116: =VLOOKUP(B116,TS2L3PCI1,2,FALSE) ->  | D116: =VLOOKUP(B116,TS2L3PCI1,3,FALSE) ->  | E116: =VLOOKUP(B116,TS2L3PCI1,4,FALSE) ->  | F116: =VLOOKUP(B116,TS2L3PCI1,5,FALSE) ->  | G116: =VLOOKUP(B116,TS2L3PCI1,6,FALSE) -> 0 | H116: =VLOOKUP(B116,TS2L3PCI1,7,FALSE) -> 0
B118: Additional Card for PCIe Slot 2 (Full height) (CPU 1)
B119: None | C119: =VLOOKUP(B119,TS2L3PCI2,2,FALSE) ->  | D119: =VLOOKUP(B119,TS2L3PCI2,3,FALSE) ->  | E119: =VLOOKUP(B119,TS2L3PCI2,4,FALSE) ->  | F119: =VLOOKUP(B119,TS2L3PCI2,5,FALSE) ->  | G119: =VLOOKUP(B119,TS2L3PCI2,6,FALSE) -> 0 | H119: =VLOOKUP(B119,TS2L3PCI2,7,FALSE) -> 0
B121: Additional Card for PCIe Slot 3 (Full height) (CPU 1)
B122: PERC H730P RAID Controller, 2Gb NV Cache, Adapter, Full Height | C122: =VLOOKUP(B122,TS2L3PCI3,2,FALSE) -> 1 | D122: =VLOOKUP(B122,TS2L3PCI3,3,FALSE) -> [405-AAMR] | E122: =VLOOKUP(B122,TS2L3PCI3,4,FALSE) -> 405-AAMY | F122: =VLOOKUP(B122,TS2L3PCI3,5,FALSE) ->  | G122: =VLOOKUP(B122,TS2L3PCI3,6,FALSE) -> 0 | H122: =VLOOKUP(B122,TS2L3PCI3,7,FALSE) -> 0
B124: Additional Card for PCIe Slot 4 (Full height) (CPU 2)
B125: None | C125: =IF(B125=TS2L3ASP,"",VLOOKUP(B125,TS2L3PCI4,2,FALSE)) ->  | D125: =IF(B125=TS2L3ASP,"",VLOOKUP(B125,TS2L3PCI4,3,FALSE)) ->  | E125: =IF(B125=TS2L3ASP,"",VLOOKUP(B125,TS2L3PCI4,4,FALSE)) ->  | F125: =IF(B125=TS2L3ASP,"",VLOOKUP(B125,TS2L3PCI4,5,FALSE)) ->  | G125: =IF(B125=TS2L3ASP,0,VLOOKUP(B125,TS2L3PCI4,6,FALSE)) -> 0 | H125: =IF(B125=TS2L3ASP,0,VLOOKUP(B125,TS2L3PCI4,7,FALSE)) -> 0
B127: Additional Card for PCIe Slot 5 (Full height) (CPU 2)
B128: None
B130: Additional Card for PCIe Slot 6 (Low height) (CPU 2)
B131: None | C131: =IF(B131=TS2L3ASP,"",VLOOKUP(B131,TS2L3PCI6,2,FALSE)) ->  | D131: =IF(B131=TS2L3ASP,"",VLOOKUP(B131,TS2L3PCI6,3,FALSE)) ->  | E131: =IF(B131=TS2L3ASP,"",VLOOKUP(B131,TS2L3PCI6,4,FALSE)) ->  | F131: =IF(B131=TS2L3ASP,"",VLOOKUP(B131,TS2L3PCI6,5,FALSE)) ->  | G131: =IF(B131=TS2L3ASP,0,VLOOKUP(B131,TS2L3PCI6,6,FALSE)) -> 0 | H131: =IF(B131=TS2L3ASP,0,VLOOKUP(B131,TS2L3PCI6,7,FALSE)) -> 0
B133: Additional Card for PCIe Slot 7 (Full height) (CPU 2) (BOSS controller card Slot)
B134: None | C134: =IF(B134=TS2L3ASP,"",VLOOKUP(B134,TS2L3PCI7,2,FALSE)) ->  | D134: =IF(B134=TS2L3ASP,"",VLOOKUP(B134,TS2L3PCI7,3,FALSE)) ->  | E134: =IF(B134=TS2L3ASP,"",VLOOKUP(B134,TS2L3PCI7,4,FALSE)) ->  | F134: =IF(B134=TS2L3ASP,"",VLOOKUP(B134,TS2L3PCI7,5,FALSE)) ->  | G134: =IF(B134=TS2L3ASP,0,VLOOKUP(B134,TS2L3PCI7,6,FALSE)) -> 0 | H134: =IF(B134=TS2L3ASP,0,VLOOKUP(B134,TS2L3PCI7,7,FALSE)) -> 0
B136: Additional Card for PCIe Slot 8 (Full height) (CPU 2)
B137: None | C137: =IF(B137=TS2L3ASP,"",VLOOKUP(B137,TS2L3PCI8,2,FALSE)) ->  | D137: =IF(B137=TS2L3ASP,"",VLOOKUP(B137,TS2L3PCI8,3,FALSE)) ->  | E137: =IF(B137=TS2L3ASP,"",VLOOKUP(B137,TS2L3PCI8,4,FALSE)) ->  | F137: =IF(B137=TS2L3ASP,"",VLOOKUP(B137,TS2L3PCI8,5,FALSE)) ->  | G137: =IF(B137=TS2L3ASP,0,VLOOKUP(B137,TS2L3PCI8,6,FALSE)) -> 0 | H137: =IF(B137=TS2L3ASP,0,VLOOKUP(B137,TS2L3PCI8,7,FALSE)) -> 0
B139: Bezel
B140: No Bezel | C140: =VLOOKUP($B$140,TS2L3BEZEL,2,FALSE) -> 0 | D140: =VLOOKUP($B$140,TS2L3BEZEL,3,FALSE) -> [350-BBBW] | E140: =VLOOKUP($B$140,TS2L3BEZEL,4,FALSE) -> 0 | F140: =VLOOKUP($B$140,TS2L3BEZEL,5,FALSE) ->  | G140: =VLOOKUP($B$140,TS2L3BEZEL,6,FALSE) -> 0 | H140: =VLOOKUP($B$140,TS2L3BEZEL,7,FALSE) -> 0
B141: MOD,TRAY,LGG,R7425 | C141: 1 | D141: [350-BBMF]
B143: Quick Sync
B144: No Quick Sync | C144: 1 | D144: [350-BBJV]
B146: Rack Rails
B147: =VLOOKUP($B$140,TS2L3BEZEL,8,FALSE) -> ReadyRails™ Sliding Rails Without Cable Management Arm | C147: =VLOOKUP($B$140,TS2L3BEZEL,9,FALSE) -> 1 | D147: =VLOOKUP($B$140,TS2L3BEZEL,10,FALSE) -> [770-BBBQ] | E147: =VLOOKUP($B$140,TS2L3BEZEL,11,FALSE) -> 0
B149: Password
B150: iDRAC,Factory Generated Password | C150: 1 | D150: [379-BCSF]
B152: Group Manager
B153: iDRAC Group Manager, Enabled | C153: 1 | D153: [379-BCQV]
B155: Internal Optical Drive
B156: No Internal Optical Drive for 12/24 HD Chassis | C156: 1 | D156: [429-AAIQ]
B158: Dell Services: Deployment Services
B159: No Installation Service Selected (Contact Sales rep for more details) | C159: 1 | D159: [683-11870]
B161: Channel only - Support Extension
B162: Channel 39M Basic Warranty - Next Business Day | C162: 1 | D162: [723-41450]
B164: System Documentation
B165: No Systems Documentation, No OpenManage DVD Kit | C165: 1 | D165: [631-AACK]
B167: Shipping Material
B168: PowerEdge R7425 Shipping Material | C168: 1 | D168: [343-BBHK]
B170: Direct Attach Cable
B171: 5 x Dell Networking, Cable, SFP+ to SFP+, 10GbE, Copper Twinax DAC, 3 Meter A20 | C171: 0 | E171: 470-AAVJ | F171: =IF(C171=0,"","TS2L3-5XDAC10M3") ->  | H171: ='Regole di configurazione'!G49*C171 -> 0
B173: 5 x Dell Networking Cable, 100GbE QSFP28 to QSFP28,Passive Copper DAC, 2 Meter A20 | C173: 0 | E173: 470-ABQG | F173: =IF(C173=0,"","TS2L3-5XDAC100M2") ->  | H173: ='Regole di configurazione'!G50*C173 -> 0
B175: 5 x Dell Networking Cable,100GbE QSFP28 to QSFP28, Passive Copper DAC, 3 Meter A20 | C175: 0 | E175: 470-ABQE | F175: =IF(C175=0,"","TS2L3-5XDAC100M3") ->  | H175: ='Regole di configurazione'!G51*C175 -> 0
B177: Cavi rj45
B178: Cavo Rete UTP cat. 5e 3 metri | C178: 5 | E178: ROS1403/G | F178: =IF(C178=0,"","TS2L3-3MRJ45") -> TS2L3-3MRJ45 | H178: =2*C178 -> 10
B180: Estenzione di Garanzia
B181: None | C181: =VLOOKUP(B181,TS2L3WARRANTY,2,FALSE) ->  | D181: =VLOOKUP(B181,TS2L3WARRANTY,3,FALSE) ->  | E181: =VLOOKUP(B181,TS2L3WARRANTY,4,FALSE) ->  | F181: =VLOOKUP(B181,TS2L3WARRANTY,5,FALSE) ->  | G181: =VLOOKUP(B181,TS2L3WARRANTY,6,FALSE) -> 0
B183: Warranty Upgrades - Non-Std/Local POS
B184: CSTM CONSIP - 39M Onsite Labor Support for CRU for Servers with Basic Warranty | C184: 1 | D184: [681-24467]

Sheet Lotto3_R7425(NVMe)
B1: TOTALE PRODOTTI CONVENZIONE | C1: =SUM(G13:G1048576)*$C$10 -> 0 | F1: =IF(I1+I2=0,(C1+C2),"ERRORE VERIFICARE LA CONFIGURAZIONE") -> 0 | I1: =IF(A47="",0,1) -> 0
B2: TOTALE ARTICOLI 20% | C2: =SUM(H13:H1048576)*$C$10 -> 0 | I2: =IF(A109="",0,1) -> 0
B3: Quantità Server | F3: =Riepilogo!T6 -> ver. 3.3
A5: POWEREDGE R7425
B10: Quantità: | C10: =C3 -> 0
B12: Modello Server
B13: PowerEdge R7425 Server | C13: 1 | D13: [210-APFK] | F13: TS2L3-SRV | G13: 2087
B15: Configurazione dello chassis
B16: Chassis with up to 24 x 2.5" Hard Drives including Maximum of 8 NVME Drives, 2CPU Config | C16: 1 | F16: TS2L3-NVMEKIT | H16: 433
B18: Trusted Platform Module
B19: No Trusted Platform Module | C19: 1 | D19: [461-AADZ]
B21: Processore
B22: AMD EPYC™ 7301 2.2GHz/2.7GHz, 16C/32T, 64M Cache (155W/170W) DDR4-2400/2666 | C22: 1 | D22: [338-BNBZ]
B24: Processore aggiuntivo
B25: AMD EPYC™ 7301 2.2GHz/2.7GHz, 16C/32T, 64M Cache (155W/170W) DDR4-2400/2666 | C25: 1 | D25: [374-BBTR] | E25: 338-BNCI | F25: TS2L3-CPU | G25: 700
B27: Configurazione Termica del Processore
B28: Standard Heatsinks, below 180W CPU | C28: 1 | D28: [412-AALN] | E28: 412-AALJ
B29: Blank for 1 CPU Configuration | C29: 1 | D29: [379-BCWU]
B32: Memoria Totale in GB | C32: 64 (DIMM 32GB)
B34: Tipo di configurazione memoria
B35: Performance Optimized | C35: 1 | D35: [370-AAIP]
B37: Tipo e velocità della memoria DIMM
B38: =IF($C$25=0,VLOOKUP($C$32,TS2L3MEM1CPU,9,FALSE),VLOOKUP($C$32,TS2L3MEM2CPU,9,FALSE)) -> 2666MT/s RDIMMs | C38: =IF($C$25=0,VLOOKUP($C$32,TS2L3MEM1CPU,10,FALSE),VLOOKUP($C$32,TS2L3MEM2CPU,10,FALSE)) -> 1 | D38: =IF($C$25=0,VLOOKUP($C$32,TS2L3MEM1CPU,11,FALSE),VLOOKUP($C$32,TS2L3MEM2CPU,11,FALSE)) -> [370-ADNU]
B40: Capacità di memoria
B41: =IF($C$25=0,VLOOKUP($C$32,TS2L3MEM1CPU,2,FALSE),VLOOKUP($C$32,TS2L3MEM2CPU,2,FALSE)) -> 32GB RDIMM, 2666MT/s, Dual Rank | C41: =IF($C$25=0,VLOOKUP($C$32,TS2L3MEM1CPU,3,FALSE),VLOOKUP($C$32,TS2L3MEM2CPU,3,FALSE)) -> 2 | D41: =IF($C$25=0,VLOOKUP($C$32,TS2L3MEM1CPU,4,FALSE),VLOOKUP($C$32,TS2L3MEM2CPU,4,FALSE)) -> [370-ADNF] | E41: =IF($C$25=0,VLOOKUP($C$32,TS2L3MEM1CPU,5,FALSE),VLOOKUP($C$32,TS2L3MEM2CPU,5,FALSE)) -> A9781929 | F41: =IF($C$25=0,VLOOKUP($C$32,TS2L3MEM1CPU,6,FALSE),VLOOKUP($C$32,TS2L3MEM2CPU,6,FALSE)) ->  | G41: =IF($C$25=0,VLOOKUP($C$32,TS2L3MEM1CPU,7,FALSE),VLOOKUP($C$32,TS2L3MEM2CPU,7,FALSE)) -> 0
B43: Sistema operativo preinstallato
B44: None | C44: =VLOOKUP($B$44,TS2L3OS,2,FALSE) ->  | D44: =VLOOKUP($B$44,TS2L3OS,3,FALSE) -> [619-ABVR] | E44: =VLOOKUP($B$44,TS2L3OS,4,FALSE) ->  | F44: =VLOOKUP($B$44,TS2L3OS,5,FALSE) ->  | G44: =VLOOKUP($B$44,TS2L3OS,6,FALSE) -> 0 | H44: =VLOOKUP($B$44,TS2L3OS,7,FALSE) -> 0 | I44: =IF(E44="",1,0) -> 1
B45: =IF($C$25=1,(VLOOKUP($B$44,TS2L3OS,8,FALSE)),"") ->  | C45: =IF($C$25=1,(VLOOKUP($B$44,TS2L3OS,9,FALSE)),"") ->  | D45: =IF($C$25=1,(VLOOKUP($B$44,TS2L3OS,10,FALSE)),"") ->  | E45: =IF($C$25=1,(VLOOKUP($B$44,TS2L3OS,11,FALSE)),"") ->  | F45: =IF($C$25=1,(VLOOKUP($B$44,TS2L3OS,12,FALSE)),"") ->  | G45: =IF($C$25=1,(VLOOKUP($B$44,TS2L3OS,13,FALSE)),"") ->  | H45: =IF($C$25=1,(VLOOKUP($B$44,TS2L3OS,14,FALSE)),0) -> 0
A47: =IF((I44*I48)=0,"","ERRORE: La selezione di licenze CAL senza il Sistema Operativo Microsoft Windows non è consentita.") ->  | B47: Client Access Licenses
B48: =IF($E$44>0,'Regole di configurazione'!A95,"") -> 1 Windows Server 2019 Device CALs (Standard or Datacenter),CUS | C48: 0 | D48: =IF($E$44>0,'Regole di configurazione'!C95,"") -> 0 | E48: =IF($E$44>0,'Regole di configurazione'!D95,"") -> 623-BBBX | F48: =IF($E$44>0,'Regole di configurazione'!E95,"") -> TS2L3-CALDEV | G48: =IF($E$44>0,'Regole di configurazione'!F95,0)*C48 -> 0 | H48: =IF($E$44>0,'Regole di configurazione'!G95,"") -> 0 | I48: =C48+C50 -> 0
B50: =IF($E$44>0,'Regole di configurazione'!A96,"") -> 1 Windows Server 2019 User CALs (Standard or Datacenter),CUS | C50: 0 | D50: =IF($E$44>0,'Regole di configurazione'!C96,"") -> 0 | E50: =IF($E$44>0,'Regole di configurazione'!D96,"") -> 623-BBCC | F50: =IF($E$44>0,'Regole di configurazione'!E96,"") -> TS2L3-CALUSER | G50: =IF($E$44>0,'Regole di configurazione'!F96,0)*C50 -> 0 | H50: =IF($E$44>0,'Regole di configurazione'!G96,"") -> 0
B52: Sistema operativo VMware
B53: Vmware vSphere Essentials Plus Kit
B54: None | C54: =VLOOKUP($B$54,TS2L3VMWARE1,2,FALSE) -> 1 | D54: =VLOOKUP($B$54,TS2L3VMWARE1,3,FALSE) ->  | E54: =VLOOKUP($B$54,TS2L3VMWARE1,4,FALSE) ->  | F54: =VLOOKUP($B$54,TS2L3VMWARE1,5,FALSE) ->  | G54: =VLOOKUP($B$54,TS2L3VMWARE1,6,FALSE) -> 0 | H54: =VLOOKUP($B$54,TS2L3VMWARE1,7,FALSE)*C54 -> 0
B55: VMware vCenter Server Standard
B56: None | C56: =VLOOKUP($B$56,TS2L3VMWARE2,2,FALSE) -> 1 | D56: =VLOOKUP($B$56,TS2L3VMWARE2,3,FALSE) ->  | E56: =VLOOKUP($B$56,TS2L3VMWARE2,4,FALSE) ->  | F56: =VLOOKUP($B$56,TS2L3VMWARE2,5,FALSE) ->  | G56: =VLOOKUP($B$56,TS2L3VMWARE2,6,FALSE) -> 0 | H56: =VLOOKUP($B$56,TS2L3VMWARE2,7,FALSE)*C56 -> 0
B57: Vmware vSphere Standard/Enterprise
B58: None | C58: =(VLOOKUP($B$58,TS2L3VMWARE3,2,FALSE))+C25 -> 1 | D58: =VLOOKUP($B$58,TS2L3VMWARE3,3,FALSE) ->  | E58: =VLOOKUP($B$58,TS2L3VMWARE3,4,FALSE) ->  | F58: =VLOOKUP($B$58,TS2L3VMWARE3,5,FALSE) ->  | G58: =VLOOKUP($B$58,TS2L3VMWARE3,6,FALSE) -> 0 | H58: =VLOOKUP($B$58,TS2L3VMWARE3,7,FALSE)*C58 -> 0
B59: VMware vSAN
B60: None | C60: =(VLOOKUP($B$60,TS2L3VMWARE4,2,FALSE))+C25 -> 1 | D60: =VLOOKUP($B$60,TS2L3VMWARE4,3,FALSE) ->  | E60: =VLOOKUP($B$60,TS2L3VMWARE4,4,FALSE) ->  | F60: =VLOOKUP($B$60,TS2L3VMWARE4,5,FALSE) ->  | G60: =VLOOKUP($B$60,TS2L3VMWARE4,6,FALSE) -> 0 | H60: =VLOOKUP($B$60,TS2L3VMWARE4,7,FALSE)*C60 -> 0
B62: Controller Dischi
B63: =B142 -> PERC H730P RAID Controller, 2Gb NV Cache, Adapter, Full Height | C63: =C142 -> 1 | D63: =D142 -> [405-AAMR] | E63: =E142 -> 405-AAMY
B65: Dischi rigidi (numero massimo totale 24)
A66: SAS 10K | B66: 600GB 10K RPM SAS 12Gbps 512n 2.5in Hot-plug Hard Drive | C66: 2 | D66: [400-ASGS] | E66: 400-AUNQ | F66: =IF(C66<=2,"","TS2L3-10K600") ->  | G66: =IF(C66<=2,0,(C66-2)*'Regole di configurazione'!F13) -> 0
B68: 1.2TB 10K RPM SAS 12Gbps 512n 2.5in Hot-plug Hard Drive | C68: 0 | D68: [400-ASHI] | E68: 400-ATJL | F68: =IF(C68=0,"","TS2L3-10K1200") ->  | G68: =C68*'Regole di configurazione'!F14 -> 0
B70: 1.8TB 10K RPM SAS 12Gbps 512e 2.5in Hot-plug Hard Drive | C70: 0 | D70: [400-ARXC] | E70: 400-ATJR | F70: =IF(C70=0,"","TS2L3-10K1800") ->  | G70: =C70*'Regole di configurazione'!F15 -> 0
B72: 2.4TB 10K RPM SAS 12Gbps 512e 2.5in Hot-plug Hard Drive NO VMWARE A20 | C72: 0 | E72: 400-AVBX | F72: =IF(C72=0,"","TS2L3-10K2400") ->  | H72: =C72*'Regole di configurazione'!G43 -> 0
A73: SSD
B74: SSD 480GB SAS MU 12Gbps 2.5in Hot-Plug A20 | C74: 0 | E74: 400-BCOD | F74: =IF(C74=0,"","TS2L3-SSDM480") ->  | H74: =C74*'Regole di configurazione'!G44 -> 0
B76: SSD 400GB SAS WI 12Gbps 2.5in Hot-plug Drive, 10 DWPD A20 | C76: 0 | E76: 400-ATGH | F76: =IF(C76=0,"","TS2L3-SSDW400") ->  | H76: =C76*'Regole di configurazione'!G45 -> 0
B78: SSD 1600GB SAS WI 12Gb 2.5in Hot-plug Drive, 10 DWPD A20 | C78: 0 | F78: =IF(C78=0,"","TS2L3-SSDW1600") ->  | H78: =C78*'Regole di configurazione'!G46 -> 0
B80: 960GB SSD SAS Read Intensive 12Gbps 512e 2.5in Hot-plug Drive, PM5-R, 1 DWPD, 1752 TBW | C80: 0 | D80: [400-BBPL] | E80: 400-ATLL | F80: =IF(C80=0,"","TS2L3-SSDR960") ->  | G80: =C80*'Regole di configurazione'!F16 -> 0
F81: =IF(C81=0,"","TS2L3-SSDR960") -> 
B82: SSD 960GB SAS Mixed Use 12Gbps 2.5in Hot-plug Drive A20 | C82: 0 | E82: 400-BCNN | H82: =C82*'Regole di configurazione'!G47 -> 0
B84: 1.92TB SSD SAS Read Intensive 12Gbps 512e 2.5in Hot-plug Drive, PM1633a | C84: 0 | D84: [400-ASFX] | E84: 400-ATND | F84: =IF(C84=0,"","TS2L3-SSDR1920") ->  | G84: =C84*'Regole di configurazione'!F17 -> 0
B86: DISCHI TOTALI | C86: =SUM(C66:C85) -> 2 | D86: =IF(C86>16,1,0) -> 0
B89: Dell 1.6TB, NVMe, Mixed Use Express Flash, 2.5 SFF | C89: 0 | F89: =IF(C89=0,"","TS2L3-NVME1600") ->  | H89: =C89*'Regole di configurazione'!G59 -> 0
B91: Dell 3.2TB, NVMe, Mixed Use Express Flash, 2.5 SFF | C91: 0 | F91: =IF(C91=0,"","TS2L3-NVME3200") ->  | H91: =C91*'Regole di configurazione'!G60 -> 0
B93: Dell 6.4TB, NVMe, Mixed Use Express Flash, 2.5 SFF | C93: 0 | F93: =IF(C93=0,"","TS2L3-NVME6400") ->  | H93: =C93*'Regole di configurazione'!G61 -> 0
B95: Dell 960GB NVMe, Data Center, Read Intensive SFF | C95: 0 | F95: =IF(C95=0,"","TS2L3-NVME960") ->  | H95: =C95*'Regole di configurazione'!G62 -> 0
A97: NVMe | B97: Dell 1TB, NVMe, Read Intensive Express Flash, 2.5 SFF | C97: 0 | F97: =IF(C97=0,"","TS2L3-NVME1000") ->  | H97: =C97*'Regole di configurazione'!G63 -> 0
B99: Dell 4TB, NVMe, Read Intensive Express Flash, 2.5 SFF | C99: 0 | F99: =IF(C99=0,"","TS2L3-NVME4000") ->  | H99: =C99*'Regole di configurazione'!G64 -> 0
B101: Dell 3.84TB NVMe, Data Center, Read Intensive SFF | C101: 0 | F101: =IF(C101=0,"","TS2L3-NVME3840") ->  | H101: =C101*'Regole di configurazione'!G65 -> 0
B103: Dell 375GB, NVMe, Ultra Performance Express Flash, 2.5 SFF | C103: 0 | F103: =IF(C103=0,"","TS2L3-NVME375") ->  | H103: =C103*'Regole di configurazione'!G66 -> 0
B105: NVMe TOTALI | C105: =SUM(C89:C104) -> 0 | D105: =IF(C105>8,1,0) -> 0
B108: NOTE sulla configurazione (CAMPO OBBLIGATORIO)
A109: =IF((D105+D86)=0,"","ERRORE: Totale n° di dischi superiore al consentito") ->  | B109: Specificare la configurazione RAID per l'installazione del Sistema Operativo, se richiesto. e/o inserire eventuali note. | E109: Specificare la configurazione RAID per l'installazione del Sistema Operativo, se richiesto. e/o inserire eventuali note. | F109: =IF(B109=E109,"ERRORE: Compilare il campo NOTE","") -> ERRORE: Compilare il campo NOTE
B111: Ventole
B112: 6 Standard Fans | C112: 1 | D112: [384-BBSU]
B114: Alimentatore
B115: Dual, Hot-plug, Redundant Power Supply (1+1), 1100W | C115: 1 | D115: [450-ADWM]
B117: Cavi di alimentazione
B118: Rack Power Cord 2M (C13/C14 10A) | C118: 2 | D118: [450-AADY]
B120: PCIe Riser
B121: =VLOOKUP($B$25,TS2L3CPU,15,FALSE) -> Riser Config 5, 4 x8, 3 x16 slots | C121: =VLOOKUP($B$25,TS2L3CPU,16,FALSE) -> 1 | D121: =VLOOKUP($B$25,TS2L3CPU,17,FALSE) -> [330-BBJD] | E121: =VLOOKUP($B$25,TS2L3CPU,18,FALSE) -> 330-BBMK 330-BBLS
B123: Modulo Doppia SD - Internal Dual SD Module (IDSDM)
B124: None | C124: =VLOOKUP(B124,TS2L3IDSDM,2,FALSE) -> 0 | D124: =VLOOKUP(B124,TS2L3IDSDM,3,FALSE) -> 0 | E124: =VLOOKUP(B124,TS2L3IDSDM,4,FALSE) -> 0 | F124: =VLOOKUP(B124,TS2L3IDSDM,5,FALSE) ->  | G124: =VLOOKUP(B124,TS2L3IDSDM,6,FALSE) -> 0 | H124: =VLOOKUP(B124,TS2L3IDSDM,7,FALSE) -> 0
B126: Embedded Systems Management
B127: iDRAC9,Enterprise | C127: 1 | D127: [385-BBKT]
B130: None
B132: Network Daughter Card
B133: Broadcom 5720 QP 1Gb Network Daughter Card | C133: 1 | D133: [540-BBBW]
B135: Additional Card for PCIe Slot 1 (Full height) (CPU 1)
B136: None | C136: =VLOOKUP(B136,TS2L3PCI1,2,FALSE) ->  | D136: =VLOOKUP(B136,TS2L3PCI1,3,FALSE) ->  | E136: =VLOOKUP(B136,TS2L3PCI1,4,FALSE) ->  | F136: =VLOOKUP(B136,TS2L3PCI1,5,FALSE) ->  | G136: =VLOOKUP(B136,TS2L3PCI1,6,FALSE) -> 0 | H136: =VLOOKUP(B136,TS2L3PCI1,7,FALSE) -> 0
B138: Additional Card for PCIe Slot 2 (Full height) (CPU 1)
B139: None | C139: =VLOOKUP(B139,TS2L3PCI2,2,FALSE) ->  | D139: =VLOOKUP(B139,TS2L3PCI2,3,FALSE) ->  | E139: =VLOOKUP(B139,TS2L3PCI2,4,FALSE) ->  | F139: =VLOOKUP(B139,TS2L3PCI2,5,FALSE) ->  | G139: =VLOOKUP(B139,TS2L3PCI2,6,FALSE) -> 0 | H139: =VLOOKUP(B139,TS2L3PCI2,7,FALSE) -> 0
B141: Additional Card for PCIe Slot 3 (Full height) (CPU 1)
B142: PERC H730P RAID Controller, 2Gb NV Cache, Adapter, Full Height | C142: =VLOOKUP(B142,TS2L3PCI3,2,FALSE) -> 1 | D142: =VLOOKUP(B142,TS2L3PCI3,3,FALSE) -> [405-AAMR] | E142: =VLOOKUP(B142,TS2L3PCI3,4,FALSE) -> 405-AAMY | F142: =VLOOKUP(B142,TS2L3PCI3,5,FALSE) ->  | G142: =VLOOKUP(B142,TS2L3PCI3,6,FALSE) -> 0 | H142: =VLOOKUP(B142,TS2L3PCI3,7,FALSE) -> 0
B144: Additional Card for PCIe Slot 4 (Full height) (CPU 2)
B145: None | C145: =IF(B145=TS2L3ASP,"",VLOOKUP(B145,TS2L3PCI4,2,FALSE)) ->  | D145: =IF(B145=TS2L3ASP,"",VLOOKUP(B145,TS2L3PCI4,3,FALSE)) ->  | E145: =IF(B145=TS2L3ASP,"",VLOOKUP(B145,TS2L3PCI4,4,FALSE)) ->  | F145: =IF(B145=TS2L3ASP,"",VLOOKUP(B145,TS2L3PCI4,5,FALSE)) ->  | G145: =IF(B145=TS2L3ASP,0,VLOOKUP(B145,TS2L3PCI4,6,FALSE)) -> 0 | H145: =IF(B145=TS2L3ASP,0,VLOOKUP(B145,TS2L3PCI4,7,FALSE)) -> 0
B147: Additional Card for PCIe Slot 5 (Full height) (CPU 2)
B148: None
B150: Additional Card for PCIe Slot 6 (Low height) (CPU 2)
B151: None | C151: =IF(B151=TS2L3ASP,"",VLOOKUP(B151,TS2L3PCI6,2,FALSE)) ->  | D151: =IF(B151=TS2L3ASP,"",VLOOKUP(B151,TS2L3PCI6,3,FALSE)) ->  | E151: =IF(B151=TS2L3ASP,"",VLOOKUP(B151,TS2L3PCI6,4,FALSE)) ->  | F151: =IF(B151=TS2L3ASP,"",VLOOKUP(B151,TS2L3PCI6,5,FALSE)) ->  | G151: =IF(B151=TS2L3ASP,0,VLOOKUP(B151,TS2L3PCI6,6,FALSE)) -> 0 | H151: =IF(B151=TS2L3ASP,0,VLOOKUP(B151,TS2L3PCI6,7,FALSE)) -> 0
B153: Additional Card for PCIe Slot 7 (Full height) (CPU 2) (BOSS controller card Slot)
B154: None | C154: =IF(B154=TS2L3ASP,"",VLOOKUP(B154,TS2L3PCI7,2,FALSE)) ->  | D154: =IF(B154=TS2L3ASP,"",VLOOKUP(B154,TS2L3PCI7,3,FALSE)) ->  | E154: =IF(B154=TS2L3ASP,"",VLOOKUP(B154,TS2L3PCI7,4,FALSE)) ->  | F154: =IF(B154=TS2L3ASP,"",VLOOKUP(B154,TS2L3PCI7,5,FALSE)) ->  | G154: =IF(B154=TS2L3ASP,0,VLOOKUP(B154,TS2L3PCI7,6,FALSE)) -> 0 | H154: =IF(B154=TS2L3ASP,0,VLOOKUP(B154,TS2L3PCI7,7,FALSE)) -> 0
B156: Additional Card for PCIe Slot 8 (Full height) (CPU 2)
B157: None | C157: =IF(B157=TS2L3ASP,"",VLOOKUP(B157,TS2L3PCI8,2,FALSE)) ->  | D157: =IF(B157=TS2L3ASP,"",VLOOKUP(B157,TS2L3PCI8,3,FALSE)) ->  | E157: =IF(B157=TS2L3ASP,"",VLOOKUP(B157,TS2L3PCI8,4,FALSE)) ->  | F157: =IF(B157=TS2L3ASP,"",VLOOKUP(B157,TS2L3PCI8,5,FALSE)) ->  | G157: =IF(B157=TS2L3ASP,0,VLOOKUP(B157,TS2L3PCI8,6,FALSE)) -> 0 | H157: =IF(B157=TS2L3ASP,0,VLOOKUP(B157,TS2L3PCI8,7,FALSE)) -> 0
B159: Bezel
B160: No Bezel | C160: =VLOOKUP($B$160,TS2L3BEZEL,2,FALSE) -> 0 | D160: =VLOOKUP($B$160,TS2L3BEZEL,3,FALSE) -> [350-BBBW] | E160: =VLOOKUP($B$160,TS2L3BEZEL,4,FALSE) -> 0 | F160: =VLOOKUP($B$160,TS2L3BEZEL,5,FALSE) ->  | G160: =VLOOKUP($B$160,TS2L3BEZEL,6,FALSE) -> 0 | H160: =VLOOKUP($B$160,TS2L3BEZEL,7,FALSE) -> 0
B161: MOD,TRAY,LGG,R7425 | C161: 1 | D161: [350-BBMF]
B163: Quick Sync
B164: No Quick Sync | C164: 1 | D164: [350-BBJV]
B166: Rack Rails
B167: =VLOOKUP($B$160,TS2L3BEZEL,8,FALSE) -> ReadyRails™ Sliding Rails Without Cable Management Arm | C167: =VLOOKUP($B$160,TS2L3BEZEL,9,FALSE) -> 1 | D167: =VLOOKUP($B$160,TS2L3BEZEL,10,FALSE) -> [770-BBBQ] | E167: =VLOOKUP($B$160,TS2L3BEZEL,11,FALSE) -> 0
B169: Password
B170: iDRAC,Factory Generated Password | C170: 1 | D170: [379-BCSF]
B172: Group Manager
B173: iDRAC Group Manager, Enabled | C173: 1 | D173: [379-BCQV]
B175: Internal Optical Drive
B176: No Internal Optical Drive for 12/24 HD Chassis | C176: 1 | D176: [429-AAIQ]
B178: Dell Services: Deployment Services
B179: No Installation Service Selected (Contact Sales rep for more details) | C179: 1 | D179: [683-11870]
B181: Channel only - Support Extension
B182: Channel 39M Basic Warranty - Next Business Day | C182: 1 | D182: [723-41450]
B184: System Documentation
B185: No Systems Documentation, No OpenManage DVD Kit | C185: 1 | D185: [631-AACK]
B187: Shipping Material
B188: PowerEdge R7425 Shipping Material | C188: 1 | D188: [343-BBHK]
B190: Direct Attach Cable
B191: 5 x Dell Networking, Cable, SFP+ to SFP+, 10GbE, Copper Twinax DAC, 3 Meter A20 | C191: 0 | E191: 470-AAVJ | F191: =IF(C191=0,"","TS2L3-5XDAC10M3") ->  | H191: ='Regole di configurazione'!G49*C191 -> 0
B193: 5 x Dell Networking Cable, 100GbE QSFP28 to QSFP28,Passive Copper DAC, 2 Meter A20 | C193: 0 | E193: 470-ABQG | F193: =IF(C193=0,"","TS2L3-5XDAC100M2") ->  | H193: ='Regole di configurazione'!G50*C193 -> 0
B195: 5 x Dell Networking Cable,100GbE QSFP28 to QSFP28, Passive Copper DAC, 3 Meter A20 | C195: 0 | E195: 470-ABQE | F195: =IF(C195=0,"","TS2L3-5XDAC100M3") ->  | H195: ='Regole di configurazione'!G51*C195 -> 0
B197: Cavi rj45
B198: Cavo Rete UTP cat. 5e 3 metri | C198: 5 | E198: ROS1403/G | F198: =IF(C198=0,"","TS2L3-3MRJ45") -> TS2L3-3MRJ45 | H198: =2*C198 -> 10
B200: Estenzione di Garanzia
B201: None | C201: =VLOOKUP(B201,TS2L3WARRANTY,2,FALSE) ->  | D201: =VLOOKUP(B201,TS2L3WARRANTY,3,FALSE) ->  | E201: =VLOOKUP(B201,TS2L3WARRANTY,4,FALSE) ->  | F201: =VLOOKUP(B201,TS2L3WARRANTY,5,FALSE) ->  | G201: =VLOOKUP(B201,TS2L3WARRANTY,6,FALSE) -> 0

Sheet Lotto3_R7425(GPU DW)
B1: TOTALE PRODOTTI CONVENZIONE | C1: =SUM(G13:G194)*$C$10 -> 0 | F1: =IF(I1+I2=0,(C1+C2),"ERRORE VERIFICARE LA CONFIGURAZIONE") -> 0 | I1: =IF(A47="",0,1) -> 0
B2: TOTALE ARTICOLI 20% | C2: =SUM(H13:H194)*$C$10 -> 0 | I2: =IF(A89="",0,1) -> 0
B3: Quantità Server | F3: =Riepilogo!T6 -> ver. 3.3
A5: POWEREDGE R7425 GPU Ready (3GPU max)
B10: Quantità: | C10: =C3 -> 0
B12: Modello Server
B13: PowerEdge R7425 Server | C13: 1 | D13: [210-APFK] | F13: TS2L3-SRV | G13: 2087
B15: Configurazione dello chassis
B16: Chassis w/ up to 24 x 2.5" SAS/SATA Hard Drives for 2CPU Configuration with GPU capable, Risers 4 | C16: 1 | D16: [321-BDWP] | F16: TS2L3-GPUKITDW | H16: ='Codici&PrezzixRiepilogo'!D93 -> 254
B18: Trusted Platform Module
B19: No Trusted Platform Module | C19: 1 | D19: [461-AADZ]
B21: Processore
B22: AMD EPYC™ 7301 2.2GHz/2.7GHz, 16C/32T, 64M Cache (155W/170W) DDR4-2400/2666 | C22: 1 | D22: [338-BNBZ]
B24: Processore aggiuntivo
B25: AMD EPYC™ 7301 2.2GHz/2.7GHz, 16C/32T, 64M Cache (155W/170W) DDR4-2400/2666 | C25: =VLOOKUP($B$25,TS2L3CPU,2,FALSE) -> 1 | D25: =VLOOKUP($B$25,TS2L3CPU,3,FALSE) -> [374-BBTR] | E25: =VLOOKUP($B$25,TS2L3CPU,4,FALSE) -> 338-BNCI | F25: =VLOOKUP($B$25,TS2L3CPU,5,FALSE) -> TS2L3-CPU | G25: =VLOOKUP($B$25,TS2L3CPU,6,FALSE) -> 700 | H25: =VLOOKUP($B$25,TS2L3CPU,7,FALSE) -> 
B27: Configurazione Termica del Processore
B28: =VLOOKUP($B$25,TS2L3CPU,8,FALSE) -> Standard Heatsinks, below 180W CPU | C28: =VLOOKUP($B$25,TS2L3CPU,9,FALSE) -> 2 | D28: =VLOOKUP($B$25,TS2L3CPU,10,FALSE) -> [412-AALN] | E28: =VLOOKUP($B$25,TS2L3CPU,11,FALSE) -> 412-AALJ
B29: =VLOOKUP($B$25,TS2L3CPU,12,FALSE) ->  | C29: =VLOOKUP($B$25,TS2L3CPU,13,FALSE) ->  | D29: =VLOOKUP($B$25,TS2L3CPU,14,FALSE) -> 
B32: Memoria Totale in GB | C32: 256 (DIMM 32GB)
B34: Tipo di configurazione memoria
B35: Performance Optimized | C35: 1 | D35: [370-AAIP]
B37: Tipo e velocità della memoria DIMM
B38: =IF($C$25=0,VLOOKUP($C$32,TS2L3MEM1CPU,9,FALSE),VLOOKUP($C$32,TS2L3MEM2CPU,9,FALSE)) -> 2666MT/s RDIMMs | C38: =IF($C$25=0,VLOOKUP($C$32,TS2L3MEM1CPU,10,FALSE),VLOOKUP($C$32,TS2L3MEM2CPU,10,FALSE)) -> 1 | D38: =IF($C$25=0,VLOOKUP($C$32,TS2L3MEM1CPU,11,FALSE),VLOOKUP($C$32,TS2L3MEM2CPU,11,FALSE)) -> [370-ADNU]
B40: Capacità di memoria
B41: =IF($C$25=0,VLOOKUP($C$32,TS2L3MEM1CPU,2,FALSE),VLOOKUP($C$32,TS2L3MEM2CPU,2,FALSE)) -> 32GB RDIMM, 2666MT/s, Dual Rank | C41: =IF($C$25=0,VLOOKUP($C$32,TS2L3MEM1CPU,3,FALSE),VLOOKUP($C$32,TS2L3MEM2CPU,3,FALSE)) -> 8 | D41: =IF($C$25=0,VLOOKUP($C$32,TS2L3MEM1CPU,4,FALSE),VLOOKUP($C$32,TS2L3MEM2CPU,4,FALSE)) -> [370-ADNF] | E41: =IF($C$25=0,VLOOKUP($C$32,TS2L3MEM1CPU,5,FALSE),VLOOKUP($C$32,TS2L3MEM2CPU,5,FALSE)) -> A9781929 | F41: =IF($C$25=0,VLOOKUP($C$32,TS2L3MEM1CPU,6,FALSE),VLOOKUP($C$32,TS2L3MEM2CPU,6,FALSE)) -> TS2L3-RAM32 | G41: =IF($C$25=0,VLOOKUP($C$32,TS2L3MEM1CPU,7,FALSE),VLOOKUP($C$32,TS2L3MEM2CPU,7,FALSE)) -> 2082
B43: Sistema operativo preinstallato
B44: None | C44: =VLOOKUP($B$44,TS2L3OS,2,FALSE) ->  | D44: =VLOOKUP($B$44,TS2L3OS,3,FALSE) -> [619-ABVR] | E44: =VLOOKUP($B$44,TS2L3OS,4,FALSE) ->  | F44: =VLOOKUP($B$44,TS2L3OS,5,FALSE) ->  | G44: =VLOOKUP($B$44,TS2L3OS,6,FALSE) -> 0 | H44: =VLOOKUP($B$44,TS2L3OS,7,FALSE) -> 0 | I44: =IF(E44=0,1,0) -> 0
B45: =IF($C$25=1,(VLOOKUP($B$44,TS2L3OS,8,FALSE)),"") ->  | C45: =IF($C$25=1,(VLOOKUP($B$44,TS2L3OS,9,FALSE)),"") ->  | D45: =IF($C$25=1,(VLOOKUP($B$44,TS2L3OS,10,FALSE)),"") ->  | E45: =IF($C$25=1,(VLOOKUP($B$44,TS2L3OS,11,FALSE)),"") ->  | F45: =IF($C$25=1,(VLOOKUP($B$44,TS2L3OS,12,FALSE)),"") ->  | G45: =IF($C$25=1,(VLOOKUP($B$44,TS2L3OS,13,FALSE)),"") ->  | H45: =IF($C$25=1,(VLOOKUP($B$44,TS2L3OS,14,FALSE)),0) -> 0
A47: =IF((I44*I48)=0,"","ERRORE: La selezione di licenze CAL senza il Sistema Operativo Microsoft Windows non è consentita.") ->  | B47: Client Access Licenses
B48: =IF($E$44>0,'Regole di configurazione'!A95,"") -> 1 Windows Server 2019 Device CALs (Standard or Datacenter),CUS | C48: 0 | D48: =IF($E$44>0,'Regole di configurazione'!C95,"") -> 0 | E48: =IF($E$44>0,'Regole di configurazione'!D95,"") -> 623-BBBX | F48: =IF($E$44>0,'Regole di configurazione'!E95,"") -> TS2L3-CALDEV | G48: =IF($E$44>0,'Regole di configurazione'!F95,0)*C48 -> 0 | H48: =IF($E$44>0,'Regole di configurazione'!G95,"") -> 0 | I48: =C48+C50 -> 0
B50: =IF($E$44>0,'Regole di configurazione'!A96,"") -> 1 Windows Server 2019 User CALs (Standard or Datacenter),CUS | C50: 0 | D50: =IF($E$44>0,'Regole di configurazione'!C96,"") -> 0 | E50: =IF($E$44>0,'Regole di configurazione'!D96,"") -> 623-BBCC | F50: =IF($E$44>0,'Regole di configurazione'!E96,"") -> TS2L3-CALUSER | G50: =IF($E$44>0,'Regole di configurazione'!F96,0)*C50 -> 0 | H50: =IF($E$44>0,'Regole di configurazione'!G96,"") -> 0
B52: Sistema operativo VMware
B53: Vmware vSphere Essentials Plus Kit
B54: None | C54: =VLOOKUP($B$54,TS2L3VMWARE1,2,FALSE) -> 1 | D54: =VLOOKUP($B$54,TS2L3VMWARE1,3,FALSE) ->  | E54: =VLOOKUP($B$54,TS2L3VMWARE1,4,FALSE) ->  | F54: =VLOOKUP($B$54,TS2L3VMWARE1,5,FALSE) ->  | G54: =VLOOKUP($B$54,TS2L3VMWARE1,6,FALSE) -> 0 | H54: =VLOOKUP($B$54,TS2L3VMWARE1,7,FALSE)*C54 -> 0
B55: VMware vCenter Server Standard
B56: None | C56: =VLOOKUP($B$56,TS2L3VMWARE2,2,FALSE) -> 1 | D56: =VLOOKUP($B$56,TS2L3VMWARE2,3,FALSE) ->  | E56: =VLOOKUP($B$56,TS2L3VMWARE2,4,FALSE) ->  | F56: =VLOOKUP($B$56,TS2L3VMWARE2,5,FALSE) ->  | G56: =VLOOKUP($B$56,TS2L3VMWARE2,6,FALSE) -> 0 | H56: =VLOOKUP($B$56,TS2L3VMWARE2,7,FALSE)*C56 -> 0
B57: Vmware vSphere Standard/Enterprise
B58: None | C58: =(VLOOKUP($B$58,TS2L3VMWARE3,2,FALSE))+C25 -> 1 | D58: =VLOOKUP($B$58,TS2L3VMWARE3,3,FALSE) ->  | E58: =VLOOKUP($B$58,TS2L3VMWARE3,4,FALSE) ->  | F58: =VLOOKUP($B$58,TS2L3VMWARE3,5,FALSE) ->  | G58: =VLOOKUP($B$58,TS2L3VMWARE3,6,FALSE) -> 0 | H58: =VLOOKUP($B$58,TS2L3VMWARE3,7,FALSE)*C58 -> 0
B59: VMware vSAN
B60: None | C60: =(VLOOKUP($B$60,TS2L3VMWARE4,2,FALSE))+C25 -> 1 | D60: =VLOOKUP($B$60,TS2L3VMWARE4,3,FALSE) ->  | E60: =VLOOKUP($B$60,TS2L3VMWARE4,4,FALSE) ->  | F60: =VLOOKUP($B$60,TS2L3VMWARE4,5,FALSE) ->  | G60: =VLOOKUP($B$60,TS2L3VMWARE4,6,FALSE) -> 0 | H60: =VLOOKUP($B$60,TS2L3VMWARE4,7,FALSE)*C60 -> 0
B62: Controller Dischi
B63: =B122 -> PERC H730P RAID Controller, 2Gb NV Cache, Adapter, Full Height | C63: =C122 -> 1 | D63: =D122 -> [405-AAMR] | E63: =E122 -> 405-AAMY
B65: Dischi rigidi (numero massimo totale 24)
A66: SAS 10K | B66: 600GB 10K RPM SAS 12Gbps 512n 2.5in Hot-plug Hard Drive | C66: 2 | D66: [400-ASGS] | E66: 400-AUNQ | F66: =IF(C66<=2,"","TS2L3-10K600") ->  | G66: =IF(C66<=2,0,(C66-2)*'Regole di configurazione'!F13) -> 0
B68: 1.2TB 10K RPM SAS 12Gbps 512n 2.5in Hot-plug Hard Drive | C68: 0 | D68: [400-ASHI] | E68: 400-ATJL | F68: =IF(C68=0,"","TS2L3-10K1200") ->  | G68: =C68*'Regole di configurazione'!F14 -> 0
B70: 1.8TB 10K RPM SAS 12Gbps 512e 2.5in Hot-plug Hard Drive | C70: 0 | D70: [400-ARXC] | E70: 400-ATJR | F70: =IF(C70=0,"","TS2L3-10K1800") ->  | G70: =C70*'Regole di configurazione'!F15 -> 0
B72: 2.4TB 10K RPM SAS 12Gbps 512e 2.5in Hot-plug Hard Drive NO VMWARE A20 | C72: 0 | E72: 400-AVBX | F72: =IF(C72=0,"","TS2L3-10K2400") ->  | H72: =C72*'Regole di configurazione'!G43 -> 0
A73: SSD
B74: SSD 480GB SAS MU 12Gbps 2.5in Hot-Plug A20 | C74: 0 | E74: 400-BCOD | F74: =IF(C74=0,"","TS2L3-SSDM480") ->  | H74: =C74*'Regole di configurazione'!G44 -> 0
B76: SSD 400GB SAS WI 12Gbps 2.5in Hot-plug Drive, 10 DWPD A20 | C76: 0 | E76: 400-ATGH | F76: =IF(C76=0,"","TS2L3-SSDW400") ->  | H76: =C76*'Regole di configurazione'!G45 -> 0
B78: SSD 1600GB SAS WI 12Gb 2.5in Hot-plug Drive, 10 DWPD A20 | C78: 0 | F78: =IF(C78=0,"","TS2L3-SSDW1600") ->  | H78: =C78*'Regole di configurazione'!G46 -> 0
B80: 960GB SSD SAS Read Intensive 12Gbps 512e 2.5in Hot-plug Drive, PM5-R, 1 DWPD, 1752 TBW | C80: 0 | D80: [400-BBPL] | E80: 400-ATLL | F80: =IF(C80=0,"","TS2L3-SSDR960") ->  | G80: =C80*'Regole di configurazione'!F16 -> 0
F81: =IF(C81=0,"","TS2L3-SSDR960") -> 
B82: SSD 960GB SAS Mixed Use 12Gbps 2.5in Hot-plug Drive A20 | C82: 0 | E82: 400-BCNN | H82: =C82*'Regole di configurazione'!G47 -> 0
B84: 1.92TB SSD SAS Read Intensive 12Gbps 512e 2.5in Hot-plug Drive, PM1633a | C84: 0 | D84: [400-ASFX] | E84: 400-ATND | F84: =IF(C84=0,"","TS2L3-SSDR1920") ->  | G84: =C84*'Regole di configurazione'!F17 -> 0
B86: DISCHI TOTALI | C86: =SUM(C66:C85) -> 2
B88: NOTE sulla configurazione (CAMPO OBBLIGATORIO)
A89: =IF(C86<=24,"","ERRORE: Totale n° di dischi superiore al consentito") ->  | B89: Specificare la configurazione RAID per l'installazione del Sistema Operativo, se richiesto. e/o inserire eventuali note. | E89: Specificare la configurazione RAID per l'installazione del Sistema Operativo, se richiesto. e/o inserire eventuali note. | F89: =IF(B89=E89,"ERRORE: Compilare il campo NOTE","") -> ERRORE: Compilare il campo NOTE
B91: Ventole
B92: 6 Performance Fans | C92: 1 | D92: [384-BBST]
B94: Alimentatore
B95: Dual, Hot-plug, Power Supply, 2000W, C19/C20 Power Cord Required | C95: 1 | D95: [450-AENU] | F95: TS2L3-2000W | H95: 595
B97: Cavi di alimentazione
B98: C19 to C20, PDU Style, 2.5M Power Cord | C98: 2 | D98: [450-AEJI]
B100: PCIe Riser
B101: Riser Config 4, 2 x8, 4 x16 slots | C101: =VLOOKUP($B$25,TS2L3CPU,16,FALSE) -> 1 | D101: [330-BBJC] | E101: 330-BBLX 330-BBMK 330-BBLS
B103: Modulo Doppia SD - Internal Dual SD Module (IDSDM)
B104: None | C104: =VLOOKUP(B104,TS2L3IDSDM,2,FALSE) -> 0 | D104: =VLOOKUP(B104,TS2L3IDSDM,3,FALSE) -> 0 | E104: =VLOOKUP(B104,TS2L3IDSDM,4,FALSE) -> 0 | F104: =VLOOKUP(B104,TS2L3IDSDM,5,FALSE) ->  | G104: =VLOOKUP(B104,TS2L3IDSDM,6,FALSE) -> 0 | H104: =VLOOKUP(B104,TS2L3IDSDM,7,FALSE) -> 0
B106: Embedded Systems Management
B107: iDRAC9,Enterprise | C107: 1 | D107: [385-BBKT]
B112: Network Daughter Card
B113: Broadcom 5720 QP 1Gb Network Daughter Card | C113: 1 | D113: [540-BBBW]
B115: Additional Card for PCIe Slot 1 (Full height) (CPU 1) GPU
B116: None | C116: =VLOOKUP(B116,TS2L3PCIGPU,2,FALSE) ->  | D116: =VLOOKUP(B116,TS2L3PCIGPU,3,FALSE) ->  | E116: =VLOOKUP(B116,TS2L3PCIGPU,4,FALSE) ->  | F116: =VLOOKUP(B116,TS2L3PCIGPU,5,FALSE) ->  | G116: =VLOOKUP(B116,TS2L3PCIGPU,6,FALSE) -> 0 | H116: =VLOOKUP(B116,TS2L3PCIGPU,7,FALSE) -> 0
B118: Additional Card for PCIe Slot 2 (Full height) (CPU 1)
B119: None | G119: =VLOOKUP(B119,TS2L3PCI2,6,FALSE) -> 0 | H119: =VLOOKUP(B119,TS2L3PCI2,7,FALSE) -> 0
B121: Additional Card for PCIe Slot 3 (Full height) (CPU 1)
B122: PERC H730P RAID Controller, 2Gb NV Cache, Adapter, Full Height | C122: =VLOOKUP(B122,TS2L3PCI3,2,FALSE) -> 1 | D122: =VLOOKUP(B122,TS2L3PCI3,3,FALSE) -> [405-AAMR] | E122: =VLOOKUP(B122,TS2L3PCI3,4,FALSE) -> 405-AAMY | F122: =VLOOKUP(B122,TS2L3PCI3,5,FALSE) ->  | G122: =VLOOKUP(B122,TS2L3PCI3,6,FALSE) -> 0 | H122: =VLOOKUP(B122,TS2L3PCI3,7,FALSE) -> 0
B124: Additional Card for PCIe Slot 4 (Full height) (CPU 2) GPU
B125: None | C125: =IF(B125=TS2L3ASP,"",VLOOKUP(B125,TS2L3PCIGPU,2,FALSE)) ->  | D125: =IF(B125=TS2L3ASP,"",VLOOKUP(B125,TS2L3PCIGPU,3,FALSE)) ->  | E125: =IF(B125=TS2L3ASP,"",VLOOKUP(B125,TS2L3PCIGPU,4,FALSE)) ->  | F125: =IF(B125=TS2L3ASP,"",VLOOKUP(B125,TS2L3PCIGPU,5,FALSE)) ->  | G125: =IF(B125=TS2L3ASP,0,VLOOKUP(B125,TS2L3PCIGPU,6,FALSE)) -> 0 | H125: =IF(B125=TS2L3ASP,0,VLOOKUP(B125,TS2L3PCIGPU,7,FALSE)) -> 0
B127: Additional Card for PCIe Slot 5 (Full height) (CPU 2)
B128: None
B130: Additional Card for PCIe Slot 6 (Low height) (CPU 2)
B131: None | C131: =IF(B131=TS2L3ASP,"",VLOOKUP(B131,TS2L3PCI6,2,FALSE)) ->  | D131: =IF(B131=TS2L3ASP,"",VLOOKUP(B131,TS2L3PCI6,3,FALSE)) ->  | E131: =IF(B131=TS2L3ASP,"",VLOOKUP(B131,TS2L3PCI6,4,FALSE)) ->  | F131: =IF(B131=TS2L3ASP,"",VLOOKUP(B131,TS2L3PCI6,5,FALSE)) ->  | G131: =IF(B131=TS2L3ASP,0,VLOOKUP(B131,TS2L3PCI6,6,FALSE)) -> 0 | H131: =IF(B131=TS2L3ASP,0,VLOOKUP(B131,TS2L3PCI6,7,FALSE)) -> 0
B133: Additional Card for PCIe Slot 7 (Full height) (CPU 2) (BOSS controller card Slot)
B134: None | C134: =IF(B134=TS2L3ASP,"",VLOOKUP(B134,TS2L3PCI7,2,FALSE)) ->  | D134: =IF(B134=TS2L3ASP,"",VLOOKUP(B134,TS2L3PCI7,3,FALSE)) ->  | E134: =IF(B134=TS2L3ASP,"",VLOOKUP(B134,TS2L3PCI7,4,FALSE)) ->  | F134: =IF(B134=TS2L3ASP,"",VLOOKUP(B134,TS2L3PCI7,5,FALSE)) ->  | G134: =IF(B134=TS2L3ASP,0,VLOOKUP(B134,TS2L3PCI7,6,FALSE)) -> 0 | H134: =IF(B134=TS2L3ASP,0,VLOOKUP(B134,TS2L3PCI7,7,FALSE)) -> 0
B136: Additional Card for PCIe Slot 8 (Full height) (CPU 2) GPU
B137: None | C137: =IF(B137=TS2L3ASP,"",VLOOKUP(B137,TS2L3PCIGPU,2,FALSE)) ->  | D137: =IF(B137=TS2L3ASP,"",VLOOKUP(B137,TS2L3PCIGPU,3,FALSE)) ->  | E137: =IF(B137=TS2L3ASP,"",VLOOKUP(B137,TS2L3PCIGPU,4,FALSE)) ->  | F137: =IF(B137=TS2L3ASP,"",VLOOKUP(B137,TS2L3PCIGPU,5,FALSE)) ->  | G137: =IF(B137=TS2L3ASP,0,VLOOKUP(B137,TS2L3PCIGPU,6,FALSE)) -> 0 | H137: =IF(B137=TS2L3ASP,0,VLOOKUP(B137,TS2L3PCIGPU,7,FALSE)) -> 0
B139: Bezel
B140: No Bezel | C140: =VLOOKUP($B$140,TS2L3BEZEL,2,FALSE) -> 0 | D140: =VLOOKUP($B$140,TS2L3BEZEL,3,FALSE) -> [350-BBBW] | E140: =VLOOKUP($B$140,TS2L3BEZEL,4,FALSE) -> 0 | F140: =VLOOKUP($B$140,TS2L3BEZEL,5,FALSE) ->  | G140: =VLOOKUP($B$140,TS2L3BEZEL,6,FALSE) -> 0 | H140: =VLOOKUP($B$140,TS2L3BEZEL,7,FALSE) -> 0
B141: MOD,TRAY,LGG,R7425 | C141: 1 | D141: [350-BBMF]
B143: Quick Sync
B144: No Quick Sync | C144: 1 | D144: [350-BBJV]
B146: Rack Rails
B147: =VLOOKUP($B$140,TS2L3BEZEL,8,FALSE) -> ReadyRails™ Sliding Rails Without Cable Management Arm | C147: =VLOOKUP($B$140,TS2L3BEZEL,9,FALSE) -> 1 | D147: =VLOOKUP($B$140,TS2L3BEZEL,10,FALSE) -> [770-BBBQ] | E147: =VLOOKUP($B$140,TS2L3BEZEL,11,FALSE) -> 0
B149: Password
B150: iDRAC,Factory Generated Password | C150: 1 | D150: [379-BCSF]
B152: Group Manager
B153: iDRAC Group Manager, Enabled | C153: 1 | D153: [379-BCQV]
B155: Internal Optical Drive
B156: No Internal Optical Drive for 12/24 HD Chassis | C156: 1 | D156: [429-AAIQ]
B158: Dell Services: Deployment Services
B159: No Installation Service Selected (Contact Sales rep for more details) | C159: 1 | D159: [683-11870]
B161: Channel only - Support Extension
B162: Channel 39M Basic Warranty - Next Business Day | C162: 1 | D162: [723-41450]
B164: System Documentation
B165: No Systems Documentation, No OpenManage DVD Kit | C165: 1 | D165: [631-AACK]
B167: Shipping Material
B168: PowerEdge R7425 Shipping Material | C168: 1 | D168: [343-BBHK]
B170: Direct Attach Cable
B171: 5 x Dell Networking, Cable, SFP+ to SFP+, 10GbE, Copper Twinax DAC, 3 Meter A20 | C171: 0 | E171: 470-AAVJ | F171: =IF(C171=0,"","TS2L3-5XDAC10M3") ->  | H171: ='Regole di configurazione'!G49*C171 -> 0
B173: 5 x Dell Networking Cable, 100GbE QSFP28 to QSFP28,Passive Copper DAC, 2 Meter A20 | C173: 0 | E173: 470-ABQG | F173: =IF(C173=0,"","TS2L3-5XDAC100M2") ->  | H173: ='Regole di configurazione'!G50*C173 -> 0
B175: 5 x Dell Networking Cable,100GbE QSFP28 to QSFP28, Passive Copper DAC, 3 Meter A20 | C175: 0 | E175: 470-ABQE | F175: =IF(C175=0,"","TS2L3-5XDAC100M3") ->  | H175: ='Regole di configurazione'!G51*C175 -> 0
B177: Cavi rj45
B178: Cavo Rete UTP cat. 5e 3 metri | C178: 5 | E178: ROS1403/G | F178: =IF(C178=0,"","TS2L3-3MRJ45") -> TS2L3-3MRJ45 | H178: =2*C178 -> 10
B180: Estenzione di Garanzia
B181: None | C181: =VLOOKUP(B181,TS2L3WARRANTY,2,FALSE) ->  | D181: =VLOOKUP(B181,TS2L3WARRANTY,3,FALSE) ->  | E181: =VLOOKUP(B181,TS2L3WARRANTY,4,FALSE) ->  | F181: =VLOOKUP(B181,TS2L3WARRANTY,5,FALSE) ->  | G181: =VLOOKUP(B181,TS2L3WARRANTY,6,FALSE) -> 0
B183: Warranty Upgrades - Non-Std/Local POS
B184: CSTM CONSIP - 39M Onsite Labor Support for CRU for Servers with Basic Warranty | C184: 1 | D184: [681-24467]

Sheet Lotto3_R7425(GPU SW)
B1: TOTALE PRODOTTI CONVENZIONE | C1: =SUM(G13:G191)*$C$10 -> 0 | F1: =IF(I1+I2=0,(C1+C2),"ERRORE VERIFICARE LA CONFIGURAZIONE") -> 0 | I1: =IF(A47="",0,1) -> 0
B2: TOTALE ARTICOLI 20% | C2: =SUM(H13:H191)*$C$10 -> 0 | I2: =IF(A89="",0,1) -> 0
B3: Quantità Server | F3: =Riepilogo!T6 -> ver. 3.3
A5: POWEREDGE R7425 GPU Ready (5GPU max)
B10: Quantità: | C10: =C3 -> 0
B12: Modello Server
B13: PowerEdge R7425 Server | C13: 1 | D13: [210-APFK] | F13: TS2L3-SRV | G13: 2087
B15: Configurazione dello chassis
B16: Chassis w/ up to 24 x 2.5" SAS/SATA Hard Drives for 2CPU Configuration with GPU capable, Risers 6 | C16: 1 | D16: [321-BDWP] | F16: TS2L3-GPUKITSW | H16: ='Codici&PrezzixRiepilogo'!D92 -> 287
B18: Trusted Platform Module
B19: No Trusted Platform Module | C19: 1 | D19: [461-AADZ]
B21: Processore
B22: AMD EPYC™ 7301 2.2GHz/2.7GHz, 16C/32T, 64M Cache (155W/170W) DDR4-2400/2666 | C22: 1 | D22: [338-BNBZ]
B24: Processore aggiuntivo
B25: AMD EPYC™ 7301 2.2GHz/2.7GHz, 16C/32T, 64M Cache (155W/170W) DDR4-2400/2666 | C25: =VLOOKUP($B$25,TS2L3CPU,2,FALSE) -> 1 | D25: =VLOOKUP($B$25,TS2L3CPU,3,FALSE) -> [374-BBTR] | E25: =VLOOKUP($B$25,TS2L3CPU,4,FALSE) -> 338-BNCI | F25: =VLOOKUP($B$25,TS2L3CPU,5,FALSE) -> TS2L3-CPU | G25: =VLOOKUP($B$25,TS2L3CPU,6,FALSE) -> 700 | H25: =VLOOKUP($B$25,TS2L3CPU,7,FALSE) -> 
B27: Configurazione Termica del Processore
B28: =VLOOKUP($B$25,TS2L3CPU,8,FALSE) -> Standard Heatsinks, below 180W CPU | C28: =VLOOKUP($B$25,TS2L3CPU,9,FALSE) -> 2 | D28: =VLOOKUP($B$25,TS2L3CPU,10,FALSE) -> [412-AALN] | E28: =VLOOKUP($B$25,TS2L3CPU,11,FALSE) -> 412-AALJ
B29: =VLOOKUP($B$25,TS2L3CPU,12,FALSE) ->  | C29: =VLOOKUP($B$25,TS2L3CPU,13,FALSE) ->  | D29: =VLOOKUP($B$25,TS2L3CPU,14,FALSE) -> 
B32: Memoria Totale in GB | C32: 256 (DIMM 32GB)
B34: Tipo di configurazione memoria
B35: Performance Optimized | C35: 1 | D35: [370-AAIP]
B37: Tipo e velocità della memoria DIMM
B38: =IF($C$25=0,VLOOKUP($C$32,TS2L3MEM1CPU,9,FALSE),VLOOKUP($C$32,TS2L3MEM2CPU,9,FALSE)) -> 2666MT/s RDIMMs | C38: =IF($C$25=0,VLOOKUP($C$32,TS2L3MEM1CPU,10,FALSE),VLOOKUP($C$32,TS2L3MEM2CPU,10,FALSE)) -> 1 | D38: =IF($C$25=0,VLOOKUP($C$32,TS2L3MEM1CPU,11,FALSE),VLOOKUP($C$32,TS2L3MEM2CPU,11,FALSE)) -> [370-ADNU]
B40: Capacità di memoria
B41: =IF($C$25=0,VLOOKUP($C$32,TS2L3MEM1CPU,2,FALSE),VLOOKUP($C$32,TS2L3MEM2CPU,2,FALSE)) -> 32GB RDIMM, 2666MT/s, Dual Rank | C41: =IF($C$25=0,VLOOKUP($C$32,TS2L3MEM1CPU,3,FALSE),VLOOKUP($C$32,TS2L3MEM2CPU,3,FALSE)) -> 8 | D41: =IF($C$25=0,VLOOKUP($C$32,TS2L3MEM1CPU,4,FALSE),VLOOKUP($C$32,TS2L3MEM2CPU,4,FALSE)) -> [370-ADNF] | E41: =IF($C$25=0,VLOOKUP($C$32,TS2L3MEM1CPU,5,FALSE),VLOOKUP($C$32,TS2L3MEM2CPU,5,FALSE)) -> A9781929 | F41: =IF($C$25=0,VLOOKUP($C$32,TS2L3MEM1CPU,6,FALSE),VLOOKUP($C$32,TS2L3MEM2CPU,6,FALSE)) -> TS2L3-RAM32 | G41: =IF($C$25=0,VLOOKUP($C$32,TS2L3MEM1CPU,7,FALSE),VLOOKUP($C$32,TS2L3MEM2CPU,7,FALSE)) -> 2082
B43: Sistema operativo preinstallato
B44: None | C44: =VLOOKUP($B$44,TS2L3OS,2,FALSE) ->  | D44: =VLOOKUP($B$44,TS2L3OS,3,FALSE) -> [619-ABVR] | E44: =VLOOKUP($B$44,TS2L3OS,4,FALSE) ->  | F44: =VLOOKUP($B$44,TS2L3OS,5,FALSE) ->  | G44: =VLOOKUP($B$44,TS2L3OS,6,FALSE) -> 0 | H44: =VLOOKUP($B$44,TS2L3OS,7,FALSE) -> 0 | I44: =IF(E44=0,1,0) -> 0
B45: =IF($C$25=1,(VLOOKUP($B$44,TS2L3OS,8,FALSE)),"") ->  | C45: =IF($C$25=1,(VLOOKUP($B$44,TS2L3OS,9,FALSE)),"") ->  | D45: =IF($C$25=1,(VLOOKUP($B$44,TS2L3OS,10,FALSE)),"") ->  | E45: =IF($C$25=1,(VLOOKUP($B$44,TS2L3OS,11,FALSE)),"") ->  | F45: =IF($C$25=1,(VLOOKUP($B$44,TS2L3OS,12,FALSE)),"") ->  | G45: =IF($C$25=1,(VLOOKUP($B$44,TS2L3OS,13,FALSE)),"") ->  | H45: =IF($C$25=1,(VLOOKUP($B$44,TS2L3OS,14,FALSE)),0) -> 0
A47: =IF((I44*I48)=0,"","ERRORE: La selezione di licenze CAL senza il Sistema Operativo Microsoft Windows non è consentita.") ->  | B47: Client Access Licenses
B48: =IF($E$44>0,'Regole di configurazione'!A95,"") -> 1 Windows Server 2019 Device CALs (Standard or Datacenter),CUS | C48: 0 | D48: =IF($E$44>0,'Regole di configurazione'!C95,"") -> 0 | E48: =IF($E$44>0,'Regole di configurazione'!D95,"") -> 623-BBBX | F48: =IF($E$44>0,'Regole di configurazione'!E95,"") -> TS2L3-CALDEV | G48: =IF($E$44>0,'Regole di configurazione'!F95,0)*C48 -> 0 | H48: =IF($E$44>0,'Regole di configurazione'!G95,"") -> 0 | I48: =C48+C50 -> 0
B50: =IF($E$44>0,'Regole di configurazione'!A96,"") -> 1 Windows Server 2019 User CALs (Standard or Datacenter),CUS | C50: 0 | D50: =IF($E$44>0,'Regole di configurazione'!C96,"") -> 0 | E50: =IF($E$44>0,'Regole di configurazione'!D96,"") -> 623-BBCC | F50: =IF($E$44>0,'Regole di configurazione'!E96,"") -> TS2L3-CALUSER | G50: =IF($E$44>0,'Regole di configurazione'!F96,0)*C50 -> 0 | H50: =IF($E$44>0,'Regole di configurazione'!G96,"") -> 0
B52: Sistema operativo VMware
B53: Vmware vSphere Essentials Plus Kit
B54: None | C54: =VLOOKUP($B$54,TS2L3VMWARE1,2,FALSE) -> 1 | D54: =VLOOKUP($B$54,TS2L3VMWARE1,3,FALSE) ->  | E54: =VLOOKUP($B$54,TS2L3VMWARE1,4,FALSE) ->  | F54: =VLOOKUP($B$54,TS2L3VMWARE1,5,FALSE) ->  | G54: =VLOOKUP($B$54,TS2L3VMWARE1,6,FALSE) -> 0 | H54: =VLOOKUP($B$54,TS2L3VMWARE1,7,FALSE)*C54 -> 0
B55: VMware vCenter Server Standard
B56: None | C56: =VLOOKUP($B$56,TS2L3VMWARE2,2,FALSE) -> 1 | D56: =VLOOKUP($B$56,TS2L3VMWARE2,3,FALSE) ->  | E56: =VLOOKUP($B$56,TS2L3VMWARE2,4,FALSE) ->  | F56: =VLOOKUP($B$56,TS2L3VMWARE2,5,FALSE) ->  | G56: =VLOOKUP($B$56,TS2L3VMWARE2,6,FALSE) -> 0 | H56: =VLOOKUP($B$56,TS2L3VMWARE2,7,FALSE)*C56 -> 0
B57: Vmware vSphere Standard/Enterprise
B58: None | C58: =(VLOOKUP($B$58,TS2L3VMWARE3,2,FALSE))+C25 -> 1 | D58: =VLOOKUP($B$58,TS2L3VMWARE3,3,FALSE) ->  | E58: =VLOOKUP($B$58,TS2L3VMWARE3,4,FALSE) ->  | F58: =VLOOKUP($B$58,TS2L3VMWARE3,5,FALSE) ->  | G58: =VLOOKUP($B$58,TS2L3VMWARE3,6,FALSE) -> 0 | H58: =VLOOKUP($B$58,TS2L3VMWARE3,7,FALSE)*C58 -> 0
B59: VMware vSAN
B60: None | C60: =(VLOOKUP($B$60,TS2L3VMWARE4,2,FALSE))+C25 -> 1 | D60: =VLOOKUP($B$60,TS2L3VMWARE4,3,FALSE) ->  | E60: =VLOOKUP($B$60,TS2L3VMWARE4,4,FALSE) ->  | F60: =VLOOKUP($B$60,TS2L3VMWARE4,5,FALSE) ->  | G60: =VLOOKUP($B$60,TS2L3VMWARE4,6,FALSE) -> 0 | H60: =VLOOKUP($B$60,TS2L3VMWARE4,7,FALSE)*C60 -> 0
B62: Controller Dischi
B63: =B119 -> PERC H730P RAID Controller, 2Gb NV Cache, Adapter, Full Height | C63: =C122 -> 0 | D63: =D122 -> 0 | E63: =E122 -> 0
B65: Dischi rigidi (numero massimo totale 24)
A66: SAS 10K | B66: 600GB 10K RPM SAS 12Gbps 512n 2.5in Hot-plug Hard Drive | C66: 2 | D66: [400-ASGS] | E66: 400-AUNQ | F66: =IF(C66<=2,"","TS2L3-10K600") ->  | G66: =IF(C66<=2,0,(C66-2)*'Regole di configurazione'!F13) -> 0
B68: 1.2TB 10K RPM SAS 12Gbps 512n 2.5in Hot-plug Hard Drive | C68: 0 | D68: [400-ASHI] | E68: 400-ATJL | F68: =IF(C68=0,"","TS2L3-10K1200") ->  | G68: =C68*'Regole di configurazione'!F14 -> 0
B70: 1.8TB 10K RPM SAS 12Gbps 512e 2.5in Hot-plug Hard Drive | C70: 0 | D70: [400-ARXC] | E70: 400-ATJR | F70: =IF(C70=0,"","TS2L3-10K1800") ->  | G70: =C70*'Regole di configurazione'!F15 -> 0
B72: 2.4TB 10K RPM SAS 12Gbps 512e 2.5in Hot-plug Hard Drive NO VMWARE A20 | C72: 0 | E72: 400-AVBX | F72: =IF(C72=0,"","TS2L3-10K2400") ->  | H72: =C72*'Regole di configurazione'!G43 -> 0
A73: SSD
B74: SSD 480GB SAS MU 12Gbps 2.5in Hot-Plug A20 | C74: 0 | E74: 400-BCOD | F74: =IF(C74=0,"","TS2L3-SSDM480") ->  | H74: =C74*'Regole di configurazione'!G44 -> 0
B76: SSD 400GB SAS WI 12Gbps 2.5in Hot-plug Drive, 10 DWPD A20 | C76: 0 | E76: 400-ATGH | F76: =IF(C76=0,"","TS2L3-SSDW400") ->  | H76: =C76*'Regole di configurazione'!G45 -> 0
B78: SSD 1600GB SAS WI 12Gb 2.5in Hot-plug Drive, 10 DWPD A20 | C78: 0 | F78: =IF(C78=0,"","TS2L3-SSDW1600") ->  | H78: =C78*'Regole di configurazione'!G46 -> 0
B80: 960GB SSD SAS Read Intensive 12Gbps 512e 2.5in Hot-plug Drive, PM5-R, 1 DWPD, 1752 TBW | C80: 0 | D80: [400-BBPL] | E80: 400-ATLL | F80: =IF(C80=0,"","TS2L3-SSDR960") ->  | G80: =C80*'Regole di configurazione'!F16 -> 0
F81: =IF(C81=0,"","TS2L3-SSDR960") -> 
B82: SSD 960GB SAS Mixed Use 12Gbps 2.5in Hot-plug Drive A20 | C82: 0 | E82: 400-BCNN | H82: =C82*'Regole di configurazione'!G47 -> 0
B84: 1.92TB SSD SAS Read Intensive 12Gbps 512e 2.5in Hot-plug Drive, PM1633a | C84: 0 | D84: [400-ASFX] | E84: 400-ATND | F84: =IF(C84=0,"","TS2L3-SSDR1920") ->  | G84: =C84*'Regole di configurazione'!F17 -> 0
B86: DISCHI TOTALI | C86: =SUM(C66:C85) -> 2
B88: NOTE sulla configurazione (CAMPO OBBLIGATORIO)
A89: =IF(C86<=24,"","ERRORE: Totale n° di dischi superiore al consentito") ->  | B89: Specificare la configurazione RAID per l'installazione del Sistema Operativo, se richiesto. e/o inserire eventuali note. | E89: Specificare la configurazione RAID per l'installazione del Sistema Operativo, se richiesto. e/o inserire eventuali note. | F89: =IF(B89=E89,"ERRORE: Compilare il campo NOTE","") -> ERRORE: Compilare il campo NOTE
B91: Ventole
B92: 6 Performance Fans | C92: 1 | D92: [384-BBST]
B94: Alimentatore
B95: Dual, Hot-plug, Power Supply, 2000W, C19/C20 Power Cord Required | C95: 1 | D95: [450-AENU] | F95: TS2L3-2000W | H95: 595
B97: Cavi di alimentazione
B98: C19 to C20, PDU Style, 2.5M Power Cord | C98: 2 | D98: [450-AEJI]
B100: PCIe Riser
B101: Riser Config 6, 1 x8, 6 x16 slots | C101: =VLOOKUP($B$25,TS2L3CPU,16,FALSE) -> 1 | D101: [330-BBJE]
B103: Modulo Doppia SD - Internal Dual SD Module (IDSDM)
B104: None | C104: =VLOOKUP(B104,TS2L3IDSDM,2,FALSE) -> 0 | D104: =VLOOKUP(B104,TS2L3IDSDM,3,FALSE) -> 0 | E104: =VLOOKUP(B104,TS2L3IDSDM,4,FALSE) -> 0 | F104: =VLOOKUP(B104,TS2L3IDSDM,5,FALSE) ->  | G104: =VLOOKUP(B104,TS2L3IDSDM,6,FALSE) -> 0 | H104: =VLOOKUP(B104,TS2L3IDSDM,7,FALSE) -> 0
B106: Embedded Systems Management
B107: iDRAC9,Enterprise | C107: 1 | D107: [385-BBKT]
B112: Network Daughter Card
B113: Broadcom 5720 QP 1Gb Network Daughter Card | C113: 1 | D113: [540-BBBW]
B115: Additional Card for PCIe Slot 1 (Full height) (CPU 1) GPU
B116: None | C116: =VLOOKUP(B116,TS2L3GPUSW,2,FALSE) ->  | D116: =VLOOKUP(B116,TS2L3GPUSW,3,FALSE) ->  | E116: =VLOOKUP(B116,TS2L3GPUSW,4,FALSE) ->  | F116: =VLOOKUP(B116,TS2L3GPUSW,5,FALSE) ->  | G116: =VLOOKUP(B116,TS2L3GPUSW,6,FALSE) -> 0 | H116: =VLOOKUP(B116,TS2L3GPUSW,7,FALSE) -> 0
B118: Additional Card for PCIe Slot 2 (Full height) (CPU 1)
B119: PERC H730P RAID Controller, 2Gb NV Cache, Adapter, Full Height | C119: =VLOOKUP(B119,TS2L3PCI3,2,FALSE) -> 1 | D119: =VLOOKUP(B119,TS2L3PCI3,3,FALSE) -> [405-AAMR] | E119: =VLOOKUP(B119,TS2L3PCI3,4,FALSE) -> 405-AAMY | F119: =VLOOKUP(B119,TS2L3PCI3,5,FALSE) ->  | G119: =VLOOKUP(B119,TS2L3PCI3,6,FALSE) -> 0 | H119: =VLOOKUP(B119,TS2L3PCI3,7,FALSE) -> 0
B121: Additional Card for PCIe Slot 3 (Full height) (CPU 1)
B122: None
B124: Additional Card for PCIe Slot 4 (Full height) (CPU 1) GPU
B125: None | C125: =VLOOKUP(B125,TS2L3GPUSW,2,FALSE) ->  | D125: =VLOOKUP(B125,TS2L3GPUSW,3,FALSE) ->  | E125: =VLOOKUP(B125,TS2L3GPUSW,4,FALSE) ->  | F125: =VLOOKUP(B125,TS2L3GPUSW,5,FALSE) ->  | G125: =VLOOKUP(B125,TS2L3GPUSW,6,FALSE) -> 0 | H125: =VLOOKUP(B125,TS2L3GPUSW,7,FALSE) -> 0
B127: Additional Card for PCIe Slot 5 (Full height) (CPU 2) GPU
B128: None | C128: =VLOOKUP(B128,TS2L3GPUSW,2,FALSE) ->  | D128: =VLOOKUP(B128,TS2L3GPUSW,3,FALSE) ->  | E128: =VLOOKUP(B128,TS2L3GPUSW,4,FALSE) ->  | F128: =VLOOKUP(B128,TS2L3GPUSW,5,FALSE) ->  | G128: =VLOOKUP(B128,TS2L3GPUSW,6,FALSE) -> 0 | H128: =VLOOKUP(B128,TS2L3GPUSW,7,FALSE) -> 0
B130: Additional Card for PCIe Slot 6 (Low height) (CPU 2)
B131: None | C131: =IF(B131=TS2L3ASP,"",VLOOKUP(B131,TS2L3PCI6,2,FALSE)) ->  | D131: =IF(B131=TS2L3ASP,"",VLOOKUP(B131,TS2L3PCI6,3,FALSE)) ->  | E131: =IF(B131=TS2L3ASP,"",VLOOKUP(B131,TS2L3PCI6,4,FALSE)) ->  | F131: =IF(B131=TS2L3ASP,"",VLOOKUP(B131,TS2L3PCI6,5,FALSE)) ->  | G131: =IF(B131=TS2L3ASP,0,VLOOKUP(B131,TS2L3PCI6,6,FALSE)) -> 0 | H131: =IF(B131=TS2L3ASP,0,VLOOKUP(B131,TS2L3PCI6,7,FALSE)) -> 0
B133: Additional Card for PCIe Slot 7 (Full height) (CPU 2) (BOSS controller card Slot) GPU
B134: None | C134: =VLOOKUP(B134,TS2L3PCIGPUBOSS,2,FALSE) ->  | D134: =VLOOKUP(B134,TS2L3PCIGPUBOSS,3,FALSE) ->  | E134: =VLOOKUP(B134,TS2L3PCIGPUBOSS,4,FALSE) ->  | F134: =VLOOKUP(B134,TS2L3PCIGPUBOSS,5,FALSE) ->  | G134: =VLOOKUP(B134,TS2L3PCIGPUBOSS,6,FALSE) -> 0 | H134: =VLOOKUP(B134,TS2L3PCIGPUBOSS,7,FALSE) -> 0
B136: Additional Card for PCIe Slot 8 (Full height) (CPU 2) GPU
B137: None | C137: =VLOOKUP(B137,TS2L3GPUSW,2,FALSE) ->  | D137: =VLOOKUP(B137,TS2L3GPUSW,3,FALSE) ->  | E137: =VLOOKUP(B137,TS2L3GPUSW,4,FALSE) ->  | F137: =VLOOKUP(B137,TS2L3GPUSW,5,FALSE) ->  | G137: =VLOOKUP(B137,TS2L3GPUSW,6,FALSE) -> 0 | H137: =VLOOKUP(B137,TS2L3GPUSW,7,FALSE) -> 0
B139: Bezel
B140: No Bezel | C140: =VLOOKUP($B$140,TS2L3BEZEL,2,FALSE) -> 0 | D140: =VLOOKUP($B$140,TS2L3BEZEL,3,FALSE) -> [350-BBBW] | E140: =VLOOKUP($B$140,TS2L3BEZEL,4,FALSE) -> 0 | F140: =VLOOKUP($B$140,TS2L3BEZEL,5,FALSE) ->  | G140: =VLOOKUP($B$140,TS2L3BEZEL,6,FALSE) -> 0 | H140: =VLOOKUP($B$140,TS2L3BEZEL,7,FALSE) -> 0
B141: MOD,TRAY,LGG,R7425 | C141: 1 | D141: [350-BBMF]
B143: Quick Sync
B144: No Quick Sync | C144: 1 | D144: [350-BBJV]
B146: Rack Rails
B147: =VLOOKUP($B$140,TS2L3BEZEL,8,FALSE) -> ReadyRails™ Sliding Rails Without Cable Management Arm | C147: =VLOOKUP($B$140,TS2L3BEZEL,9,FALSE) -> 1 | D147: =VLOOKUP($B$140,TS2L3BEZEL,10,FALSE) -> [770-BBBQ] | E147: =VLOOKUP($B$140,TS2L3BEZEL,11,FALSE) -> 0
B149: Password
B150: iDRAC,Factory Generated Password | C150: 1 | D150: [379-BCSF]
B152: Group Manager
B153: iDRAC Group Manager, Enabled | C153: 1 | D153: [379-BCQV]
B155: Internal Optical Drive
B156: No Internal Optical Drive for 12/24 HD Chassis | C156: 1 | D156: [429-AAIQ]
B158: Dell Services: Deployment Services
B159: No Installation Service Selected (Contact Sales rep for more details) | C159: 1 | D159: [683-11870]
B161: Channel only - Support Extension
B162: Channel 39M Basic Warranty - Next Business Day | C162: 1 | D162: [723-41450]
B164: System Documentation
B165: No Systems Documentation, No OpenManage DVD Kit | C165: 1 | D165: [631-AACK]
B167: Shipping Material
B168: PowerEdge R7425 Shipping Material | C168: 1 | D168: [343-BBHK]
B170: Direct Attach Cable
B171: 5 x Dell Networking, Cable, SFP+ to SFP+, 10GbE, Copper Twinax DAC, 3 Meter A20 | C171: 0 | E171: 470-AAVJ | F171: =IF(C171=0,"","TS2L3-5XDAC10M3") ->  | H171: ='Regole di configurazione'!G49*C171 -> 0
B173: 5 x Dell Networking Cable, 100GbE QSFP28 to QSFP28,Passive Copper DAC, 2 Meter A20 | C173: 0 | E173: 470-ABQG | F173: =IF(C173=0,"","TS2L3-5XDAC100M2") ->  | H173: ='Regole di configurazione'!G50*C173 -> 0
B175: 5 x Dell Networking Cable,100GbE QSFP28 to QSFP28, Passive Copper DAC, 3 Meter A20 | C175: 0 | E175: 470-ABQE | F175: =IF(C175=0,"","TS2L3-5XDAC100M3") ->  | H175: ='Regole di configurazione'!G51*C175 -> 0
B177: Cavi rj45
B178: Cavo Rete UTP cat. 5e 3 metri | C178: 5 | E178: ROS1403/G | F178: =IF(C178=0,"","TS2L3-3MRJ45") -> TS2L3-3MRJ45 | H178: =2*C178 -> 10
B180: Estenzione di Garanzia
B181: None | C181: =VLOOKUP(B181,TS2L3WARRANTY,2,FALSE) ->  | D181: =VLOOKUP(B181,TS2L3WARRANTY,3,FALSE) ->  | E181: =VLOOKUP(B181,TS2L3WARRANTY,4,FALSE) ->  | F181: =VLOOKUP(B181,TS2L3WARRANTY,5,FALSE) ->  | G181: =VLOOKUP(B181,TS2L3WARRANTY,6,FALSE) -> 0

Sheet Rack e Accessori
G1: TOTALE PRODOTTI CONVENZIONE | H1: =SUM(Riepilogo!T41:U44) -> 0 | J1: =IF(H2="",0,H1+H2) -> 0
G2: TOTALE ARTICOLI 20% | H2: =IF(Riepilogo!$T$114="","",Riepilogo!$T$114) -> 
C5: =IF(Riepilogo!G6="","","Rack (OpzRack)") -> 
C6: =IF(Riepilogo!G6="","","Tecnosteel: armadio Rack 19'' 42U") ->  | K6: =IF(J6>=1,"TS2L3-RACK","") -> 
C8: =IF(Riepilogo!$G$6="","","PDU (OpzPDU32A)") -> 
C9: =IF(Riepilogo!$G$6="","","Coppia di PDU Vertical 1Ph-32A-18xC13-6xC19 - 0U Base + Kit di montaggio") ->  | K9: =IF(J9>=1,"TS2L3-PDU32A","") -> 
C11: =IF(Riepilogo!$G$6="","","PDU (OpzPDU16AMetered)") -> 
C12: =IF(Riepilogo!$G$6="","","Coppia di PDU Vertical 1Ph-16A-36xC13+6xC19 -0U Metered + Kit di montaggio") ->  | K12: =IF(J12>=1,"TS2L3-TM1613606","") -> 
C14: =IF(Riepilogo!$G$6="","","PDU (OpzPDU32AMetered)") -> 
C15: =IF(Riepilogo!$G$6="","","Coppia di PDU Vertical 1Ph-32A-36xC13+6xC19 -0U Metered + Kit di montaggio") ->  | K15: =IF(J15>=1,"TS2L3-TM3213606","") -> 
C17: =IF(Riepilogo!$G$6="","","PDU (OpzPDU32A3PHMetered)") -> 
C18: =IF(Riepilogo!$G$6="","","Coppia di PDU Vertical 3Ph-32A-36xC13+6xC19 -0U Metered + Kit di montaggio") ->  | K18: =IF(J18>=1,"TS2L3-TM3233606","") -> 
C20: =IF(Riepilogo!$G$6="","","PDU (OpzPDU16AControlled)") -> 
C21: =IF(Riepilogo!$G$6="","","Coppia di PDU Vertical 1Ph-16A-24xC13+6xC19 -0U Controlled + Kit di montaggio") ->  | K21: =IF(J21>=1,"TS2L3-TK1612406","") -> 
C23: =IF(Riepilogo!$G$6="","","PDU (OpzPDU32AControlled)") -> 
C24: =IF(Riepilogo!$G$6="","","Coppia di PDU Vertical 1Ph-32A-24xC13+6xC19 -0U Controlled + Kit di montaggio") ->  | K24: =IF(J24>=1,"TS2L3-TK3212406","") -> 
C26: =IF(Riepilogo!$G$6="","","PDU (OpzPDU32A3PHControlled)") -> 
C27: =IF(Riepilogo!$G$6="","","Coppia di PDU Vertical 3Ph-32A-24xC13+6xC19 -0U Controlled + Kit di montaggio") ->  | K27: =IF(J27>=1,"TS2L3-TK3232406","") -> 
C29: =IF(Riepilogo!$G$6="","","PDU (OpzPDU16AFull)") -> 
C30: =IF(Riepilogo!$G$6="","","Coppia di PDU Vertical 1Ph-16A-24xC13+6xC19 -0U Full + Kit di montaggio") ->  | K30: =IF(J30>=1,"TS2L3-TF1612406","") -> 
C32: =IF(Riepilogo!$G$6="","","PDU (OpzPDU32AFull)") -> 
C33: =IF(Riepilogo!$G$6="","","Coppia di PDU Vertical 1Ph-32A-24xC13+6xC19 -0U Full + Kit di montaggio") ->  | K33: =IF(J33>=1,"TS2L3-TF3212406","") -> 
C35: =IF(Riepilogo!$G$6="","","PDU (OpzPDU32A3PHFull)") -> 
C36: =IF(Riepilogo!$G$6="","","Coppia di PDU Vertical 3Ph-32A-24xC13+6xC19 -0U Full + Kit di montaggio") ->  | K36: =IF(J36>=1,"TS2L3-TF3232406","") -> 
C38: =IF(Riepilogo!G6="","","KVM (OpzGUIRack)") -> 
C39: =IF(Riepilogo!G6="","","Tecnosteel: 1U Rackmount Console 17'' with Italian Keyboard") ->  | K39: =IF(J39>=1,"TS2L3-GUI","") -> 
C41: =IF(Riepilogo!G6="","","KVM Option (OpzSWGUIRack)") -> 
C42: =IF(Riepilogo!G6="","","Tecnosteel: 16-port remote KVM switch with one remote user") ->  | K42: =IF(J42>=1,"TS2L3-KVMIP","") -> 
C44: =IF(Riepilogo!G6="","","Uninterrupted Power Supply (OpzUPS 3000VA)") -> 
C45: =IF(Riepilogo!G6="","","Riello - UPS MSR3000EVO 3000VA 2U Rackmount (SNMP+USB+RS232)") ->  | K45: =IF(J45>=1,"TS2L3-UPS","") -> 
C47: =IF(Riepilogo!G6="","","PDU da Rack") -> 
C48: =IF(Riepilogo!G6="","","Coppia di PDU Vertical 1Ph-32A - 0U") ->  | K48: =IF(J48>=1,"TS2L3-PDU32A","") -> 
C50: =IF(Riepilogo!G6="","","Armadio Rack 42U PDU Trifase") -> 
C51: =IF(Riepilogo!G6="","","Armadio Rack 42U profonità 120cm con coppia di PDU 32A trifase") ->  | K51: =IF(J51>=1,"TS2L3-PDU32A","") -> 
C53: =IF(Riepilogo!G6="","","Armadio Rack 42U PDU Monofase") -> 
C54: =IF(Riepilogo!G6="","","Armadio Rack 42U profonità 120cm con coppia di PDU 32A monofase") ->  | K54: =IF(J54>=1,"TS2L3-RACKPDU32","") -> 

Sheet Riepilogo
B1: Amministrazione | R1: CONFIGURATORE ELETTRONICO TECNOLOGIE SERVER 2 LOTTO 3 | V1: 1 | X1: Server1 | Y1: Server2 | Z1: Server3
B2: N° Identificativo Ordine | I2: =IF(AD2>0,"ERRORE DI CONFIGURAZIONE",IF(Y13>0,"ERRORE DI MANCATA COMPILAZIONE DATI NECESSARI PER L'ORDINATIVO","Configurazione OK")) -> ERRORE DI MANCATA COMPILAZIONE DATI NECESSARI PER L'ORDINATIVO | V2: 1 | W2: Errore | X2: =IF('Lotto3_R7425-1'!$F$1="ERRORE VERIFICARE LA CONFIGURAZIONE",1,0) -> 0 | Y2: =IF('Lotto3_R7425-2'!$F$1="ERRORE VERIFICARE LA CONFIGURAZIONE",1,0) -> 0 | Z2: =IF('Lotto3_R7425-3'!$F$1="ERRORE VERIFICARE LA CONFIGURAZIONE",1,0) -> 0 | AA2: =IF('Lotto3_R7425(NVMe)'!$F$1="ERRORE VERIFICARE LA CONFIGURAZIONE",1,0) -> 0 | AB2: =IF('Lotto3_R7425(GPU DW)'!$F$1="ERRORE VERIFICARE LA CONFIGURAZIONE",1,0) -> 0 | AC2: =IF('Lotto3_R7425(GPU SW)'!$F$1="ERRORE VERIFICARE LA CONFIGURAZIONE",1,0) -> 0 | AD2: =SUM(X2:AC2) -> 0
B3: Data Ordine | V3: 1 | W3: Dati non compilati | X3: Amministrazione | Y3: =IF(G1>0,0,1) -> 1
B4: Tot Ordine Portale CONSIP IVA incl. | G4: =R119 -> 0 | U4: Nel "Tot Ordine Portale CONSIP" deve essere inserito l'importo totale risultante dall'ordinativo del portale CONSIP. Qualora l'importo inserito corrisponde al valore ricalcolato dal configuratore viene attivato il pulsante "Salva in formato PDF" che permette di generare il file pdf da allegare all'ordinativo. | V4: 1 | X4: N° Identificativo Ordine | Y4: =IF(G2>0,0,1) -> 1
B5: LE CELLE IN GIALLO DEVO ESSERE COMPILATE OBBLIGATORIAMENTE | I5: =IF(AD2>0,"",IF(Y13>0,"","Cliccare il pulsante --------------> per generare il PDF da allegare")) ->  | V5: 1 | X5: Data Ordine | Y5: =IF(G3>0,0,1) -> 1
B6: Quantità Server Ordinati | G6: =B15 ->  | T6: ver. 3.3 | V6: 1 | X6: Tot Ordine Portale CONSIP IVA incl. | Y6: =IF(G4>0,0,1) -> 1
V7: 1 | X7: Referente per la Consegna | Y7: =IF(E8>0,0,1) -> 1
B8: Referente per la Consegna | J8: Telefono | P8: email | V8: 1 | X8: Telefono | Y8: =IF(L8>0,0,1) -> 1
V9: 1 | X9: email | Y9: =IF(Q8>0,0,1) -> 1
B10: Referente per l'installazione | J10: Telefono | P10: email | V10: 1 | X10: Referente per l'installazione | Y10: =IF(E10>0,0,1) -> 1
V11: 1 | X11: Telefono | Y11: =IF(L10>0,0,1) -> 1
B12: ATTENZIONE: I CODICI PRODOTTO DELL'ORDINE DEVONO ESSERE SPECULARI A QUELLI GENERATI DAL CONFIGURATORE. | V12: 1 | X12: email | Y12: =IF(Q10>0,0,1) -> 1
B13: Qtà Ordinata | C13: CODICE ARTICOLO PRODUTTORE | G13: CODICE ARTICOLO CONVENZIONE | J13: Descrizione Sintetica (si faccia riferimento alla guida alla convenzione per la descrizione estesa e per le regole di acquisto delle opzioni) | R13: Costo Unitario | T13: Costo Complessivo | V13: 1 | Y13: =SUM(Y3:Y12) -> 10 | AB13: =Y13+AD2 -> 10 | AD13: =IF(AB13=0,"_SavePDFon","_SavePDFoff") -> _SavePDFoff
B14: DELL EMC POWEREDGE R7425 | V14: =IF(B15>="",0,1) -> 0 | X14: Server1 | Y14: Server2 | Z14: Server3 | AA14: ServerNVME | AB14: ServerGPUDW | AC14: ServerGPUSW | AN14: Somma Server
B15: =IF(AN15>=1,AN15,"") ->  | C15: =IF(AN15>0,VLOOKUP($G15,'Codici&PrezzixRiepilogo'!B:E,4,FALSE),"") ->  | G15: =IF(AN15>=1,W15,"") ->  | J15: =IF(AN15>0,VLOOKUP($G15,'Codici&PrezzixRiepilogo'!B:E,2,FALSE),"") ->  | R15: =IF(AN15>0,VLOOKUP($G15,'Codici&PrezzixRiepilogo'!B:E,3,FALSE),"") ->  | T15: =IF(B15="","",R15*B15) ->  | V15: =IF(B15>="",0,1) -> 0 | W15: TS2L3-SRV | X15: ='Lotto3_R7425-1'!$C$10 -> 0 | Y15: ='Lotto3_R7425-2'!$C$10 -> 0 | Z15: ='Lotto3_R7425-3'!$C$10 -> 0 | AA15: ='Lotto3_R7425(NVMe)'!$C$10 -> 0 | AB15: ='Lotto3_R7425(GPU DW)'!$C$10 -> 0 | AC15: ='Lotto3_R7425(GPU SW)'!$C$10 -> 0 | AN15: =SUM(X15:AM15) -> 0
B16: =IF(AN16>=1,AN16,"") ->  | C16: =IF(AN16>0,VLOOKUP($G16,'Codici&PrezzixRiepilogo'!B:E,4,FALSE),"") ->  | G16: =IF(AN16>=1,W16,"") ->  | J16: =IF(AN16>0,VLOOKUP($G16,'Codici&PrezzixRiepilogo'!B:E,2,FALSE),"") ->  | R16: =IF(AN16>0,VLOOKUP($G16,'Codici&PrezzixRiepilogo'!B:E,3,FALSE),"") ->  | T16: =IF(B16="","",R16*B16) ->  | V16: =IF(B16>="",0,1) -> 0 | W16: TS2L3-CPU | X16: ='Lotto3_R7425-1'!$C$25*$X$15 -> 0 | Y16: ='Lotto3_R7425-2'!$C$25*$Y$15 -> 0 | Z16: ='Lotto3_R7425-3'!$C$25*$Z$15 -> 0 | AA16: ='Lotto3_R7425(NVMe)'!$C$25*$AA$15 -> 0 | AB16: ='Lotto3_R7425(GPU DW)'!$C$25*$AB$15 -> 0 | AC16: ='Lotto3_R7425(GPU SW)'!$C$25*$AC$15 -> 0 | AN16: =SUM(X16:AM16) -> 0
B17: =IF(AN17>=1,AN17,"") ->  | C17: =IF(AN17>0,VLOOKUP($G17,'Codici&PrezzixRiepilogo'!B:E,4,FALSE),"") ->  | G17: =IF(AN17>=1,W17,"") ->  | J17: =IF(AN17>0,VLOOKUP($G17,'Codici&PrezzixRiepilogo'!B:E,2,FALSE),"") ->  | R17: =IF(AN17>0,VLOOKUP($G17,'Codici&PrezzixRiepilogo'!B:E,3,FALSE),"") ->  | T17: =IF(B17="","",R17*B17) ->  | V17: 0 | W17: TS2L3-RAM16 | AN17: =SUM(X17:AM17) -> 0
C18: =IF(AN18>0,VLOOKUP($G18,'Codici&PrezzixRiepilogo'!B:E,4,FALSE),"") ->  | J18: =IF(AN18>0,VLOOKUP($G18,'Codici&PrezzixRiepilogo'!B:E,2,FALSE),"") ->  | R18: =IF(AN18>0,VLOOKUP($G18,'Codici&PrezzixRiepilogo'!B:E,3,FALSE),"") ->  | V18: 0 | W18: TS2L3-RAM32 | X18: =IF('Lotto3_R7425-1'!$F$41=Riepilogo!$W18,('Lotto3_R7425-1'!$C$41-2)*Riepilogo!$X$15,0) -> 0 | Y18: =IF('Lotto3_R7425-2'!$F$41=Riepilogo!$W18,('Lotto3_R7425-2'!$C$41-2)*Riepilogo!$Y$15,0) -> 0 | Z18: =IF('Lotto3_R7425-3'!$F$41=Riepilogo!$W18,('Lotto3_R7425-3'!$C$41-2)*Riepilogo!$Z$15,0) -> 0 | AA18: =IF('Lotto3_R7425(NVMe)'!$F$41=Riepilogo!$W18,('Lotto3_R7425(NVMe)'!$C$41-2)*Riepilogo!$AA$15,0) -> 0 | AB18: =IF('Lotto3_R7425(GPU DW)'!$F$41=Riepilogo!$W18,('Lotto3_R7425(GPU DW)'!$C$41-2)*Riepilogo!$AB$15,0) -> 0 | AC18: =IF('Lotto3_R7425(GPU SW)'!$F$41=Riepilogo!$W18,('Lotto3_R7425(GPU SW)'!$C$41-2)*Riepilogo!$AC$15,0) -> 0 | AN18: 0
C19: =IF(AN19>0,VLOOKUP($G19,'Codici&PrezzixRiepilogo'!B:E,4,FALSE),"") ->  | J19: =IF(AN19>0,VLOOKUP($G19,'Codici&PrezzixRiepilogo'!B:E,2,FALSE),"") ->  | R19: =IF(AN19>0,VLOOKUP($G19,'Codici&PrezzixRiepilogo'!B:E,3,FALSE),"") ->  | V19: 0 | W19: TS2L3-RAM64 | X19: =IF('Lotto3_R7425-1'!$F$41=Riepilogo!$W19,('Lotto3_R7425-1'!$C$41)*Riepilogo!$X$15,0) -> 0 | Y19: =IF('Lotto3_R7425-2'!$F$41=Riepilogo!$W19,('Lotto3_R7425-2'!$C$41)*Riepilogo!$Y$15,0) -> 0 | Z19: =IF('Lotto3_R7425-3'!$F$41=Riepilogo!$W19,('Lotto3_R7425-3'!$C$41)*Riepilogo!$Z$15,0) -> 0 | AA19: =IF('Lotto3_R7425(NVMe)'!$F$41=Riepilogo!$W19,('Lotto3_R7425(NVMe)'!$C$41)*Riepilogo!$AA$15,0) -> 0 | AB19: =IF('Lotto3_R7425(GPU DW)'!$F$41=Riepilogo!$W19,('Lotto3_R7425(GPU DW)'!$C$41)*Riepilogo!$AB$15,0) -> 0 | AC19: =IF('Lotto3_R7425(GPU SW)'!$F$41=Riepilogo!$W19,('Lotto3_R7425(GPU SW)'!$C$41)*Riepilogo!$AC$15,0) -> 0 | AN19: 0
C20: =IF(AN20>0,VLOOKUP($G20,'Codici&PrezzixRiepilogo'!B:E,4,FALSE),"") ->  | J20: =IF(AN20>0,VLOOKUP($G20,'Codici&PrezzixRiepilogo'!B:E,2,FALSE),"") ->  | R20: =IF(AN20>0,VLOOKUP($G20,'Codici&PrezzixRiepilogo'!B:E,3,FALSE),"") ->  | V20: 0 | W20: TS2L3-10K600 | X20: =IF('Lotto3_R7425-1'!$F$66=Riepilogo!$W20,('Lotto3_R7425-1'!$C$66-2)*X15,0) -> 0 | Y20: =IF('Lotto3_R7425-2'!$F$66=Riepilogo!$W20,('Lotto3_R7425-2'!$C$66-2)*Y15,0) -> 0 | Z20: =IF('Lotto3_R7425-3'!$F$66=Riepilogo!$W20,('Lotto3_R7425-3'!$C$66-2)*Z15,0) -> 0 | AA20: =IF('Lotto3_R7425(NVMe)'!$F$66=Riepilogo!$W20,('Lotto3_R7425(NVMe)'!$C$66-2)*AA15,0) -> 0 | AB20: =IF('Lotto3_R7425(GPU DW)'!$F$66=Riepilogo!$W20,('Lotto3_R7425(GPU DW)'!$C$66-2)*AB15,0) -> 0 | AC20: =IF('Lotto3_R7425(GPU SW)'!$F$66=Riepilogo!$W20,('Lotto3_R7425(GPU SW)'!$C$66-2)*AC15,0) -> 0 | AN20: 0
C21: =IF(AN21>0,VLOOKUP($G21,'Codici&PrezzixRiepilogo'!B:E,4,FALSE),"") ->  | J21: =IF(AN21>0,VLOOKUP($G21,'Codici&PrezzixRiepilogo'!B:E,2,FALSE),"") ->  | R21: =IF(AN21>0,VLOOKUP($G21,'Codici&PrezzixRiepilogo'!B:E,3,FALSE),"") ->  | V21: 0 | W21: TS2L3-10K1200 | X21: =('Lotto3_R7425-1'!$C$68)*$X$15 -> 0 | Y21: =('Lotto3_R7425-2'!$C$68)*$Y$15 -> 0 | Z21: =('Lotto3_R7425-3'!$C$68)*$Z$15 -> 0 | AA21: =('Lotto3_R7425(NVMe)'!$C$68)*$AA$15 -> 0 | AB21: =('Lotto3_R7425(GPU DW)'!$C$68)*$AB$15 -> 0 | AC21: =('Lotto3_R7425(GPU SW)'!$C$68)*$AC$15 -> 0 | AN21: 0
C22: =IF(AN22>0,VLOOKUP($G22,'Codici&PrezzixRiepilogo'!B:E,4,FALSE),"") ->  | J22: =IF(AN22>0,VLOOKUP($G22,'Codici&PrezzixRiepilogo'!B:E,2,FALSE),"") ->  | R22: =IF(AN22>0,VLOOKUP($G22,'Codici&PrezzixRiepilogo'!B:E,3,FALSE),"") ->  | V22: 0 | W22: TS2L3-10K1800 | X22: =('Lotto3_R7425-1'!$C$70)*$X$15 -> 0 | Y22: =('Lotto3_R7425-2'!$C$70)*$Y$15 -> 0 | Z22: =('Lotto3_R7425-3'!$C$70)*$Z$15 -> 0 | AA22: =('Lotto3_R7425(NVMe)'!$C$70)*$AA$15 -> 0 | AB22: =('Lotto3_R7425(GPU DW)'!$C$70)*$AB$15 -> 0 | AC22: =('Lotto3_R7425(GPU SW)'!$C$70)*$AC$15 -> 0 | AN22: =SUM(X22:AM22) -> 0
C23: =IF(AN23>0,VLOOKUP($G23,'Codici&PrezzixRiepilogo'!B:E,4,FALSE),"") ->  | J23: =IF(AN23>0,VLOOKUP($G23,'Codici&PrezzixRiepilogo'!B:E,2,FALSE),"") ->  | R23: =IF(AN23>0,VLOOKUP($G23,'Codici&PrezzixRiepilogo'!B:E,3,FALSE),"") ->  | V23: 0 | W23: TS2L3-SSDR960 | X23: =('Lotto3_R7425-1'!$C$80)*$X$15 -> 0 | Y23: =('Lotto3_R7425-2'!$C$80)*$Y$15 -> 0 | Z23: =('Lotto3_R7425-3'!$C$80)*$Z$15 -> 0 | AA23: =('Lotto3_R7425(NVMe)'!$C$80)*$AA$15 -> 0 | AB23: =('Lotto3_R7425(GPU DW)'!$C$80)*$AB$15 -> 0 | AC23: =('Lotto3_R7425(GPU SW)'!$C$80)*$AC$15 -> 0 | AN23: 0
C24: =IF(AN24>0,VLOOKUP($G24,'Codici&PrezzixRiepilogo'!B:E,4,FALSE),"") ->  | J24: =IF(AN24>0,VLOOKUP($G24,'Codici&PrezzixRiepilogo'!B:E,2,FALSE),"") ->  | R24: =IF(AN24>0,VLOOKUP($G24,'Codici&PrezzixRiepilogo'!B:E,3,FALSE),"") ->  | V24: 0 | W24: TS2L3-SSDR1920 | X24: =('Lotto3_R7425-1'!$C$84)*$X$15 -> 0 | Y24: =('Lotto3_R7425-2'!$C$84)*$Y$15 -> 0 | Z24: =('Lotto3_R7425-3'!$C$84)*$Z$15 -> 0 | AA24: =('Lotto3_R7425(NVMe)'!$C$84)*$AA$15 -> 0 | AB24: =('Lotto3_R7425(GPU DW)'!$C$84)*$AB$15 -> 0 | AC24: =('Lotto3_R7425(GPU SW)'!$C$84)*$AC$15 -> 0 | AN24: 0
C25: =IF(AN25>0,VLOOKUP($G25,'Codici&PrezzixRiepilogo'!B:E,4,FALSE),"") ->  | J25: =IF(AN25>0,VLOOKUP($G25,'Codici&PrezzixRiepilogo'!B:E,2,FALSE),"") ->  | R25: =IF(AN25>0,VLOOKUP($G25,'Codici&PrezzixRiepilogo'!B:E,3,FALSE),"") ->  | V25: 0 | W25: TS2L3-LAN1 | X25: =COUNTIF($AD$25:$AD$32,W25)*$X$15 -> 0 | Y25: =COUNTIF($AE$25:$AE$32,W25)*$Y$15 -> 0 | Z25: =COUNTIF($AF$25:$AF$32,W25)*$Z$15 -> 0 | AA25: =COUNTIF($AG$25:$AG$32,W25)*$AA$15 -> 0 | AB25: =COUNTIF($AH$25:$AH$32,W25)*$AB$15 -> 0 | AC25: =COUNTIF($AI$25:$AI$32,W25)*$AC$15 -> 0 | AD25: ='Lotto3_R7425-1'!$F$116 ->  | AE25: ='Lotto3_R7425-2'!$F$116 ->  | AF25: ='Lotto3_R7425-3'!$F$116 ->  | AG25: ='Lotto3_R7425(NVMe)'!$F$136 ->  | AH25: ='Lotto3_R7425(GPU DW)'!$F$116 ->  | AI25: ='Lotto3_R7425(GPU SW)'!$F$116 ->  | AN25: 0
C26: =IF(AN26>0,VLOOKUP($G26,'Codici&PrezzixRiepilogo'!B:E,4,FALSE),"") ->  | J26: =IF(AN26>0,VLOOKUP($G26,'Codici&PrezzixRiepilogo'!B:E,2,FALSE),"") ->  | R26: =IF(AN26>0,VLOOKUP($G26,'Codici&PrezzixRiepilogo'!B:E,3,FALSE),"") ->  | V26: 0 | W26: TS2L3-LAN10 | X26: =COUNTIF($AD$25:$AD$32,W26)*$X$15 -> 0 | Y26: =COUNTIF($AE$25:$AE$32,W26)*$Y$15 -> 0 | Z26: =COUNTIF($AF$25:$AF$32,W26)*$Z$15 -> 0 | AA26: =COUNTIF($AG$25:$AG$32,W26)*$AA$15 -> 0 | AB26: 0 | AC26: 0 | AD26: ='Lotto3_R7425-1'!$F$119 ->  | AE26: ='Lotto3_R7425-2'!$F$119 ->  | AF26: ='Lotto3_R7425-3'!$F$119 ->  | AG26: ='Lotto3_R7425(NVMe)'!$F$139 ->  | AH26: ='Lotto3_R7425(GPU DW)'!$F$119 -> 0 | AI26: ='Lotto3_R7425(GPU SW)'!$F$119 ->  | AN26: 0
C27: =IF(AN27>0,VLOOKUP($G27,'Codici&PrezzixRiepilogo'!B:E,4,FALSE),"") ->  | J27: =IF(AN27>0,VLOOKUP($G27,'Codici&PrezzixRiepilogo'!B:E,2,FALSE),"") ->  | R27: =IF(AN27>0,VLOOKUP($G27,'Codici&PrezzixRiepilogo'!B:E,3,FALSE),"") ->  | V27: 0 | W27: TS2L3-CNA10 | X27: 0 | Y27: 0 | Z27: 0 | AA27: =COUNTIF($AG$25:$AG$32,W27)*$AA$15 -> 0 | AB27: 0 | AC27: 0 | AD27: ='Lotto3_R7425-1'!$F$122 ->  | AE27: ='Lotto3_R7425-2'!$F$122 ->  | AF27: ='Lotto3_R7425-3'!$F$122 ->  | AG27: ='Lotto3_R7425(NVMe)'!$F$142 ->  | AH27: ='Lotto3_R7425(GPU DW)'!$F$122 ->  | AI27: ='Lotto3_R7425(GPU SW)'!$F$122 -> 0 | AN27: 0
C28: =IF(AN28>0,VLOOKUP($G28,'Codici&PrezzixRiepilogo'!B:E,4,FALSE),"") ->  | J28: =IF(AN28>0,VLOOKUP($G28,'Codici&PrezzixRiepilogo'!B:E,2,FALSE),"") ->  | R28: =IF(AN28>0,VLOOKUP($G28,'Codici&PrezzixRiepilogo'!B:E,3,FALSE),"") ->  | V28: 0 | W28: TS2L3-FC8 | X28: 0 | Y28: 0 | Z28: 0 | AA28: =COUNTIF($AG$25:$AG$32,W28)*$AA$15 -> 0 | AB28: 0 | AC28: 0 | AD28: ='Lotto3_R7425-1'!$F$125 ->  | AE28: ='Lotto3_R7425-2'!$F$125 ->  | AF28: ='Lotto3_R7425-3'!$F$125 ->  | AG28: ='Lotto3_R7425(NVMe)'!$F$145 ->  | AH28: ='Lotto3_R7425(GPU DW)'!$F$125 ->  | AI28: ='Lotto3_R7425(GPU SW)'!$F$125 ->  | AN28: 0
C29: =IF(AN29>0,VLOOKUP($G29,'Codici&PrezzixRiepilogo'!B:E,4,FALSE),"") ->  | J29: =IF(AN29>0,VLOOKUP($G29,'Codici&PrezzixRiepilogo'!B:E,2,FALSE),"") ->  | R29: =IF(AN29>0,VLOOKUP($G29,'Codici&PrezzixRiepilogo'!B:E,3,FALSE),"") ->  | V29: 0 | W29: TS2L3-LAN1-L | X29: 0 | Y29: 0 | Z29: 0 | AA29: =COUNTIF($AG$25:$AG$32,W29)*$AA$15 -> 0 | AB29: 0 | AC29: 0 | AD29: ='Lotto3_R7425-1'!$F$128 -> 0 | AE29: ='Lotto3_R7425-2'!$F$128 -> 0 | AF29: ='Lotto3_R7425-3'!$F$128 -> 0 | AG29: ='Lotto3_R7425(NVMe)'!$F$148 -> 0 | AH29: ='Lotto3_R7425(GPU DW)'!$F$128 -> 0 | AI29: ='Lotto3_R7425(GPU SW)'!$F$128 ->  | AN29: 0
C30: =IF(AN30>0,VLOOKUP($G30,'Codici&PrezzixRiepilogo'!B:E,4,FALSE),"") ->  | J30: =IF(AN30>0,VLOOKUP($G30,'Codici&PrezzixRiepilogo'!B:E,2,FALSE),"") ->  | R30: =IF(AN30>0,VLOOKUP($G30,'Codici&PrezzixRiepilogo'!B:E,3,FALSE),"") ->  | V30: 0 | W30: TS2L3-LAN10-L | X30: 0 | Y30: 0 | Z30: 0 | AA30: =COUNTIF($AG$25:$AG$32,W30)*$AA$15 -> 0 | AB30: 0 | AC30: 0 | AD30: ='Lotto3_R7425-1'!$F$131 ->  | AE30: ='Lotto3_R7425-2'!$F$131 ->  | AF30: ='Lotto3_R7425-3'!$F$131 ->  | AG30: ='Lotto3_R7425(NVMe)'!$F$151 ->  | AH30: ='Lotto3_R7425(GPU DW)'!$F$131 ->  | AI30: ='Lotto3_R7425(GPU SW)'!$F$131 ->  | AN30: 0
C31: =IF(AN31>0,VLOOKUP($G31,'Codici&PrezzixRiepilogo'!B:E,4,FALSE),"") ->  | J31: =IF(AN31>0,VLOOKUP($G31,'Codici&PrezzixRiepilogo'!B:E,2,FALSE),"") ->  | R31: =IF(AN31>0,VLOOKUP($G31,'Codici&PrezzixRiepilogo'!B:E,3,FALSE),"") ->  | V31: 0 | W31: TS2L3-CNA10-L | X31: 0 | Y31: 0 | Z31: 0 | AA31: =COUNTIF($AG$25:$AG$32,W31)*$AA$15 -> 0 | AB31: 0 | AC31: 0 | AD31: ='Lotto3_R7425-1'!$F$134 ->  | AE31: ='Lotto3_R7425-2'!$F$134 ->  | AF31: ='Lotto3_R7425-3'!$F$134 ->  | AG31: ='Lotto3_R7425(NVMe)'!$F$154 ->  | AH31: ='Lotto3_R7425(GPU DW)'!$F$134 ->  | AI31: ='Lotto3_R7425(GPU SW)'!$F$134 ->  | AN31: 0
C32: =IF(AN32>0,VLOOKUP($G32,'Codici&PrezzixRiepilogo'!B:E,4,FALSE),"") ->  | J32: =IF(AN32>0,VLOOKUP($G32,'Codici&PrezzixRiepilogo'!B:E,2,FALSE),"") ->  | R32: =IF(AN32>0,VLOOKUP($G32,'Codici&PrezzixRiepilogo'!B:E,3,FALSE),"") ->  | V32: 0 | W32: TS2L3-FC8-L | X32: 0 | Y32: 0 | Z32: 0 | AA32: =COUNTIF($AG$25:$AG$32,W32)*$AA$15 -> 0 | AB32: 0 | AC32: 0 | AD32: ='Lotto3_R7425-1'!$F$137 ->  | AE32: ='Lotto3_R7425-2'!$F$137 ->  | AF32: ='Lotto3_R7425-3'!$F$137 ->  | AG32: ='Lotto3_R7425(NVMe)'!$F$157 ->  | AH32: ='Lotto3_R7425(GPU DW)'!$F$137 ->  | AI32: ='Lotto3_R7425(GPU SW)'!$F$137 ->  | AN32: 0
C33: =IF(AN33>0,VLOOKUP($G33,'Codici&PrezzixRiepilogo'!B:E,4,FALSE),"") ->  | J33: =IF(AN33>0,VLOOKUP($G33,'Codici&PrezzixRiepilogo'!B:E,2,FALSE),"") ->  | R33: =IF(AN33>0,VLOOKUP($G33,'Codici&PrezzixRiepilogo'!B:E,3,FALSE),"") ->  | V33: 0 | W33: TS2L3-4Y | X33: =IF('Lotto3_R7425-1'!$F$181=Riepilogo!$W33,('Lotto3_R7425-1'!$C$181)*$X$15,0) -> 0 | Y33: =IF('Lotto3_R7425-2'!$F$181=Riepilogo!$W33,('Lotto3_R7425-2'!$C$181)*$Y$15,0) -> 0 | Z33: =IF('Lotto3_R7425-3'!$F$181=Riepilogo!$W33,('Lotto3_R7425-3'!$C$181)*$Z$15,0) -> 0 | AA33: =IF('Lotto3_R7425(NVMe)'!$F$201=Riepilogo!$W33,('Lotto3_R7425(NVMe)'!$C$201)*$AA$15,0) -> 0 | AB33: =IF('Lotto3_R7425(GPU DW)'!$F$181=Riepilogo!$W33,('Lotto3_R7425(GPU DW)'!$C$181)*$AB$15,0) -> 0 | AC33: =IF('Lotto3_R7425(GPU SW)'!$F$181=Riepilogo!$W33,('Lotto3_R7425(GPU SW)'!$C$181)*$AC$15,0) -> 0 | AN33: 0
C34: =IF(AN34>0,VLOOKUP($G34,'Codici&PrezzixRiepilogo'!B:E,4,FALSE),"") ->  | J34: =IF(AN34>0,VLOOKUP($G34,'Codici&PrezzixRiepilogo'!B:E,2,FALSE),"") ->  | R34: =IF(AN34>0,VLOOKUP($G34,'Codici&PrezzixRiepilogo'!B:E,3,FALSE),"") ->  | V34: 0 | W34: TS2L3-5Y | X34: =IF('Lotto3_R7425-1'!$F$181=Riepilogo!$W34,('Lotto3_R7425-1'!$C$181)*$X$15,0) -> 0 | Y34: =IF('Lotto3_R7425-2'!$F$181=Riepilogo!$W34,('Lotto3_R7425-2'!$C$181)*$Y$15,0) -> 0 | Z34: =IF('Lotto3_R7425-3'!$F$181=Riepilogo!$W34,('Lotto3_R7425-3'!$C$181)*$Z$15,0) -> 0 | AA34: =IF('Lotto3_R7425(NVMe)'!$F$201=Riepilogo!$W34,('Lotto3_R7425(NVMe)'!$C$201)*$AA$15,0) -> 0 | AB34: =IF('Lotto3_R7425(GPU DW)'!$F$181=Riepilogo!$W34,('Lotto3_R7425(GPU DW)'!$C$181)*$AB$15,0) -> 0 | AC34: =IF('Lotto3_R7425(GPU SW)'!$F$181=Riepilogo!$W34,('Lotto3_R7425(GPU SW)'!$C$181)*$AC$15,0) -> 0 | AN34: 0
C35: =IF(AN35>0,VLOOKUP($G35,'Codici&PrezzixRiepilogo'!B:E,4,FALSE),"") ->  | J35: =IF(AN35>0,VLOOKUP($G35,'Codici&PrezzixRiepilogo'!B:E,2,FALSE),"") ->  | R35: =IF(AN35>0,VLOOKUP($G35,'Codici&PrezzixRiepilogo'!B:E,3,FALSE),"") ->  | V35: 0 | W35: TS2L3-WIN1 | X35: =IF('Lotto3_R7425-1'!$F$44=Riepilogo!$W35,('Lotto3_R7425-1'!$C$44)*$X$15,0) -> 0 | Y35: =IF('Lotto3_R7425-2'!$F$44=Riepilogo!$W35,('Lotto3_R7425-2'!$C$44)*$Y$15,0) -> 0 | Z35: =IF('Lotto3_R7425-3'!$F$44=Riepilogo!$W35,('Lotto3_R7425-3'!$C$44)*$Z$15,0) -> 0 | AA35: =IF('Lotto3_R7425(NVMe)'!$F$44=Riepilogo!$W35,('Lotto3_R7425(NVMe)'!$C$44)*$AA$15,0) -> 0 | AB35: =IF('Lotto3_R7425(GPU DW)'!$F$44=Riepilogo!$W35,('Lotto3_R7425(GPU DW)'!$C$44)*$AB$15,0) -> 0 | AC35: =IF('Lotto3_R7425(GPU SW)'!$F$44=Riepilogo!$W35,('Lotto3_R7425(GPU SW)'!$C$44)*$AC$15,0) -> 0 | AN35: 0
C36: =IF(AN36>0,VLOOKUP($G36,'Codici&PrezzixRiepilogo'!B:E,4,FALSE),"") ->  | J36: =IF(AN36>0,VLOOKUP($G36,'Codici&PrezzixRiepilogo'!B:E,2,FALSE),"") ->  | R36: =IF(AN36>0,VLOOKUP($G36,'Codici&PrezzixRiepilogo'!B:E,3,FALSE),"") ->  | V36: 0 | W36: TS2L3-WIN2CORE | X36: =IF('Lotto3_R7425-1'!$F$45=Riepilogo!$W36,('Lotto3_R7425-1'!$C$45)*$X$15,0) -> 0 | Y36: =IF('Lotto3_R7425-2'!$F$45=Riepilogo!$W36,('Lotto3_R7425-2'!$C$45)*$Y$15,0) -> 0 | Z36: =IF('Lotto3_R7425-3'!$F$45=Riepilogo!$W36,('Lotto3_R7425-3'!$C$45)*$Z$15,0) -> 0 | AA36: =IF('Lotto3_R7425(NVMe)'!$F$45=Riepilogo!$W36,('Lotto3_R7425(NVMe)'!$C$45)*$AA$15,0) -> 0 | AB36: =IF('Lotto3_R7425(GPU DW)'!$F$45=Riepilogo!$W36,('Lotto3_R7425(GPU DW)'!$C$45)*$AB$15,0) -> 0 | AC36: =IF('Lotto3_R7425(GPU SW)'!$F$45=Riepilogo!$W36,('Lotto3_R7425(GPU SW)'!$C$45)*$AC$15,0) -> 0 | AN36: 0
C37: =IF(AN37>0,VLOOKUP($G37,'Codici&PrezzixRiepilogo'!B:E,4,FALSE),"") ->  | J37: =IF(AN37>0,VLOOKUP($G37,'Codici&PrezzixRiepilogo'!B:E,2,FALSE),"") ->  | R37: =IF(AN37>0,VLOOKUP($G37,'Codici&PrezzixRiepilogo'!B:E,3,FALSE),"") ->  | V37: 0 | W37: TS2L3-LINUX | X37: =IF('Lotto3_R7425-1'!$F$44=Riepilogo!$W37,('Lotto3_R7425-1'!$C$44)*$X$15,0) -> 0 | Y37: =IF('Lotto3_R7425-2'!$F$44=Riepilogo!$W37,('Lotto3_R7425-2'!$C$44)*$Y$15,0) -> 0 | Z37: =IF('Lotto3_R7425-3'!$F$45=Riepilogo!$W37,('Lotto3_R7425-3'!$C$44)*$Z$15,0) -> 0 | AA37: =IF('Lotto3_R7425(NVMe)'!$F$45=Riepilogo!$W37,('Lotto3_R7425(NVMe)'!$C$44)*$AA$15,0) -> 0 | AB37: =IF('Lotto3_R7425(GPU DW)'!$F$44=Riepilogo!$W37,('Lotto3_R7425(GPU DW)'!$C$44)*$AB$15,0) -> 0 | AC37: =IF('Lotto3_R7425(GPU SW)'!$F$44=Riepilogo!$W37,('Lotto3_R7425(GPU SW)'!$C$44)*$AC$15,0) -> 0 | AN37: 0
C38: =IF(AN38>0,VLOOKUP($G38,'Codici&PrezzixRiepilogo'!B:E,4,FALSE),"") ->  | J38: =IF(AN38>0,VLOOKUP($G38,'Codici&PrezzixRiepilogo'!B:E,2,FALSE),"") ->  | R38: =IF(AN38>0,VLOOKUP($G38,'Codici&PrezzixRiepilogo'!B:E,3,FALSE),"") ->  | V38: 0 | W38: TS2L3-CALDEV | X38: ='Lotto3_R7425-1'!$C$48*X15 -> 0 | Y38: ='Lotto3_R7425-2'!$C$48*Y15 -> 0 | Z38: ='Lotto3_R7425-3'!$C$48*Z15 -> 0 | AA38: ='Lotto3_R7425(NVMe)'!$C$48*AA15 -> 0 | AB38: ='Lotto3_R7425(GPU DW)'!$C$48*AB15 -> 0 | AC38: ='Lotto3_R7425(GPU SW)'!$C$48*AC15 -> 0 | AN38: 0
C39: =IF(AN39>0,VLOOKUP($G39,'Codici&PrezzixRiepilogo'!B:E,4,FALSE),"") ->  | J39: =IF(AN39>0,VLOOKUP($G39,'Codici&PrezzixRiepilogo'!B:E,2,FALSE),"") ->  | R39: =IF(AN39>0,VLOOKUP($G39,'Codici&PrezzixRiepilogo'!B:E,3,FALSE),"") ->  | V39: 0 | W39: TS2L3-CALUSER | X39: ='Lotto3_R7425-1'!$C$50*X15 -> 0 | Y39: ='Lotto3_R7425-2'!$C$50*Y15 -> 0 | Z39: ='Lotto3_R7425-3'!$C$50*Z15 -> 0 | AA39: ='Lotto3_R7425(NVMe)'!$C$50*AA15 -> 0 | AB39: ='Lotto3_R7425(GPU DW)'!$C$50*AB15 -> 0 | AC39: ='Lotto3_R7425(GPU SW)'!$C$50*AC15 -> 0 | AN39: 0
B40: OPZIONI COMUNI | V40: =IF(SUM(V41:V44)=0,0,1) -> 0
B41: =IF(AN41>=1,AN41,"") ->  | C41: =IF(AN41>0,VLOOKUP($G41,'Codici&PrezzixRiepilogo'!B:E,4,FALSE),"") ->  | G41: =IF(AN41>=1,W41,"") ->  | J41: =IF(AN41>0,VLOOKUP($G41,'Codici&PrezzixRiepilogo'!B:E,2,FALSE),"") ->  | R41: =IF(AN41>0,VLOOKUP($G41,'Codici&PrezzixRiepilogo'!B:E,3,FALSE),"") ->  | T41: =IF(B41="","",R41*B41) ->  | V41: 0 | W41: TS2L3-RACK | X41: ='Rack e Accessori'!J6 -> 0 | AN41: 0
C42: =IF(AN42>0,VLOOKUP($G42,'Codici&PrezzixRiepilogo'!B:E,4,FALSE),"") ->  | G42: =IF(AN42>=1,W42,"") ->  | J42: =IF(AN42>0,VLOOKUP($G42,'Codici&PrezzixRiepilogo'!B:E,2,FALSE),"") ->  | R42: =IF(AN42>0,VLOOKUP($G42,'Codici&PrezzixRiepilogo'!B:E,3,FALSE),"") ->  | T42: =IF(B42="","",R42*B42) ->  | V42: 0 | W42: TS2L3-GUI | X42: ='Rack e Accessori'!J39 -> 0 | AN42: 0
C43: =IF(AN43>0,VLOOKUP($G43,'Codici&PrezzixRiepilogo'!B:E,4,FALSE),"") ->  | J43: =IF(AN43>0,VLOOKUP($G43,'Codici&PrezzixRiepilogo'!B:E,2,FALSE),"") ->  | R43: =IF(AN43>0,VLOOKUP($G43,'Codici&PrezzixRiepilogo'!B:E,3,FALSE),"") ->  | V43: 0 | W43: TS2L3-KVMIP | X43: ='Rack e Accessori'!J42 -> 0 | AN43: 0
C44: =IF(AN44>0,VLOOKUP($G44,'Codici&PrezzixRiepilogo'!B:E,4,FALSE),"") ->  | J44: =IF(AN44>0,VLOOKUP($G44,'Codici&PrezzixRiepilogo'!B:E,2,FALSE),"") ->  | R44: =IF(AN44>0,VLOOKUP($G44,'Codici&PrezzixRiepilogo'!B:E,3,FALSE),"") ->  | V44: 0 | W44: TS2L3-UPS | X44: ='Rack e Accessori'!J45 -> 0 | AN44: 0
B45: ULTERIORI OPZIONI 20% | V45: =IF(SUM(R116>0)=0,0,1) -> 0
B46: =IF(AN46>=1,AN46,"") ->  | C46: =IF(AN46>0,VLOOKUP($G46,'Codici&PrezzixRiepilogo'!B:E,4,FALSE),"") ->  | G46: =IF(AN46>=1,W46,"") ->  | J46: =IF(AN46>0,VLOOKUP($G46,'Codici&PrezzixRiepilogo'!B:E,2,FALSE),"") ->  | R46: =IF(AN46>0,VLOOKUP($G46,'Codici&PrezzixRiepilogo'!B:E,3,FALSE),"") ->  | T46: =IF(B46="","",R46*B46) ->  | V46: 0 | W46: TS2L3-3MRJ45 | X46: ='Lotto3_R7425-1'!$C$178*$X$15 -> 0 | Y46: ='Lotto3_R7425-2'!$C$178*$Y$15 -> 0 | Z46: ='Lotto3_R7425-3'!$C$178*Z$15 -> 0 | AA46: ='Lotto3_R7425(NVMe)'!$C$198*AA$15 -> 0 | AB46: ='Lotto3_R7425(GPU DW)'!$C$178*$AB$15 -> 0 | AC46: ='Lotto3_R7425(GPU SW)'!$C$178*$AC$15 -> 0 | AN46: 0
C47: =IF(AN47>0,VLOOKUP($G47,'Codici&PrezzixRiepilogo'!B:E,4,FALSE),"") ->  | G47: =IF(AN47>=1,W47,"") ->  | J47: =IF(AN47>0,VLOOKUP($G47,'Codici&PrezzixRiepilogo'!B:E,2,FALSE),"") ->  | R47: =IF(AN47>0,VLOOKUP($G47,'Codici&PrezzixRiepilogo'!B:E,3,FALSE),"") ->  | T47: =IF(B47="","",R47*B47) ->  | V47: 0 | W47: TS2L3-BOSS240 | X47: =COUNTIF($AD$25:$AD$32,W47)*$X$15 -> 0 | Y47: =COUNTIF($AE$25:$AE$32,W47)*$Y$15 -> 0 | Z47: =COUNTIF($AF$25:$AF$32,$W$47)*Z$15 -> 0 | AA47: =COUNTIF($AF$25:$AF$32,$W$47)*AA$15 -> 0 | AB47: =COUNTIF($AH$25:$AH$32,W47)*$AB$15 -> 0 | AC47: =COUNTIF($AI$25:$AI$32,W47)*$AC$15 -> 0 | AN47: 0
C48: =IF(AN48>0,VLOOKUP($G48,'Codici&PrezzixRiepilogo'!B:E,4,FALSE),"") ->  | J48: =IF(AN48>0,VLOOKUP($G48,'Codici&PrezzixRiepilogo'!B:E,2,FALSE),"") ->  | R48: =IF(AN48>0,VLOOKUP($G48,'Codici&PrezzixRiepilogo'!B:E,3,FALSE),"") ->  | V48: 0 | W48: TS2L3-ISDM32 | X48: ='Lotto3_R7425-1'!$C$104*$X$15 -> 0 | Y48: ='Lotto3_R7425-2'!$C$104*$Y$15 -> 0 | Z48: ='Lotto3_R7425-3'!$C$104*Z$15 -> 0 | AA48: ='Lotto3_R7425(NVMe)'!$C$124*AA$15 -> 0 | AB48: ='Lotto3_R7425(GPU DW)'!$C$104*$AB$15 -> 0 | AC48: ='Lotto3_R7425(GPU SW)'!$C$104*$AC$15 -> 0 | AN48: 0
C49: =IF(AN49>0,VLOOKUP($G49,'Codici&PrezzixRiepilogo'!B:E,4,FALSE),"") ->  | J49: =IF(AN49>0,VLOOKUP($G49,'Codici&PrezzixRiepilogo'!B:E,2,FALSE),"") ->  | R49: =IF(AN49>0,VLOOKUP($G49,'Codici&PrezzixRiepilogo'!B:E,3,FALSE),"") ->  | V49: 0 | W49: TS2L3-LCDBEZEL | X49: =IF('Lotto3_R7425-1'!$F$140=Riepilogo!$W49,('Lotto3_R7425-1'!$C$140)*$X$15,0) -> 0 | Y49: =IF('Lotto3_R7425-2'!$F$140=Riepilogo!$W49,('Lotto3_R7425-2'!$C$140)*$Y$15,0) -> 0 | Z49: =IF('Lotto3_R7425-3'!$F$140=Riepilogo!$W49,('Lotto3_R7425-3'!$C$140)*Z$15,0) -> 0 | AA49: =IF('Lotto3_R7425(NVMe)'!$F$160=Riepilogo!$W49,('Lotto3_R7425(NVMe)'!$C$160)*AA$15,0) -> 0 | AB49: =IF('Lotto3_R7425(GPU DW)'!$F$140=Riepilogo!$W49,('Lotto3_R7425(GPU DW)'!$C$140)*$AB$15,0) -> 0 | AC49: =IF('Lotto3_R7425(GPU SW)'!$F$140=Riepilogo!$W49,('Lotto3_R7425(GPU SW)'!$C$140)*$AC$15,0) -> 0 | AN49: 0
C50: =IF(AN50>0,VLOOKUP($G50,'Codici&PrezzixRiepilogo'!B:E,4,FALSE),"") ->  | J50: =IF(AN50>0,VLOOKUP($G50,'Codici&PrezzixRiepilogo'!B:E,2,FALSE),"") ->  | R50: =IF(AN50>0,VLOOKUP($G50,'Codici&PrezzixRiepilogo'!B:E,3,FALSE),"") ->  | V50: 0 | W50: TS2L3-STDBEZEL | X50: =IF('Lotto3_R7425-1'!$F$140=Riepilogo!$W50,('Lotto3_R7425-1'!$C$140)*$X$15,0) -> 0 | Y50: =IF('Lotto3_R7425-2'!$F$140=Riepilogo!$W50,('Lotto3_R7425-2'!$C$140)*$Y$15,0) -> 0 | Z50: =IF('Lotto3_R7425-3'!$F$140=Riepilogo!$W$50,('Lotto3_R7425-3'!$C$140)*Z$15,0) -> 0 | AA50: =IF('Lotto3_R7425(NVMe)'!$F$160=Riepilogo!$W$50,('Lotto3_R7425(NVMe)'!$C$160)*AA$15,0) -> 0 | AB50: =IF('Lotto3_R7425(GPU DW)'!$F$140=Riepilogo!$W50,('Lotto3_R7425(GPU DW)'!$C$140)*$AB$15,0) -> 0 | AC50: =IF('Lotto3_R7425(GPU SW)'!$F$140=Riepilogo!$W50,('Lotto3_R7425(GPU SW)'!$C$140)*$AC$15,0) -> 0 | AN50: 0
C51: =IF(AN51>0,VLOOKUP($G51,'Codici&PrezzixRiepilogo'!B:E,4,FALSE),"") ->  | J51: =IF(AN51>0,VLOOKUP($G51,'Codici&PrezzixRiepilogo'!B:E,2,FALSE),"") ->  | R51: =IF(AN51>0,VLOOKUP($G51,'Codici&PrezzixRiepilogo'!B:E,3,FALSE),"") ->  | V51: 0 | W51: TS2L3-MCX416AM3 | X51: =COUNTIF($AD$25:$AD$32,W51)*$X$15 -> 0 | Y51: =COUNTIF($AE$25:$AE$32,W51)*$Y$15 -> 0 | Z51: =COUNTIF($AF$25:$AF$32,$W$51)*Z$15 -> 0 | AA51: =COUNTIF($AG$25:$AG$32,$W$51)*AA$15 -> 0 | AB51: =COUNTIF($AH$25:$AH$32,W51)*$AB$15 -> 0 | AC51: =COUNTIF($AI$25:$AI$32,W51)*$AC$15 -> 0 | AN51: 0
C52: =IF(AN52>0,VLOOKUP($G52,'Codici&PrezzixRiepilogo'!B:E,4,FALSE),"") ->  | J52: =IF(AN52>0,VLOOKUP($G52,'Codici&PrezzixRiepilogo'!B:E,2,FALSE),"") ->  | R52: =IF(AN52>0,VLOOKUP($G52,'Codici&PrezzixRiepilogo'!B:E,3,FALSE),"") ->  | V52: 0 | W52: TS2L3-MCX516AM3 | X52: 0 | Y52: 0 | Z52: =COUNTIF($AF$25:$AF$32,$W$52)*Z$15 -> 0 | AA52: =COUNTIF($AG$25:$AG$32,$W$52)*AA$15 -> 0 | AB52: 0 | AC52: =COUNTIF($AI$25:$AI$32,W52)*$AC$15 -> 0 | AN52: 0
C53: =IF(AN53>0,VLOOKUP($G53,'Codici&PrezzixRiepilogo'!B:E,4,FALSE),"") ->  | J53: =IF(AN53>0,VLOOKUP($G53,'Codici&PrezzixRiepilogo'!B:E,2,FALSE),"") ->  | R53: =IF(AN53>0,VLOOKUP($G53,'Codici&PrezzixRiepilogo'!B:E,3,FALSE),"") ->  | V53: 0 | W53: TS2L3-MCX4121AM3 | X53: 0 | Y53: 0 | Z53: =COUNTIF($AF$25:$AF$32,$W$53)*Z$15 -> 0 | AA53: =COUNTIF($AG$25:$AG$32,$W$53)*AA$15 -> 0 | AB53: 0 | AC53: 0 | AN53: 0
C54: =IF(AN54>0,VLOOKUP($G54,'Codici&PrezzixRiepilogo'!B:E,4,FALSE),"") ->  | J54: =IF(AN54>0,VLOOKUP($G54,'Codici&PrezzixRiepilogo'!B:E,2,FALSE),"") ->  | R54: =IF(AN54>0,VLOOKUP($G54,'Codici&PrezzixRiepilogo'!B:E,3,FALSE),"") ->  | V54: 0 | W54: TS2L3-HBA330 | X54: 0 | Y54: 0 | Z54: =COUNTIF($AF$25:$AF$32,$W$54)*Z$15 -> 0 | AA54: =COUNTIF($AF$25:$AF$32,$W$54)*AA$15 -> 0 | AB54: 0 | AC54: 0 | AN54: 0
C55: =IF(AN55>0,VLOOKUP($G55,'Codici&PrezzixRiepilogo'!B:E,4,FALSE),"") ->  | J55: =IF(AN55>0,VLOOKUP($G55,'Codici&PrezzixRiepilogo'!B:E,2,FALSE),"") ->  | R55: =IF(AN55>0,VLOOKUP($G55,'Codici&PrezzixRiepilogo'!B:E,3,FALSE),"") ->  | V55: 0 | W55: TS2L3-HBASAS12 | X55: 0 | Y55: 0 | Z55: =COUNTIF($AF$25:$AF$32,$W$55)*Z$15 -> 0 | AA55: =COUNTIF($AG$25:$AG$32,$W$55)*AA$15 -> 0 | AB55: 0 | AC55: 0 | AN55: 0
C56: =IF(AN56>0,VLOOKUP($G56,'Codici&PrezzixRiepilogo'!B:E,4,FALSE),"") ->  | J56: =IF(AN56>0,VLOOKUP($G56,'Codici&PrezzixRiepilogo'!B:E,2,FALSE),"") ->  | R56: =IF(AN56>0,VLOOKUP($G56,'Codici&PrezzixRiepilogo'!B:E,3,FALSE),"") ->  | V56: 0 | W56: TS2L3-H740P | X56: 0 | Y56: 0 | Z56: =COUNTIF($AF$25:$AF$32,$W$56)*Z$15 -> 0 | AA56: =COUNTIF($AG$25:$AG$32,$W$56)*AA$15 -> 0 | AB56: 0 | AC56: 0 | AN56: 0
C57: =IF(AN57>0,VLOOKUP($G57,'Codici&PrezzixRiepilogo'!B:E,4,FALSE),"") ->  | J57: =IF(AN57>0,VLOOKUP($G57,'Codici&PrezzixRiepilogo'!B:E,2,FALSE),"") ->  | R57: =IF(AN57>0,VLOOKUP($G57,'Codici&PrezzixRiepilogo'!B:E,3,FALSE),"") ->  | V57: 0 | W57: TS2L3-Q41162T | X57: 0 | Y57: 0 | Z57: =COUNTIF($AF$25:$AF$32,$W$57)*Z$15 -> 0 | AA57: =COUNTIF($AF$25:$AF$32,$W$57)*AA$15 -> 0 | AB57: 0 | AC57: 0 | AN57: 0
C58: =IF(AN58>0,VLOOKUP($G58,'Codici&PrezzixRiepilogo'!B:E,4,FALSE),"") ->  | J58: =IF(AN58>0,VLOOKUP($G58,'Codici&PrezzixRiepilogo'!B:E,2,FALSE),"") ->  | R58: =IF(AN58>0,VLOOKUP($G58,'Codici&PrezzixRiepilogo'!B:E,3,FALSE),"") ->  | V58: 0 | W58: TS2L3-Q41162T-L | X58: 0 | Y58: 0 | Z58: =COUNTIF($AF$25:$AF$32,$W$58)*Z$15 -> 0 | AA58: =COUNTIF($AG$25:$AG$32,$W$58)*AA$15 -> 0 | AB58: 0 | AC58: 0 | AN58: 0
C59: =IF(AN59>0,VLOOKUP($G59,'Codici&PrezzixRiepilogo'!B:E,4,FALSE),"") ->  | J59: =IF(AN59>0,VLOOKUP($G59,'Codici&PrezzixRiepilogo'!B:E,2,FALSE),"") ->  | R59: =IF(AN59>0,VLOOKUP($G59,'Codici&PrezzixRiepilogo'!B:E,3,FALSE),"") ->  | V59: 0 | W59: TS2L3-Q41164T-L | X59: 0 | Y59: 0 | Z59: =COUNTIF($AF$25:$AF$32,$W$59)*Z$15 -> 0 | AA59: =COUNTIF($AG$25:$AG$32,$W$59)*AA$15 -> 0 | AB59: 0 | AC59: 0 | AN59: 0
C60: =IF(AN60>0,VLOOKUP($G60,'Codici&PrezzixRiepilogo'!B:E,4,FALSE),"") ->  | J60: =IF(AN60>0,VLOOKUP($G60,'Codici&PrezzixRiepilogo'!B:E,2,FALSE),"") ->  | R60: =IF(AN60>0,VLOOKUP($G60,'Codici&PrezzixRiepilogo'!B:E,3,FALSE),"") ->  | V60: 0 | W60: TS2L3-Q2692 | X60: 0 | Y60: 0 | Z60: =COUNTIF($AF$25:$AF$32,$W$60)*Z$15 -> 0 | AA60: =COUNTIF($AG$25:$AG$32,$W$60)*AA$15 -> 0 | AB60: 0 | AC60: 0 | AN60: 0
C61: =IF(AN61>0,VLOOKUP($G61,'Codici&PrezzixRiepilogo'!B:E,4,FALSE),"") ->  | J61: =IF(AN61>0,VLOOKUP($G61,'Codici&PrezzixRiepilogo'!B:E,2,FALSE),"") ->  | R61: =IF(AN61>0,VLOOKUP($G61,'Codici&PrezzixRiepilogo'!B:E,3,FALSE),"") ->  | V61: 0 | W61: TS2L3-Q2692-L | X61: 0 | Y61: 0 | Z61: =COUNTIF($AF$25:$AF$32,$W$61)*Z$15 -> 0 | AA61: =COUNTIF($AG$25:$AG$32,$W$61)*AA$15 -> 0 | AB61: 0 | AC61: 0 | AN61: 0
C62: =IF(AN62>0,VLOOKUP($G62,'Codici&PrezzixRiepilogo'!B:E,4,FALSE),"") ->  | J62: =IF(AN62>0,VLOOKUP($G62,'Codici&PrezzixRiepilogo'!B:E,2,FALSE),"") ->  | R62: =IF(AN62>0,VLOOKUP($G62,'Codici&PrezzixRiepilogo'!B:E,3,FALSE),"") ->  | V62: 0 | W62: TS2L3-B57416T | X62: 0 | Y62: 0 | Z62: =COUNTIF($AF$25:$AF$32,$W$62)*Z$15 -> 0 | AA62: =COUNTIF($AG$25:$AG$32,$W$62)*AA$15 -> 0 | AB62: 0 | AC62: 0 | AN62: 0
C63: =IF(AN63>0,VLOOKUP($G63,'Codici&PrezzixRiepilogo'!B:E,4,FALSE),"") ->  | J63: =IF(AN63>0,VLOOKUP($G63,'Codici&PrezzixRiepilogo'!B:E,2,FALSE),"") ->  | R63: =IF(AN63>0,VLOOKUP($G63,'Codici&PrezzixRiepilogo'!B:E,3,FALSE),"") ->  | V63: 0 | W63: TS2L3-B57416T-L | X63: 0 | Y63: 0 | Z63: =COUNTIF($AF$25:$AF$32,$W$63)*Z$15 -> 0 | AA63: =COUNTIF($AG$25:$AG$32,$W$63)*AA$15 -> 0 | AB63: 0 | AC63: 0 | AN63: 0
C64: =IF(AN64>0,VLOOKUP($G64,'Codici&PrezzixRiepilogo'!B:E,4,FALSE),"") ->  | J64: =IF(AN64>0,VLOOKUP($G64,'Codici&PrezzixRiepilogo'!B:E,2,FALSE),"") ->  | R64: =IF(AN64>0,VLOOKUP($G64,'Codici&PrezzixRiepilogo'!B:E,3,FALSE),"") ->  | V64: 0 | W64: TS2L3-5XDAC100M2 | X64: ='Lotto3_R7425-1'!$C$173*$X$15 -> 0 | Y64: ='Lotto3_R7425-2'!$C$173*$Y$15 -> 0 | Z64: ='Lotto3_R7425-3'!$C$173*Z$15 -> 0 | AA64: ='Lotto3_R7425(NVMe)'!$C$193*AA$15 -> 0 | AB64: ='Lotto3_R7425(GPU DW)'!$C$173*$AB$15 -> 0 | AC64: ='Lotto3_R7425(GPU SW)'!$C$173*$AC$15 -> 0 | AN64: 0
C65: =IF(AN65>0,VLOOKUP($G65,'Codici&PrezzixRiepilogo'!B:E,4,FALSE),"") ->  | J65: =IF(AN65>0,VLOOKUP($G65,'Codici&PrezzixRiepilogo'!B:E,2,FALSE),"") ->  | R65: =IF(AN65>0,VLOOKUP($G65,'Codici&PrezzixRiepilogo'!B:E,3,FALSE),"") ->  | V65: 0 | W65: TS2L3-5XDAC100M3 | X65: ='Lotto3_R7425-1'!$C$175*$X$15 -> 0 | Y65: ='Lotto3_R7425-2'!$C$175*$Y$15 -> 0 | Z65: ='Lotto3_R7425-3'!$C$175*Z$15 -> 0 | AA65: ='Lotto3_R7425(NVMe)'!$C$195*AA$15 -> 0 | AB65: ='Lotto3_R7425(GPU DW)'!$C$175*$AB$15 -> 0 | AC65: ='Lotto3_R7425(GPU SW)'!$C$175*$AC$15 -> 0 | AN65: 0
C66: =IF(AN66>0,VLOOKUP($G66,'Codici&PrezzixRiepilogo'!B:E,4,FALSE),"") ->  | J66: =IF(AN66>0,VLOOKUP($G66,'Codici&PrezzixRiepilogo'!B:E,2,FALSE),"") ->  | R66: =IF(AN66>0,VLOOKUP($G66,'Codici&PrezzixRiepilogo'!B:E,3,FALSE),"") ->  | V66: 0 | W66: TS2L3-5XDAC10M3 | X66: ='Lotto3_R7425-1'!$C$171*$X$15 -> 0 | Y66: ='Lotto3_R7425-2'!$C$171*$Y$15 -> 0 | Z66: ='Lotto3_R7425-3'!$C$171*Z$15 -> 0 | AA66: ='Lotto3_R7425(NVMe)'!$C$191*AA$15 -> 0 | AB66: ='Lotto3_R7425(GPU DW)'!$C$171*$AB$15 -> 0 | AC66: ='Lotto3_R7425(GPU SW)'!$C$171*$AC$15 -> 0 | AN66: 0
C67: =IF(AN67>0,VLOOKUP($G67,'Codici&PrezzixRiepilogo'!B:E,4,FALSE),"") ->  | J67: =IF(AN67>0,VLOOKUP($G67,'Codici&PrezzixRiepilogo'!B:E,2,FALSE),"") ->  | R67: =IF(AN67>0,VLOOKUP($G67,'Codici&PrezzixRiepilogo'!B:E,3,FALSE),"") ->  | V67: 0 | W67: TS2L3-SSDW1600 | X67: ='Lotto3_R7425-1'!$C$78*$X$15 -> 0 | Y67: ='Lotto3_R7425-2'!$C$78*$Y$15 -> 0 | Z67: ='Lotto3_R7425-3'!$C$78*Z$15 -> 0 | AA67: ='Lotto3_R7425(NVMe)'!$C$78*AA$15 -> 0 | AB67: ='Lotto3_R7425(GPU DW)'!$C$78*$AB$15 -> 0 | AC67: ='Lotto3_R7425(GPU SW)'!$C$78*$AC$15 -> 0 | AN67: 0
C68: =IF(AN68>0,VLOOKUP($G68,'Codici&PrezzixRiepilogo'!B:E,4,FALSE),"") ->  | J68: =IF(AN68>0,VLOOKUP($G68,'Codici&PrezzixRiepilogo'!B:E,2,FALSE),"") ->  | R68: =IF(AN68>0,VLOOKUP($G68,'Codici&PrezzixRiepilogo'!B:E,3,FALSE),"") ->  | V68: 0 | W68: TS2L3-SSDW400 | X68: ='Lotto3_R7425-1'!$C$76*$X$15 -> 0 | Y68: ='Lotto3_R7425-2'!$C$76*$Y$15 -> 0 | Z68: ='Lotto3_R7425-3'!$C$76*$Z$15 -> 0 | AA68: ='Lotto3_R7425(NVMe)'!$C$76*AA$15 -> 0 | AB68: ='Lotto3_R7425(GPU DW)'!$C$76*$AB$15 -> 0 | AC68: ='Lotto3_R7425(GPU SW)'!$C$76*$AC$15 -> 0 | AN68: 0
C69: =IF(AN69>0,VLOOKUP($G69,'Codici&PrezzixRiepilogo'!B:E,4,FALSE),"") ->  | J69: =IF(AN69>0,VLOOKUP($G69,'Codici&PrezzixRiepilogo'!B:E,2,FALSE),"") ->  | R69: =IF(AN69>0,VLOOKUP($G69,'Codici&PrezzixRiepilogo'!B:E,3,FALSE),"") ->  | V69: 0 | W69: TS2L3-10K2400 | X69: ='Lotto3_R7425-1'!$C$72*$X$15 -> 0 | Y69: ='Lotto3_R7425-2'!$C$72*$Y$15 -> 0 | Z69: ='Lotto3_R7425-3'!$C$72*$Z$15 -> 0 | AA69: ='Lotto3_R7425(NVMe)'!$C$72*AA$15 -> 0 | AB69: ='Lotto3_R7425(GPU DW)'!$C$72*$AB$15 -> 0 | AC69: ='Lotto3_R7425(GPU SW)'!$C$72*$AC$15 -> 0 | AN69: 0
C70: =IF(AN70>0,VLOOKUP($G70,'Codici&PrezzixRiepilogo'!B:E,4,FALSE),"") ->  | J70: =IF(AN70>0,VLOOKUP($G70,'Codici&PrezzixRiepilogo'!B:E,2,FALSE),"") ->  | R70: =IF(AN70>0,VLOOKUP($G70,'Codici&PrezzixRiepilogo'!B:E,3,FALSE),"") ->  | V70: 0 | W70: TS2L3-WINDC | X70: =IF('Lotto3_R7425-1'!$F$44=Riepilogo!$W70,('Lotto3_R7425-1'!$C$44)*$X$15,0) -> 0 | Y70: =IF('Lotto3_R7425-2'!$F$44=Riepilogo!$W70,('Lotto3_R7425-2'!$C$44)*$Y$15,0) -> 0 | Z70: =IF('Lotto3_R7425-3'!$F$44=Riepilogo!$W70,('Lotto3_R7425-3'!$C$44)*$Z$15,0) -> 0 | AA70: =IF('Lotto3_R7425(NVMe)'!$F$44=Riepilogo!$W70,('Lotto3_R7425(NVMe)'!$C$44)*AA$15,0) -> 0 | AB70: =IF('Lotto3_R7425(GPU DW)'!$F$44=Riepilogo!$W70,('Lotto3_R7425(GPU DW)'!$C$44)*$AB$15,0) -> 0 | AC70: =IF('Lotto3_R7425(GPU SW)'!$F$44=Riepilogo!$W70,('Lotto3_R7425(GPU SW)'!$C$44)*$AC$15,0) -> 0 | AN70: 0
C71: =IF(AN71>0,VLOOKUP($G71,'Codici&PrezzixRiepilogo'!B:E,4,FALSE),"") ->  | J71: =IF(AN71>0,VLOOKUP($G71,'Codici&PrezzixRiepilogo'!B:E,2,FALSE),"") ->  | R71: =IF(AN71>0,VLOOKUP($G71,'Codici&PrezzixRiepilogo'!B:E,3,FALSE),"") ->  | V71: 0 | W71: TS2L3-WINDC2 | X71: =IF('Lotto3_R7425-1'!$F$45=Riepilogo!$W71,('Lotto3_R7425-1'!$C$45)*$X$15,0) -> 0 | Y71: =IF('Lotto3_R7425-2'!$F$45=Riepilogo!$W71,('Lotto3_R7425-2'!$C$45)*$Y$15,0) -> 0 | Z71: =IF('Lotto3_R7425-3'!$F$45=Riepilogo!$W71,('Lotto3_R7425-3'!$C$45)*$Z$15,0) -> 0 | AA71: =IF('Lotto3_R7425(NVMe)'!$F$45=Riepilogo!$W71,('Lotto3_R7425(NVMe)'!$C$45)*AA$15,0) -> 0 | AB71: =IF('Lotto3_R7425(GPU DW)'!$F$45=Riepilogo!$W71,('Lotto3_R7425(GPU DW)'!$C$45)*$AB$15,0) -> 0 | AC71: =IF('Lotto3_R7425(GPU SW)'!$F$45=Riepilogo!$W71,('Lotto3_R7425(GPU SW)'!$C$45)*$AC$15,0) -> 0 | AN71: 0
C72: =IF(AN72>0,VLOOKUP($G72,'Codici&PrezzixRiepilogo'!B:E,4,FALSE),"") ->  | J72: =IF(AN72>0,VLOOKUP($G72,'Codici&PrezzixRiepilogo'!B:E,2,FALSE),"") ->  | R72: =IF(AN72>0,VLOOKUP($G72,'Codici&PrezzixRiepilogo'!B:E,3,FALSE),"") ->  | V72: 0 | W72: TS2L3-IXXV710M3 | X72: =COUNTIF($AD$25:$AD$32,W72)*$X$15 -> 0 | Y72: =COUNTIF($AE$25:$AE$32,W72)*$Y$15 -> 0 | Z72: =COUNTIF($AF$25:$AF$32,W72)*$Z$15 -> 0 | AA72: =COUNTIF($AG$25:$AG$32,W72)*AA$15 -> 0 | AB72: =COUNTIF($AH$25:$AH$32,W72)*$AB$15 -> 0 | AC72: =COUNTIF($AI$25:$AI$32,W72)*$AC$15 -> 0 | AN72: 0
C73: =IF(AN73>0,VLOOKUP($G73,'Codici&PrezzixRiepilogo'!B:E,4,FALSE),"") ->  | J73: =IF(AN73>0,VLOOKUP($G73,'Codici&PrezzixRiepilogo'!B:E,2,FALSE),"") ->  | R73: =IF(AN73>0,VLOOKUP($G73,'Codici&PrezzixRiepilogo'!B:E,3,FALSE),"") ->  | V73: 0 | W73: TS2L3-IXXV710TRV | X73: 0 | Y73: 0 | Z73: 0 | AA73: =COUNTIF($AF$25:$AF$32,W73)*AA$15 -> 0 | AB73: =COUNTIF($AH$25:$AH$32,W73)*$AB$15 -> 0 | AC73: =COUNTIF($AI$25:$AI$32,W73)*$AC$15 -> 0 | AN73: 0
C74: =IF(AN74>0,VLOOKUP($G74,'Codici&PrezzixRiepilogo'!B:E,4,FALSE),"") ->  | G74: =IF(AN74>=1,W74,"") ->  | J74: =IF(AN74>0,VLOOKUP($G74,'Codici&PrezzixRiepilogo'!B:E,2,FALSE),"") ->  | R74: =IF(AN74>0,VLOOKUP($G74,'Codici&PrezzixRiepilogo'!B:E,3,FALSE),"") ->  | T74: =IF(B74="","",R74*B74) ->  | V74: 0 | W74: TS2L3-VMWKIT6P3Y | X74: =IF('Lotto3_R7425-1'!F54=Riepilogo!W74,'Lotto3_R7425-1'!C54,0)*X15 -> 0 | AN74: 0
C75: =IF(AN75>0,VLOOKUP($G75,'Codici&PrezzixRiepilogo'!B:E,4,FALSE),"") ->  | J75: =IF(AN75>0,VLOOKUP($G75,'Codici&PrezzixRiepilogo'!B:E,2,FALSE),"") ->  | R75: =IF(AN75>0,VLOOKUP($G75,'Codici&PrezzixRiepilogo'!B:E,3,FALSE),"") ->  | V75: 0 | W75: TS2L3-VMWVCSTD3Y | X75: =IF('Lotto3_R7425-1'!F56=Riepilogo!W75,'Lotto3_R7425-1'!C56,0)*$X$15 -> 0 | AN75: 0
C76: =IF(AN76>0,VLOOKUP($G76,'Codici&PrezzixRiepilogo'!B:E,4,FALSE),"") ->  | J76: =IF(AN76>0,VLOOKUP($G76,'Codici&PrezzixRiepilogo'!B:E,2,FALSE),"") ->  | R76: =IF(AN76>0,VLOOKUP($G76,'Codici&PrezzixRiepilogo'!B:E,3,FALSE),"") ->  | V76: 0 | W76: TS2L3-VMWVCSTD5Y | X76: =IF('Lotto3_R7425-1'!F56=Riepilogo!W76,'Lotto3_R7425-1'!C56,0)*$X$15 -> 0 | AN76: 0
C77: =IF(AN77>0,VLOOKUP($G77,'Codici&PrezzixRiepilogo'!B:E,4,FALSE),"") ->  | J77: =IF(AN77>0,VLOOKUP($G77,'Codici&PrezzixRiepilogo'!B:E,2,FALSE),"") ->  | R77: =IF(AN77>0,VLOOKUP($G77,'Codici&PrezzixRiepilogo'!B:E,3,FALSE),"") ->  | V77: 0 | W77: TS2L3-VMWSTD1P3Y | X77: =IF('Lotto3_R7425-1'!$F$58=Riepilogo!$W$77,'Lotto3_R7425-1'!$C$58,0)*$X$15 -> 0 | Y77: =IF('Lotto3_R7425-2'!$F$58=Riepilogo!$W$77,'Lotto3_R7425-2'!$C$58,0)*$Y$15 -> 0 | Z77: =IF('Lotto3_R7425-3'!$F$58=Riepilogo!$W$77,'Lotto3_R7425-3'!$C$58,0)*$Z$15 -> 0 | AA77: =IF('Lotto3_R7425(NVMe)'!$F$58=Riepilogo!$W$77,'Lotto3_R7425(NVMe)'!$C$58,0)*AA$15 -> 0 | AB77: =IF('Lotto3_R7425(GPU DW)'!$F$58=Riepilogo!$W$77,'Lotto3_R7425(GPU DW)'!$C$58,0)*$AB$15 -> 0 | AC77: =IF('Lotto3_R7425(GPU SW)'!$F$58=Riepilogo!$W$77,'Lotto3_R7425(GPU SW)'!$C$58,0)*$AC$15 -> 0 | AN77: 0
C78: =IF(AN78>0,VLOOKUP($G78,'Codici&PrezzixRiepilogo'!B:E,4,FALSE),"") ->  | J78: =IF(AN78>0,VLOOKUP($G78,'Codici&PrezzixRiepilogo'!B:E,2,FALSE),"") ->  | R78: =IF(AN78>0,VLOOKUP($G78,'Codici&PrezzixRiepilogo'!B:E,3,FALSE),"") ->  | V78: 0 | W78: TS2L3-VMWEP1P3Y | X78: =IF('Lotto3_R7425-1'!$F$58=Riepilogo!$W$78,'Lotto3_R7425-1'!$C$58,0)*$X$15 -> 0 | Y78: =IF('Lotto3_R7425-2'!$F$58=Riepilogo!$W$78,'Lotto3_R7425-2'!$C$58,0)*$Y$15 -> 0 | Z78: =IF('Lotto3_R7425-3'!$F$58=Riepilogo!$W$78,'Lotto3_R7425-3'!$C$58,0)*$Z$15 -> 0 | AA78: =IF('Lotto3_R7425(NVMe)'!$F$58=Riepilogo!$W$78,'Lotto3_R7425(NVMe)'!$C$58,0)*AA$15 -> 0 | AB78: =IF('Lotto3_R7425(GPU DW)'!$F$58=Riepilogo!$W$78,'Lotto3_R7425(GPU DW)'!$C$58,0)*$AB$15 -> 0 | AC78: =IF('Lotto3_R7425(GPU SW)'!$F$58=Riepilogo!$W$78,'Lotto3_R7425(GPU SW)'!$C$58,0)*$AC$15 -> 0 | AN78: 0
C79: =IF(AN79>0,VLOOKUP($G79,'Codici&PrezzixRiepilogo'!B:E,4,FALSE),"") ->  | J79: =IF(AN79>0,VLOOKUP($G79,'Codici&PrezzixRiepilogo'!B:E,2,FALSE),"") ->  | R79: =IF(AN79>0,VLOOKUP($G79,'Codici&PrezzixRiepilogo'!B:E,3,FALSE),"") ->  | V79: 0 | W79: TS2L3-VMWEP1P5Y | X79: =IF('Lotto3_R7425-1'!$F$58=Riepilogo!$W$79,'Lotto3_R7425-1'!$C$58,0)*$X$15 -> 0 | Y79: =IF('Lotto3_R7425-2'!$F$58=Riepilogo!$W$79,'Lotto3_R7425-2'!$C$58,0)*$Y$15 -> 0 | Z79: =IF('Lotto3_R7425-3'!$F$58=Riepilogo!$W$79,'Lotto3_R7425-3'!$C$58,0)*$Z$15 -> 0 | AA79: =IF('Lotto3_R7425(NVMe)'!$F$58=Riepilogo!$W$79,'Lotto3_R7425(NVMe)'!$C$58,0)*AA$15 -> 0 | AB79: =IF('Lotto3_R7425(GPU DW)'!$F$58=Riepilogo!$W$79,'Lotto3_R7425(GPU DW)'!$C$58,0)*$AB$15 -> 0 | AC79: =IF('Lotto3_R7425(GPU SW)'!$F$58=Riepilogo!$W$79,'Lotto3_R7425(GPU SW)'!$C$58,0)*$AC$15 -> 0 | AN79: 0
C80: =IF(AN80>0,VLOOKUP($G80,'Codici&PrezzixRiepilogo'!B:E,4,FALSE),"") ->  | J80: =IF(AN80>0,VLOOKUP($G80,'Codici&PrezzixRiepilogo'!B:E,2,FALSE),"") ->  | R80: =IF(AN80>0,VLOOKUP($G80,'Codici&PrezzixRiepilogo'!B:E,3,FALSE),"") ->  | V80: 0 | W80: TS2L3-VSANSTD3Y | X80: =IF('Lotto3_R7425-1'!$F$60=Riepilogo!$W$80,'Lotto3_R7425-1'!$C$60,0)*$X$15 -> 0 | Y80: =IF('Lotto3_R7425-2'!$F$60=Riepilogo!$W$80,'Lotto3_R7425-2'!$C$60,0)*$Y$15 -> 0 | Z80: =IF('Lotto3_R7425-3'!$F$60=Riepilogo!$W$80,'Lotto3_R7425-3'!$C$60,0)*$Z$15 -> 0 | AA80: =IF('Lotto3_R7425(NVMe)'!$F$60=Riepilogo!$W$80,'Lotto3_R7425(NVMe)'!$C$60,0)*AA$15 -> 0 | AB80: =IF('Lotto3_R7425(GPU DW)'!$F$60=Riepilogo!$W$80,'Lotto3_R7425(GPU DW)'!$C$60,0)*$AB$15 -> 0 | AC80: =IF('Lotto3_R7425(GPU SW)'!$F$60=Riepilogo!$W$80,'Lotto3_R7425(GPU SW)'!$C$60,0)*$AC$15 -> 0 | AN80: 0
C81: =IF(AN81>0,VLOOKUP($G81,'Codici&PrezzixRiepilogo'!B:E,4,FALSE),"") ->  | J81: =IF(AN81>0,VLOOKUP($G81,'Codici&PrezzixRiepilogo'!B:E,2,FALSE),"") ->  | R81: =IF(AN81>0,VLOOKUP($G81,'Codici&PrezzixRiepilogo'!B:E,3,FALSE),"") ->  | V81: 0 | W81: TS2L3-VSANSTD5Y | X81: =IF('Lotto3_R7425-1'!$F$60=Riepilogo!$W$81,'Lotto3_R7425-1'!$C$60,0)*$X$15 -> 0 | Y81: =IF('Lotto3_R7425-2'!$F$60=Riepilogo!$W$81,'Lotto3_R7425-2'!$C$60,0)*$Y$15 -> 0 | Z81: =IF('Lotto3_R7425-3'!$F$60=Riepilogo!$W$81,'Lotto3_R7425-3'!$C$60,0)*$Z$15 -> 0 | AA81: =IF('Lotto3_R7425(NVMe)'!$F$60=Riepilogo!$W$81,'Lotto3_R7425(NVMe)'!$C$60,0)*AA$15 -> 0 | AB81: =IF('Lotto3_R7425(GPU DW)'!$F$60=Riepilogo!$W$81,'Lotto3_R7425(GPU DW)'!$C$60,0)*$AB$15 -> 0 | AC81: =IF('Lotto3_R7425(GPU SW)'!$F$60=Riepilogo!$W$81,'Lotto3_R7425(GPU SW)'!$C$60,0)*$AC$15 -> 0 | AN81: 0
C82: =IF(AN82>0,VLOOKUP($G82,'Codici&PrezzixRiepilogo'!B:E,4,FALSE),"") ->  | J82: =IF(AN82>0,VLOOKUP($G82,'Codici&PrezzixRiepilogo'!B:E,2,FALSE),"") ->  | R82: =IF(AN82>0,VLOOKUP($G82,'Codici&PrezzixRiepilogo'!B:E,3,FALSE),"") ->  | V82: 0 | W82: TS2L3-VSANADV3Y | X82: =IF('Lotto3_R7425-1'!$F$60=Riepilogo!$W$82,'Lotto3_R7425-1'!$C$60,0)*$X$15 -> 0 | Y82: =IF('Lotto3_R7425-2'!$F$60=Riepilogo!$W$82,'Lotto3_R7425-2'!$C$60,0)*$Y$15 -> 0 | Z82: =IF('Lotto3_R7425-3'!$F$60=Riepilogo!$W$82,'Lotto3_R7425-3'!$C$60,0)*$Z$15 -> 0 | AA82: =IF('Lotto3_R7425(NVMe)'!$F$60=Riepilogo!$W$82,'Lotto3_R7425(NVMe)'!$C$60,0)*AA$15 -> 0 | AB82: =IF('Lotto3_R7425(GPU DW)'!$F$60=Riepilogo!$W$82,'Lotto3_R7425(GPU DW)'!$C$60,0)*$AB$15 -> 0 | AC82: =IF('Lotto3_R7425(GPU SW)'!$F$60=Riepilogo!$W$82,'Lotto3_R7425(GPU SW)'!$C$60,0)*$AC$15 -> 0 | AN82: 0
C83: =IF(AN83>0,VLOOKUP($G83,'Codici&PrezzixRiepilogo'!B:E,4,FALSE),"") ->  | J83: =IF(AN83>0,VLOOKUP($G83,'Codici&PrezzixRiepilogo'!B:E,2,FALSE),"") ->  | R83: =IF(AN83>0,VLOOKUP($G83,'Codici&PrezzixRiepilogo'!B:E,3,FALSE),"") ->  | V83: 0 | W83: TS2L3-VSANADV5Y | X83: =IF('Lotto3_R7425-1'!$F$60=Riepilogo!$W$83,'Lotto3_R7425-1'!$C$60,0)*$X$15 -> 0 | Y83: =IF('Lotto3_R7425-2'!$F$60=Riepilogo!$W$83,'Lotto3_R7425-2'!$C$60,0)*$Y$15 -> 0 | Z83: =IF('Lotto3_R7425-3'!$F$60=Riepilogo!$W$83,'Lotto3_R7425-3'!$C$60,0)*$Z$15 -> 0 | AA83: =IF('Lotto3_R7425(NVMe)'!$F$60=Riepilogo!$W$83,'Lotto3_R7425(NVMe)'!$C$60,0)*AA$15 -> 0 | AB83: =IF('Lotto3_R7425(GPU DW)'!$F$60=Riepilogo!$W$83,'Lotto3_R7425(GPU DW)'!$C$60,0)*$AB$15 -> 0 | AC83: =IF('Lotto3_R7425(GPU SW)'!$F$60=Riepilogo!$W$83,'Lotto3_R7425(GPU SW)'!$C$60,0)*$AC$15 -> 0 | AN83: 0
C84: =IF(AN84>0,VLOOKUP($G84,'Codici&PrezzixRiepilogo'!B:E,4,FALSE),"") ->  | J84: =IF(AN84>0,VLOOKUP($G84,'Codici&PrezzixRiepilogo'!B:E,2,FALSE),"") ->  | R84: =IF(AN84>0,VLOOKUP($G84,'Codici&PrezzixRiepilogo'!B:E,3,FALSE),"") ->  | V84: 0 | W84: TS2L3-GPUM10 | AB84: =COUNTIF($AH$25:$AH$32,W84)*$AB$15 -> 0 | AN84: 0
C85: =IF(AN85>0,VLOOKUP($G85,'Codici&PrezzixRiepilogo'!B:E,4,FALSE),"") ->  | J85: =IF(AN85>0,VLOOKUP($G85,'Codici&PrezzixRiepilogo'!B:E,2,FALSE),"") ->  | R85: =IF(AN85>0,VLOOKUP($G85,'Codici&PrezzixRiepilogo'!B:E,3,FALSE),"") ->  | V85: 0 | W85: TS2L3-2000W | AB85: ='Lotto3_R7425(GPU DW)'!$C$95*$AB$15 -> 0 | AC85: ='Lotto3_R7425(GPU SW)'!$C$95*$AC$15 -> 0 | AN85: 0
C86: =IF(AN86>0,VLOOKUP($G86,'Codici&PrezzixRiepilogo'!B:E,4,FALSE),"") ->  | J86: =IF(AN86>0,VLOOKUP($G86,'Codici&PrezzixRiepilogo'!B:E,2,FALSE),"") ->  | R86: =IF(AN86>0,VLOOKUP($G86,'Codici&PrezzixRiepilogo'!B:E,3,FALSE),"") ->  | V86: 0 | W86: TS2L3-GPUV10016 | AB86: =COUNTIF($AH$25:$AH$32,W86)*$AB$15 -> 0 | AN86: 0
C87: =IF(AN87>0,VLOOKUP($G87,'Codici&PrezzixRiepilogo'!B:E,4,FALSE),"") ->  | J87: =IF(AN87>0,VLOOKUP($G87,'Codici&PrezzixRiepilogo'!B:E,2,FALSE),"") ->  | R87: =IF(AN87>0,VLOOKUP($G87,'Codici&PrezzixRiepilogo'!B:E,3,FALSE),"") ->  | V87: 0 | W87: TS2L3-GPUV10032 | AB87: =COUNTIF($AH$25:$AH$32,W87)*$AB$15 -> 0 | AN87: 0
C88: =IF(AN88>0,VLOOKUP($G88,'Codici&PrezzixRiepilogo'!B:E,4,FALSE),"") ->  | J88: =IF(AN88>0,VLOOKUP($G88,'Codici&PrezzixRiepilogo'!B:E,2,FALSE),"") ->  | R88: =IF(AN88>0,VLOOKUP($G88,'Codici&PrezzixRiepilogo'!B:E,3,FALSE),"") ->  | V88: 0 | W88: TS2L3-GPUKITSW | AC88: ='Lotto3_R7425(GPU SW)'!$C$16*Riepilogo!AC15 -> 0 | AN88: 0
C89: =IF(AN89>0,VLOOKUP($G89,'Codici&PrezzixRiepilogo'!B:E,4,FALSE),"") ->  | J89: =IF(AN89>0,VLOOKUP($G89,'Codici&PrezzixRiepilogo'!B:E,2,FALSE),"") ->  | R89: =IF(AN89>0,VLOOKUP($G89,'Codici&PrezzixRiepilogo'!B:E,3,FALSE),"") ->  | V89: 0 | W89: TS2L3-GPUKITDW | AB89: ='Lotto3_R7425(GPU DW)'!$C$16*Riepilogo!AB15 -> 0 | AN89: 0
C90: =IF(AN90>0,VLOOKUP($G90,'Codici&PrezzixRiepilogo'!B:E,4,FALSE),"") ->  | J90: =IF(AN90>0,VLOOKUP($G90,'Codici&PrezzixRiepilogo'!B:E,2,FALSE),"") ->  | R90: =IF(AN90>0,VLOOKUP($G90,'Codici&PrezzixRiepilogo'!B:E,3,FALSE),"") ->  | V90: 0 | W90: TS2L3-GPUT4 | AC90: =COUNTIF($AI$25:$AI$32,W90)*$AC$15 -> 0 | AN90: 0
C91: =IF(AN91>0,VLOOKUP($G91,'Codici&PrezzixRiepilogo'!B:E,4,FALSE),"") ->  | J91: =IF(AN91>0,VLOOKUP($G91,'Codici&PrezzixRiepilogo'!B:E,2,FALSE),"") ->  | R91: =IF(AN91>0,VLOOKUP($G91,'Codici&PrezzixRiepilogo'!B:E,3,FALSE),"") ->  | V91: 0 | W91: TS2L3-Q41164T | X91: =COUNTIF($AD$25:$AD$32,W91)*$X$15 -> 0 | Y91: =COUNTIF($AE$25:$AE$32,W91)*$Y$15 -> 0 | Z91: =COUNTIF($AF$25:$AF$32,$W$91)*Z$15 -> 0 | AA91: =COUNTIF($AG$25:$AG$32,$W$91)*AA$15 -> 0 | AB91: =COUNTIF($AH$25:$AH$32,W91)*$AB$15 -> 0 | AC91: =COUNTIF($AI$25:$AI$32,W91)*$AC$15 -> 0 | AN91: 0
C92: =IF(AN92>0,VLOOKUP($G92,'Codici&PrezzixRiepilogo'!B:E,4,FALSE),"") ->  | J92: =IF(AN92>0,VLOOKUP($G92,'Codici&PrezzixRiepilogo'!B:E,2,FALSE),"") ->  | R92: =IF(AN92>0,VLOOKUP($G92,'Codici&PrezzixRiepilogo'!B:E,3,FALSE),"") ->  | V92: 0 | W92: TS2L3-Q41262 | X92: =COUNTIF($AD$25:$AD$32,W92)*$X$15 -> 0 | Y92: =COUNTIF($AE$25:$AE$32,W92)*$Y$15 -> 0 | Z92: =COUNTIF($AF$25:$AF$32,$W$92)*Z$15 -> 0 | AA92: =COUNTIF($AG$25:$AG$32,$W$92)*AA$15 -> 0 | AB92: 0 | AC92: =COUNTIF($AI$25:$AI$32,W92)*$AC$15 -> 0 | AN92: 0
C93: =IF(AN93>0,VLOOKUP($G93,'Codici&PrezzixRiepilogo'!B:E,4,FALSE),"") ->  | J93: =IF(AN93>0,VLOOKUP($G93,'Codici&PrezzixRiepilogo'!B:E,2,FALSE),"") ->  | R93: =IF(AN93>0,VLOOKUP($G93,'Codici&PrezzixRiepilogo'!B:E,3,FALSE),"") ->  | V93: 0 | W93: TS2L3-Q41262-L | X93: 0 | Y93: 0 | Z93: =COUNTIF($AF$25:$AF$32,$W$93)*Z$15 -> 0 | AA93: =COUNTIF($AF$25:$AF$32,$W$93)*AA$15 -> 0 | AB93: 0 | AC93: 0 | AN93: 0
C94: =IF(AN94>0,VLOOKUP($G94,'Codici&PrezzixRiepilogo'!B:E,4,FALSE),"") ->  | J94: =IF(AN94>0,VLOOKUP($G94,'Codici&PrezzixRiepilogo'!B:E,2,FALSE),"") ->  | R94: =IF(AN94>0,VLOOKUP($G94,'Codici&PrezzixRiepilogo'!B:E,3,FALSE),"") ->  | V94: 0 | W94: TS2L3-Q41262OT-L | X94: =COUNTIF($AD$25:$AD$32,W94)*$X$15 -> 0 | Y94: =COUNTIF($AE$25:$AE$32,W94)*$Y$15 -> 0 | Z94: =COUNTIF($AF$25:$AF$32,$W$94)*Z$15 -> 0 | AA94: =COUNTIF($AG$25:$AG$32,$W$94)*AA$15 -> 0 | AB94: 0 | AC94: 0 | AN94: 0
C95: =IF(AN95>0,VLOOKUP($G95,'Codici&PrezzixRiepilogo'!B:E,4,FALSE),"") ->  | J95: =IF(AN95>0,VLOOKUP($G95,'Codici&PrezzixRiepilogo'!B:E,2,FALSE),"") ->  | R95: =IF(AN95>0,VLOOKUP($G95,'Codici&PrezzixRiepilogo'!B:E,3,FALSE),"") ->  | V95: 0 | W95: TS2L3-Q41262OT | X95: 0 | Y95: 0 | Z95: =COUNTIF($AF$25:$AF$32,$W$95)*Z$15 -> 0 | AA95: =COUNTIF($AG$25:$AG$32,$W$95)*AA$15 -> 0 | AB95: 0 | AC95: 0 | AN95: 0
C96: =IF(AN96>0,VLOOKUP($G96,'Codici&PrezzixRiepilogo'!B:E,4,FALSE),"") ->  | J96: =IF(AN96>0,VLOOKUP($G96,'Codici&PrezzixRiepilogo'!B:E,2,FALSE),"") ->  | R96: =IF(AN96>0,VLOOKUP($G96,'Codici&PrezzixRiepilogo'!B:E,3,FALSE),"") ->  | V96: 0 | W96: TS2L3-MCX516AM3-L | X96: 0 | Y96: 0 | Z96: =COUNTIF($AF$25:$AF$32,$W$96)*Z$15 -> 0 | AA96: =COUNTIF($AG$25:$AG$32,$W$96)*AA$15 -> 0 | AB96: 0 | AC96: 0 | AN96: 0
C97: =IF(AN97>0,VLOOKUP($G97,'Codici&PrezzixRiepilogo'!B:E,4,FALSE),"") ->  | G97: =IF(AN97>=1,W97,"") ->  | J97: =IF(AN97>0,VLOOKUP($G97,'Codici&PrezzixRiepilogo'!B:E,2,FALSE),"") ->  | R97: =IF(AN97>0,VLOOKUP($G97,'Codici&PrezzixRiepilogo'!B:E,3,FALSE),"") ->  | T97: =IF(B97="","",R97*B97) ->  | V97: 0 | W97: TS2L3-MCX4121A3-L | X97: 0 | Y97: 0 | Z97: =COUNTIF($AF$25:$AF$32,$W$97)*Z$15 -> 0 | AA97: =COUNTIF($AG$25:$AG$32,$W$97)*AA$15 -> 0 | AB97: 0 | AC97: 0 | AN97: 0
B98: =IF(AN98>=1,AN98,"") ->  | C98: =IF(AN98>0,VLOOKUP($G98,'Codici&PrezzixRiepilogo'!B:E,4,FALSE),"") ->  | G98: =IF(AN98>=1,W98,"") ->  | J98: =IF(AN98>0,VLOOKUP($G98,'Codici&PrezzixRiepilogo'!B:E,2,FALSE),"") ->  | R98: =IF(AN98>0,VLOOKUP($G98,'Codici&PrezzixRiepilogo'!B:E,3,FALSE),"") ->  | T98: =IF(B98="","",R98*B98) ->  | V98: 0 | W98: TS2L3-SSDM480 | X98: ='Lotto3_R7425-1'!$C$74*Riepilogo!$X$15 -> 0 | Y98: ='Lotto3_R7425-2'!$C$74*Riepilogo!$Y$15 -> 0 | Z98: ='Lotto3_R7425-3'!$C$74*Riepilogo!Z$15 -> 0 | AA98: ='Lotto3_R7425(NVMe)'!$C$74*Riepilogo!AA$15 -> 0 | AB98: ='Lotto3_R7425(GPU DW)'!$C$74*Riepilogo!$AB$15 -> 0 | AC98: ='Lotto3_R7425(GPU SW)'!$C$74*Riepilogo!$AC$15 -> 0 | AN98: =SUM(X98:AM98) -> 0
B99: =IF(AN99>=1,AN99,"") ->  | C99: =IF(AN99>0,VLOOKUP($G99,'Codici&PrezzixRiepilogo'!B:E,4,FALSE),"") ->  | J99: =IF(AN99>0,VLOOKUP($G99,'Codici&PrezzixRiepilogo'!B:E,2,FALSE),"") ->  | R99: =IF(AN99>0,VLOOKUP($G99,'Codici&PrezzixRiepilogo'!B:E,3,FALSE),"") ->  | V99: =IF(B99>="",0,1) -> 0 | W99: TS2L3-SSDM960 | X99: ='Lotto3_R7425-1'!$C$82*$X$15 -> 0 | Y99: ='Lotto3_R7425-2'!$C$82*$Y$15 -> 0 | Z99: ='Lotto3_R7425-3'!$C$82*Z$15 -> 0 | AA99: ='Lotto3_R7425(NVMe)'!$C$82*AA$15 -> 0 | AB99: ='Lotto3_R7425(GPU DW)'!$C$82*$AB$15 -> 0 | AC99: ='Lotto3_R7425(GPU SW)'!$C$82*$AC$15 -> 0 | AN99: =SUM(X99:AM99) -> 0
C100: =IF(AN100>0,VLOOKUP($G100,'Codici&PrezzixRiepilogo'!B:E,4,FALSE),"") ->  | J100: =IF(AN100>0,VLOOKUP($G100,'Codici&PrezzixRiepilogo'!B:E,2,FALSE),"") ->  | R100: =IF(AN100>0,VLOOKUP($G100,'Codici&PrezzixRiepilogo'!B:E,3,FALSE),"") ->  | V100: 0 | W100: TS2L3-MCX5SP-L | X100: =COUNTIF($AD$25:$AD$32,W100)*$X$15 -> 0 | Y100: =COUNTIF($AE$25:$AE$32,W100)*$Y$15 -> 0 | Z100: =COUNTIF($AF$25:$AF$32,$W$100)*Z$15 -> 0 | AA100: =COUNTIF($AG$25:$AG$32,$W$100)*AA$15 -> 0 | AB100: =COUNTIF($AH$25:$AH$32,W100)*$AB$15 -> 0 | AC100: =COUNTIF($AI$25:$AI$32,W100)*$AC$15 -> 0 | AN100: 0
C101: =IF(AN101>0,VLOOKUP($G101,'Codici&PrezzixRiepilogo'!B:E,4,FALSE),"") ->  | J101: =IF(AN101>0,VLOOKUP($G101,'Codici&PrezzixRiepilogo'!B:E,2,FALSE),"") ->  | R101: =IF(AN101>0,VLOOKUP($G101,'Codici&PrezzixRiepilogo'!B:E,3,FALSE),"") ->  | V101: 0 | W101: TS2L3-MCX5SP | X101: 0 | Y101: 0 | Z101: =COUNTIF($AF$25:$AF$32,$W$101)*Z$15 -> 0 | AA101: =COUNTIF($AG$25:$AG$32,$W$101)*AA$15 -> 0 | AB101: 0 | AC101: 0 | AN101: 0
C102: =IF(AN102>0,VLOOKUP($G102,'Codici&PrezzixRiepilogo'!B:E,4,FALSE),"") ->  | G102: =IF(AN102>=1,W102,"") ->  | J102: =IF(AN102>0,VLOOKUP($G102,'Codici&PrezzixRiepilogo'!B:E,2,FALSE),"") ->  | R102: =IF(AN102>0,VLOOKUP($G102,'Codici&PrezzixRiepilogo'!B:E,3,FALSE),"") ->  | T102: =IF(B102="","",R102*B102) ->  | V102: 0 | W102: TS2L3-UPGNTWEAV | AN102: 0
C103: =IF(AN103>0,VLOOKUP($G103,'Codici&PrezzixRiepilogo'!B:E,4,FALSE),"") ->  | J103: =IF(AN103>0,VLOOKUP($G103,'Codici&PrezzixRiepilogo'!B:E,2,FALSE),"") ->  | R103: =IF(AN103>0,VLOOKUP($G103,'Codici&PrezzixRiepilogo'!B:E,3,FALSE),"") ->  | V103: 0 | W103: TS2L3-10GBESR850 | AN103: 0
C104: =IF(AN104>0,VLOOKUP($G104,'Codici&PrezzixRiepilogo'!B:E,4,FALSE),"") ->  | G104: =IF(AN104>=1,W104,"") ->  | J104: =IF(AN104>0,VLOOKUP($G104,'Codici&PrezzixRiepilogo'!B:E,2,FALSE),"") ->  | R104: =IF(AN104>0,VLOOKUP($G104,'Codici&PrezzixRiepilogo'!B:E,3,FALSE),"") ->  | T104: =IF(B104="","",R104*B104) ->  | V104: 0 | W104: TS2L3-NVMEKIT | AA104: ='Lotto3_R7425(NVMe)'!$C$16*Riepilogo!AA15 -> 0 | AN104: 0
C105: =IF(AN105>0,VLOOKUP($G105,'Codici&PrezzixRiepilogo'!B:E,4,FALSE),"") ->  | J105: =IF(AN105>0,VLOOKUP($G105,'Codici&PrezzixRiepilogo'!B:E,2,FALSE),"") ->  | R105: =IF(AN105>0,VLOOKUP($G105,'Codici&PrezzixRiepilogo'!B:E,3,FALSE),"") ->  | V105: 0 | W105: TS2L3-NVME1600 | AA105: ='Lotto3_R7425(NVMe)'!C89 -> 0 | AN105: 0
C106: =IF(AN106>0,VLOOKUP($G106,'Codici&PrezzixRiepilogo'!B:E,4,FALSE),"") ->  | G106: =IF(AN106>=1,W106,"") ->  | J106: =IF(AN106>0,VLOOKUP($G106,'Codici&PrezzixRiepilogo'!B:E,2,FALSE),"") ->  | R106: =IF(AN106>0,VLOOKUP($G106,'Codici&PrezzixRiepilogo'!B:E,3,FALSE),"") ->  | T106: =IF(B106="","",R106*B106) ->  | V106: 0 | W106: TS2L3-NVME3200 | AA106: ='Lotto3_R7425(NVMe)'!C91 -> 0 | AN106: 0
C107: =IF(AN107>0,VLOOKUP($G107,'Codici&PrezzixRiepilogo'!B:E,4,FALSE),"") ->  | J107: =IF(AN107>0,VLOOKUP($G107,'Codici&PrezzixRiepilogo'!B:E,2,FALSE),"") ->  | R107: =IF(AN107>0,VLOOKUP($G107,'Codici&PrezzixRiepilogo'!B:E,3,FALSE),"") ->  | V107: 0 | W107: TS2L3-NVME6400 | AA107: ='Lotto3_R7425(NVMe)'!C93 -> 0 | AN107: 0
C108: =IF(AN108>0,VLOOKUP($G108,'Codici&PrezzixRiepilogo'!B:E,4,FALSE),"") ->  | J108: =IF(AN108>0,VLOOKUP($G108,'Codici&PrezzixRiepilogo'!B:E,2,FALSE),"") ->  | R108: =IF(AN108>0,VLOOKUP($G108,'Codici&PrezzixRiepilogo'!B:E,3,FALSE),"") ->  | V108: 0 | W108: TS2L3-NVME960 | AA108: ='Lotto3_R7425(NVMe)'!C95 -> 0 | AN108: 0
C109: =IF(AN109>0,VLOOKUP($G109,'Codici&PrezzixRiepilogo'!B:E,4,FALSE),"") ->  | J109: =IF(AN109>0,VLOOKUP($G109,'Codici&PrezzixRiepilogo'!B:E,2,FALSE),"") ->  | R109: =IF(AN109>0,VLOOKUP($G109,'Codici&PrezzixRiepilogo'!B:E,3,FALSE),"") ->  | V109: 0 | W109: TS2L3-NVME1000 | AA109: ='Lotto3_R7425(NVMe)'!C97 -> 0 | AN109: 0
C110: =IF(AN110>0,VLOOKUP($G110,'Codici&PrezzixRiepilogo'!B:E,4,FALSE),"") ->  | J110: =IF(AN110>0,VLOOKUP($G110,'Codici&PrezzixRiepilogo'!B:E,2,FALSE),"") ->  | R110: =IF(AN110>0,VLOOKUP($G110,'Codici&PrezzixRiepilogo'!B:E,3,FALSE),"") ->  | V110: 0 | W110: TS2L3-NVME4000 | AA110: ='Lotto3_R7425(NVMe)'!C99 -> 0 | AN110: 0
C111: =IF(AN111>0,VLOOKUP($G111,'Codici&PrezzixRiepilogo'!B:E,4,FALSE),"") ->  | J111: =IF(AN111>0,VLOOKUP($G111,'Codici&PrezzixRiepilogo'!B:E,2,FALSE),"") ->  | R111: =IF(AN111>0,VLOOKUP($G111,'Codici&PrezzixRiepilogo'!B:E,3,FALSE),"") ->  | V111: 0 | W111: TS2L3-NVME3840 | AA111: ='Lotto3_R7425(NVMe)'!C101 -> 0 | AN111: 0
C112: =IF(AN112>0,VLOOKUP($G112,'Codici&PrezzixRiepilogo'!B:E,4,FALSE),"") ->  | J112: =IF(AN112>0,VLOOKUP($G112,'Codici&PrezzixRiepilogo'!B:E,2,FALSE),"") ->  | R112: =IF(AN112>0,VLOOKUP($G112,'Codici&PrezzixRiepilogo'!B:E,3,FALSE),"") ->  | V112: 0 | W112: TS2L3-NVME375 | AA112: ='Lotto3_R7425(NVMe)'!C103 -> 0 | AN112: 0
C113: =IF(AN113>0,VLOOKUP($G113,'Codici&PrezzixRiepilogo'!B:E,4,FALSE),"") ->  | G113: =IF(AN113>=1,W113,"") ->  | J113: =IF(AN113>0,VLOOKUP($G113,'Codici&PrezzixRiepilogo'!B:E,2,FALSE),"") ->  | R113: =IF(AN113>0,VLOOKUP($G113,'Codici&PrezzixRiepilogo'!B:E,3,FALSE),"") ->  | T113: =IF(B113="","",R113*B113) ->  | V113: 0 | W113: TS2L3-PDU32A | X113: ='Rack e Accessori'!J48 -> 0 | AN113: 0
B114: =IF(AN114>=1,AN114,"") ->  | C114: =IF(AN114>0,VLOOKUP($G114,'Codici&PrezzixRiepilogo'!B:E,4,FALSE),"") ->  | J114: =IF(AN114>0,VLOOKUP($G114,'Codici&PrezzixRiepilogo'!B:E,2,FALSE),"") ->  | R114: =IF(AN114>0,VLOOKUP($G114,'Codici&PrezzixRiepilogo'!B:E,3,FALSE),"") ->  | V114: 0 | W114: TS2L3-RACKPDU32 | X114: ='Rack e Accessori'!J54 -> 0 | AN114: 0
B115: TOTALE PRODOTTI CONVENZIONE (I.V.A. Esclusa) | R115: =SUM(T15:U44) -> 0 | V115: 1
B116: TOTALE ULTERIORI OPZIONI (I.V.A. Esclusa) | R116: =SUM(T46:U114) -> 0 | V116: =IF(R116>0,1,0) -> 0
B117: TOTALE (I.V.A. Esclusa) | R117: =R116+R115 -> 0 | V117: 1
B118: I.V.A. | R118: =R117*22% -> 0 | V118: 1
B119: TOTALE ORDINE | R119: =SUM(R117:U118) -> 0 | V119: 1
V120: 1
V121: 1
V122: 1
D123: =IF(G6>0,"DETTAGLIO CONFIGURAZIONI SERVER LOTTO 3 ","") -> DETTAGLIO CONFIGURAZIONI SERVER LOTTO 3 | V123: 1
V124: 1
V125: 1
V126: =IF($B$15>="",0,1) -> 0
B127: PowerEdge R7425 Conf.1 | E127: =X15 -> 0 | F127: Server | I127: PowerEdge R7425 Conf.2 | L127: =Y15 -> 0 | M127: Server | P127: PowerEdge R7425 Conf.3 | S127: =Z15 -> 0 | T127: Server | V127: =IF($B$15>="",0,1) -> 0
V128: =IF($B$15>="",0,1) -> 0
B129: =IF(X15>0,"1","-") -> - | C129: =IF(B129="-","-",CONCATENATE(MID($C$15,1,21)," - ",$G$15)) -> - | I129: =IF(Y15>0,"1","-") -> - | J129: =IF(I129="-","-",CONCATENATE(MID($C$15,1,21)," - ",$G$15)) -> - | P129: =IF(Z15>0,"1","-") -> - | Q129: =IF(P129="-","-",CONCATENATE(MID($C$15,1,21)," - ",$G$15)) -> - | V129: =IF((Y129+X129+W129)>0,1,0) -> 0 | W129: =IF(B129="-",0,B129) -> 0 | X129: =IF(I129="-",0,I129) -> 0 | Y129: =IF(P129="-",0,P129) -> 0
B130: =IF(X16=0,"-",X16/$E$127) -> - | C130: =IF(B130="-","-",CONCATENATE(MID(C16,1,21)," - ",G16)) -> - | I130: =IF(Y16=0,"-",Y16/$L$127) -> - | J130: =IF(I130="-","-",CONCATENATE(MID(C16,1,21)," - ",G16)) -> - | P130: =IF(Z16=0,"-",Z16/$S$127) -> - | Q130: =IF(P130="-","-",CONCATENATE(MID(C16,1,21)," - ",G16)) -> - | V130: =IF((Y130+X130+W130)>0,1,0) -> 0 | W130: 0 | X130: 0 | Y130: 0
B131: - | C131: - | I131: - | J131: - | P131: - | Q131: - | V131: =IF((Y131+X131+W131)>0,1,0) -> 0 | W131: 0 | X131: 0 | Y131: 0
B132: - | C132: - | I132: - | J132: - | P132: - | Q132: - | V132: 0 | W132: 0 | X132: 0 | Y132: 0
B133: - | C133: - | I133: - | J133: - | P133: - | Q133: - | V133: =IF((Y133+X133+W133)>0,1,0) -> 0 | W133: 0 | X133: 0 | Y133: 0
B134: - | C134: - | I134: - | J134: - | P134: - | Q134: - | V134: 0 | W134: 0 | X134: 0 | Y134: 0
B135: - | C135: - | I135: - | J135: - | P135: - | Q135: - | V135: 0 | W135: 0 | X135: 0 | Y135: 0
B136: - | C136: - | I136: - | J136: - | P136: - | Q136: - | V136: 0 | W136: 0 | X136: 0 | Y136: 0
B137: - | C137: - | I137: - | J137: - | P137: - | Q137: - | V137: 0 | W137: 0 | X137: 0 | Y137: 0
B138: - | C138: - | I138: - | J138: - | P138: - | Q138: - | V138: 0 | W138: 0 | X138: 0 | Y138: 0
B139: - | C139: - | I139: - | J139: - | P139: - | Q139: - | V139: 0 | W139: 0 | X139: 0 | Y139: 0
B140: - | C140: - | I140: - | J140: - | P140: - | Q140: - | V140: 0 | W140: 0 | X140: 0 | Y140: 0
B141: - | C141: - | I141: - | J141: - | P141: - | Q141: - | V141: 0 | W141: 0 | X141: 0 | Y141: 0
B142: - | C142: - | I142: - | J142: - | P142: - | Q142: - | V142: 0 | W142: 0 | X142: 0 | Y142: 0
B143: - | C143: - | I143: - | J143: - | P143: - | Q143: - | V143: 0 | W143: 0 | X143: 0 | Y143: 0
B144: - | C144: - | I144: - | J144: - | P144: - | Q144: - | V144: =IF((Y144+X144+W144)>0,1,0) -> 0 | W144: =IF(B144="-",0,B144) -> 0 | X144: =IF(I144="-",0,I144) -> 0 | Y144: =IF(P144="-",0,P144) -> 0
B145: - | C145: - | I145: - | J145: - | P145: - | Q145: - | V145: 0 | W145: 0 | X145: 0 | Y145: 0
B146: - | C146: - | I146: - | J146: - | P146: - | Q146: - | V146: 0 | W146: 0 | X146: 0 | Y146: 0
B147: - | C147: - | I147: - | J147: - | P147: - | Q147: - | V147: 0 | W147: 0 | X147: 0 | Y147: 0
B148: - | C148: - | I148: - | J148: - | P148: - | Q148: - | V148: 0 | W148: 0 | X148: 0 | Y148: 0
B149: - | C149: - | I149: - | J149: - | P149: - | Q149: - | V149: 0 | W149: 0 | X149: 0 | Y149: 0
B150: - | C150: - | I150: - | J150: - | P150: - | Q150: - | V150: 0 | W150: 0 | X150: 0 | Y150: 0
B151: - | C151: - | I151: - | J151: - | P151: - | Q151: - | V151: 0 | W151: 0 | X151: 0 | Y151: 0
B152: - | C152: - | I152: - | J152: - | P152: - | Q152: - | V152: 0 | W152: 0 | X152: 0 | Y152: 0
B153: - | C153: - | I153: - | J153: - | P153: - | Q153: - | V153: 0 | W153: 0 | X153: 0 | Y153: 0
B154: =IF(X46=0,"-",X46/$E$127) -> - | C154: =IF(B154="-","-",CONCATENATE(MID(C46,1,21)," - ",G46)) -> - | I154: =IF(Y46=0,"-",Y46/$L$127) -> - | J154: =IF(I154="-","-",CONCATENATE(MID(C46,1,21)," - ",G46)) -> - | P154: =IF(Z46=0,"-",Z46/$S$127) -> - | Q154: =IF(P154="-","-",CONCATENATE(MID(C46,1,21)," - ",G46)) -> - | V154: =IF((Y154+X154+W154)>0,1,0) -> 0 | W154: =IF(B154="-",0,B154) -> 0 | X154: =IF(I154="-",0,I154) -> 0 | Y154: =IF(P154="-",0,P154) -> 0
B155: - | C155: - | I155: - | J155: - | P155: - | Q155: - | V155: =IF((Y155+X155+W155)>0,1,0) -> 0 | W155: =IF(B155="-",0,B155) -> 0 | X155: =IF(I155="-",0,I155) -> 0 | Y155: =IF(P155="-",0,P155) -> 0
B156: - | C156: - | I156: - | J156: - | P156: - | Q156: - | V156: 0 | W156: 0 | X156: 0 | Y156: 0
B157: - | C157: - | I157: - | J157: - | P157: - | Q157: - | V157: 0 | W157: 0 | X157: 0 | Y157: 0
B158: - | C158: - | I158: - | J158: - | P158: - | Q158: - | V158: 0 | W158: 0 | X158: 0 | Y158: 0
B159: - | C159: - | I159: - | J159: - | P159: - | Q159: - | V159: 0 | W159: 0 | X159: 0 | Y159: 0
B160: - | C160: - | I160: - | J160: - | P160: - | Q160: - | V160: 0 | W160: 0 | X160: 0 | Y160: 0
B161: - | C161: - | I161: - | J161: - | P161: - | Q161: - | V161: 0 | W161: 0 | X161: 0 | Y161: 0
B162: - | C162: - | I162: - | J162: - | P162: - | Q162: - | V162: 0 | W162: 0 | X162: 0 | Y162: 0
B163: - | C163: - | I163: - | J163: - | P163: - | Q163: - | V163: 0 | W163: 0 | X163: 0 | Y163: 0
B164: - | C164: - | I164: - | J164: - | P164: - | Q164: - | V164: 0 | W164: 0 | X164: 0 | Y164: 0
B165: - | C165: - | I165: - | J165: - | P165: - | Q165: - | V165: 0 | W165: 0 | X165: 0 | Y165: 0
B166: - | C166: - | I166: - | J166: - | P166: - | Q166: - | V166: 0 | W166: 0 | X166: 0 | Y166: 0
B167: - | C167: - | I167: - | J167: - | P167: - | Q167: - | V167: 0 | W167: 0 | X167: 0 | Y167: 0
B168: - | C168: - | I168: - | J168: - | P168: - | Q168: - | V168: 0 | W168: 0 | X168: 0 | Y168: 0
B169: - | C169: - | I169: - | J169: - | P169: - | Q169: - | V169: 0 | W169: 0 | X169: 0 | Y169: 0
B170: - | C170: - | I170: - | J170: - | P170: - | Q170: - | V170: 0 | W170: 0 | X170: 0 | Y170: 0
B171: - | C171: - | I171: - | J171: - | P171: - | Q171: - | V171: 0 | W171: 0 | X171: 0 | Y171: 0
B172: - | C172: - | I172: - | J172: - | P172: - | Q172: - | V172: 0 | W172: 0 | X172: 0 | Y172: 0
B173: - | C173: - | I173: - | J173: - | P173: - | Q173: - | V173: 0 | W173: 0 | X173: 0 | Y173: 0
B174: - | C174: - | I174: - | J174: - | P174: - | Q174: - | V174: 0 | W174: 0 | X174: 0 | Y174: 0
B175: - | C175: - | I175: - | J175: - | P175: - | Q175: - | V175: 0 | W175: 0 | X175: 0 | Y175: 0
B176: - | C176: - | I176: - | J176: - | P176: - | Q176: - | V176: 0 | W176: 0 | X176: 0 | Y176: 0
B177: - | C177: - | I177: - | J177: - | P177: - | Q177: - | V177: 0 | W177: 0 | X177: 0 | Y177: 0
B178: - | C178: - | I178: - | J178: - | P178: - | Q178: - | V178: 0 | W178: 0 | X178: 0 | Y178: 0
B179: - | C179: - | I179: - | J179: - | P179: - | Q179: - | V179: 0 | W179: 0 | X179: 0 | Y179: 0
B180: - | C180: - | I180: - | J180: - | P180: - | Q180: - | V180: 0 | W180: 0 | X180: 0 | Y180: 0
B181: - | C181: - | I181: - | J181: - | P181: - | Q181: - | V181: 0 | W181: 0 | X181: 0 | Y181: 0
B182: - | C182: - | I182: - | J182: - | P182: - | Q182: - | V182: =IF((Y182+X182+W182)>0,1,0) -> 0 | W182: =IF(B182="-",0,B182) -> 0 | X182: =IF(I182="-",0,I182) -> 0 | Y182: =IF(P182="-",0,P182) -> 0
B183: - | C183: - | I183: - | J183: - | P183: - | Q183: - | V183: 0 | W183: 0 | X183: 0 | Y183: 0
B184: - | C184: - | I184: - | J184: - | P184: - | Q184: - | V184: 0 | W184: 0 | X184: 0 | Y184: 0
B185: - | C185: - | I185: - | J185: - | P185: - | Q185: - | V185: 0 | W185: 0 | X185: 0 | Y185: 0
B186: =IF(X78=0,"-",X78/$E$127) -> - | C186: =IF(B186="-","-",CONCATENATE(MID(C78,1,21)," - ",G78)) -> - | I186: =IF(Y78=0,"-",Y78/$L$127) -> - | J186: =IF(I186="-","-",CONCATENATE(MID(C78,1,21)," - ",G78)) -> - | P186: =IF(Z78=0,"-",Z78/$S$127) -> - | Q186: =IF(P186="-","-",CONCATENATE(MID(C78,1,21)," - ",G78)) -> - | V186: 0 | W186: 0 | X186: 0 | Y186: 0
B187: - | C187: - | I187: - | J187: - | P187: - | Q187: - | V187: 0 | W187: 0 | X187: 0 | Y187: 0
B188: - | C188: - | I188: - | J188: - | P188: - | Q188: - | V188: 0 | W188: 0 | X188: 0 | Y188: 0
B189: - | C189: - | I189: - | J189: - | P189: - | Q189: - | V189: 0 | W189: 0 | X189: 0 | Y189: 0
B190: - | C190: - | I190: - | J190: - | P190: - | Q190: - | V190: 0 | W190: 0 | X190: 0 | Y190: 0
B191: - | C191: - | I191: - | J191: - | P191: - | Q191: - | V191: 0 | W191: 0 | X191: 0 | Y191: 0
B192: - | C192: - | I192: - | J192: - | P192: - | Q192: - | V192: 0 | W192: 0 | X192: 0 | Y192: 0
B193: - | C193: - | I193: - | J193: - | P193: - | Q193: - | V193: 0 | W193: 0 | X193: 0 | Y193: 0
B194: - | C194: - | I194: - | J194: - | P194: - | Q194: - | V194: 0 | W194: 0 | X194: 0 | Y194: 0
B195: - | C195: - | I195: - | J195: - | P195: - | Q195: - | V195: 0 | W195: 0 | X195: 0 | Y195: 0
B196: - | C196: - | I196: - | J196: - | P196: - | Q196: - | V196: 0 | W196: 0 | X196: 0 | Y196: 0
B197: - | C197: - | I197: - | J197: - | P197: - | Q197: - | V197: 0 | W197: 0 | X197: 0 | Y197: 0
B198: - | C198: - | I198: - | J198: - | P198: - | Q198: - | V198: 0 | W198: 0 | X198: 0 | Y198: 0
B199: - | C199: - | I199: - | J199: - | P199: - | Q199: - | V199: 0 | W199: 0 | X199: 0 | Y199: 0
B200: - | C200: - | I200: - | J200: - | P200: - | Q200: - | V200: 0 | W200: 0 | X200: 0 | Y200: 0
... 158 more rows

Sheet Foglio1 (hidden)
A1: =Riepilogo!E127 -> 0
A2: =Riepilogo!B129 -> - | B2: =Riepilogo!C129 -> - | D2: =IF(A2+A3=2,"TS2L3-SRV2CPU",B2) -> 
A3: =Riepilogo!B130 -> - | B3: =Riepilogo!C130 -> -
A4: =Riepilogo!B131 -> - | B4: =Riepilogo!C131 -> -
A5: =Riepilogo!B132 -> - | B5: =Riepilogo!C132 -> -
A6: =Riepilogo!B133 -> - | B6: =Riepilogo!C133 -> -
A7: =Riepilogo!B134 -> - | B7: =Riepilogo!C134 -> -
A8: =Riepilogo!B135 -> - | B8: =Riepilogo!C135 -> -
A9: =Riepilogo!B136 -> - | B9: =Riepilogo!C136 -> -
A10: =Riepilogo!B137 -> - | B10: =Riepilogo!C137 -> -
A11: =Riepilogo!B138 -> - | B11: =Riepilogo!C138 -> -
A12: =Riepilogo!B139 -> - | B12: =Riepilogo!C139 -> -
A13: =Riepilogo!B140 -> - | B13: =Riepilogo!C140 -> -
A14: =Riepilogo!B141 -> - | B14: =Riepilogo!C141 -> -
A15: =Riepilogo!B142 -> - | B15: =Riepilogo!C142 -> -
A16: =Riepilogo!B143 -> - | B16: =Riepilogo!C143 -> -
A17: =Riepilogo!B144 -> - | B17: =Riepilogo!C144 -> -
A18: =Riepilogo!B145 -> - | B18: =Riepilogo!C145 -> -
A19: =Riepilogo!B146 -> - | B19: =Riepilogo!C146 -> -
A20: =Riepilogo!B147 -> - | B20: =Riepilogo!C147 -> -
A21: =Riepilogo!B148 -> - | B21: =Riepilogo!C148 -> -
A22: =Riepilogo!B149 -> - | B22: =Riepilogo!C149 -> -
A23: =Riepilogo!B150 -> - | B23: =Riepilogo!C150 -> -
A24: =Riepilogo!B151 -> - | B24: =Riepilogo!C151 -> -
A25: =Riepilogo!B152 -> - | B25: =Riepilogo!C152 -> -
A26: =Riepilogo!B153 -> - | B26: =Riepilogo!C153 -> -
A27: =Riepilogo!#REF! ->  | B27: =Riepilogo!#REF! -> 
A28: =Riepilogo!B154 -> - | B28: =Riepilogo!C154 -> -
A30: =Riepilogo!L127 -> 0
A31: =Riepilogo!I129 -> - | B31: =Riepilogo!J129 -> -
A32: =Riepilogo!I130 -> - | B32: =Riepilogo!J130 -> -
A33: =Riepilogo!I131 -> - | B33: =Riepilogo!J131 -> -
A34: =Riepilogo!I132 -> - | B34: =Riepilogo!J132 -> -
A35: =Riepilogo!I133 -> - | B35: =Riepilogo!J133 -> -
A36: =Riepilogo!I134 -> - | B36: =Riepilogo!J134 -> -
A37: =Riepilogo!I135 -> - | B37: =Riepilogo!J135 -> -
A38: =Riepilogo!I136 -> - | B38: =Riepilogo!J136 -> -
A39: =Riepilogo!I137 -> - | B39: =Riepilogo!J137 -> -
A40: =Riepilogo!I138 -> - | B40: =Riepilogo!J138 -> -
A41: =Riepilogo!I139 -> - | B41: =Riepilogo!J139 -> -
A42: =Riepilogo!I140 -> - | B42: =Riepilogo!J140 -> -
A43: =Riepilogo!I141 -> - | B43: =Riepilogo!J141 -> -
A44: =Riepilogo!I142 -> - | B44: =Riepilogo!J142 -> -
A45: =Riepilogo!I143 -> - | B45: =Riepilogo!J143 -> -
A46: =Riepilogo!I144 -> - | B46: =Riepilogo!J144 -> -
A47: =Riepilogo!I145 -> - | B47: =Riepilogo!J145 -> -
A48: =Riepilogo!I146 -> - | B48: =Riepilogo!J146 -> -
A49: =Riepilogo!I147 -> - | B49: =Riepilogo!J147 -> -
A50: =Riepilogo!I148 -> - | B50: =Riepilogo!J148 -> -
A51: =Riepilogo!I149 -> - | B51: =Riepilogo!J149 -> -
A52: =Riepilogo!I150 -> - | B52: =Riepilogo!J150 -> -
A53: =Riepilogo!I151 -> - | B53: =Riepilogo!J151 -> -
A54: =Riepilogo!I152 -> - | B54: =Riepilogo!J152 -> -
A55: =Riepilogo!I153 -> - | B55: =Riepilogo!J153 -> -
A56: =Riepilogo!#REF! ->  | B56: =Riepilogo!#REF! -> 
A57: =Riepilogo!I154 -> - | B57: =Riepilogo!J154 -> -
A60: =Riepilogo!S127 -> 0
A61: =Riepilogo!P129 -> - | B61: =Riepilogo!Q129 -> -
A62: =Riepilogo!P130 -> - | B62: =Riepilogo!Q130 -> -
A63: =Riepilogo!P131 -> - | B63: =Riepilogo!Q131 -> -
A64: =Riepilogo!P132 -> - | B64: =Riepilogo!Q132 -> -
A65: =Riepilogo!P133 -> - | B65: =Riepilogo!Q133 -> -
A66: =Riepilogo!P134 -> - | B66: =Riepilogo!Q134 -> -
A67: =Riepilogo!P135 -> - | B67: =Riepilogo!Q135 -> -
A68: =Riepilogo!P136 -> - | B68: =Riepilogo!Q136 -> -
A69: =Riepilogo!P137 -> - | B69: =Riepilogo!Q137 -> -
A70: =Riepilogo!P138 -> - | B70: =Riepilogo!Q138 -> -
A71: =Riepilogo!P139 -> - | B71: =Riepilogo!Q139 -> -
A72: =Riepilogo!P140 -> - | B72: =Riepilogo!Q140 -> -
A73: =Riepilogo!P141 -> - | B73: =Riepilogo!Q141 -> -
A74: =Riepilogo!P142 -> - | B74: =Riepilogo!Q142 -> -
A75: =Riepilogo!P143 -> - | B75: =Riepilogo!Q143 -> -
A76: =Riepilogo!P144 -> - | B76: =Riepilogo!Q144 -> -
A77: =Riepilogo!P145 -> - | B77: =Riepilogo!Q145 -> -
A78: =Riepilogo!P146 -> - | B78: =Riepilogo!Q146 -> -
A79: =Riepilogo!P147 -> - | B79: =Riepilogo!Q147 -> -
A80: =Riepilogo!P148 -> - | B80: =Riepilogo!Q148 -> -
A81: =Riepilogo!P149 -> - | B81: =Riepilogo!Q149 -> -
A82: =Riepilogo!P150 -> - | B82: =Riepilogo!Q150 -> -
A83: =Riepilogo!P151 -> - | B83: =Riepilogo!Q151 -> -
A84: =Riepilogo!P152 -> - | B84: =Riepilogo!Q152 -> -
A85: =Riepilogo!P153 -> - | B85: =Riepilogo!Q153 -> -
A86: =Riepilogo!#REF! ->  | B86: =Riepilogo!#REF! -> 
A87: =Riepilogo!P154 -> - | B87: =Riepilogo!Q154 -> -

Sheet Regole di configurazione (hidden)
A1: Descrizione | B1: Quantità | C1: SKU | D1: Customer Kit | E1: Codice Convenzione | F1: Convenzione | G1: 0.2 | I1: SKU | J1: Customer Kit | P1: SKU | Q1: Customer Kit
A2: Server DELL EMC PowerEdge R7425, 2U, 1 x AMD EPYC 7301; RAM 64GB, 2 x HDD 600GB 10K 2.5" | B2: 1 | C2: [210-APFK] | E2: TS2L3-SRV | F2: 2087
A3: Server DELL EMC PowerEdge R7425, 2U, 2 x AMD EPYC 7301; RAM 64GB, 2 x HDD 600GB 10K 2.5" | B3: 1 | C3: [210-ANKP] | E3: TS2L3-SRV2CPU | F3: 2787
A4: AMD EPYC™ 7301 2.2GHz/2.7GHz, 16C/32T, 64M Cache (155W/170W) DDR4-2400/2666 | B4: 1 | C4: [374-BBTR] | D4: 338-BNCI | E4: TS2L3-CPU | F4: 700 | G4: ="" ->  | H4: Standard Heatsinks, below 180W CPU | I4: 2 | J4: [412-AALN] | K4: 412-AALJ | L4: ="" ->  | M4: ="" ->  | N4: ="" ->  | O4: Riser Config 5, 4 x8, 3 x16 slots | P4: 1 | Q4: [330-BBJD] | R4: 330-BBMK 330-BBLS | T4: ="" -> 
A5: Windows Server 2019 Standard Ed,ROK,16CORE (for Distributor sale only) | D5: 634-BRMW | E5: TS2L3-WIN1 | F5: 553
A6: Windows Server 2019 Standard Ed,Additional Lic,ROK,2CORE,NoMedia | D6: 634-BJQW | E6: TS2L3-WIN2CORE | F6: 74
A7: CentOS 7.0 | E7: TS2L3-LINUX | F7: 49
A8: 1 Windows Server 2016,2012 Device CALs (Standard or Datacenter),CUS | D8: 623-BBBX | E8: TS2L3-CALDEV | F8: 20
A9: 1 Windows Server 2016,2012 User CALs (Standard or Datacenter),CUS | D9: 623-BBCC | E9: TS2L3-CALUSER | F9: 24
A10: 16GB RDIMM, 2666MT/s, Dual Rank | C10: [370-ADND] | D10: AA138422 | E10: TS2L3-RAM16 | F10: 103
A11: 32GB RDIMM, 2666MT/s, Dual Rank | C11: [370-ADNF] | D11: A9781929 | E11: TS2L3-RAM32 | F11: 347
A12: 64GB LRDIMM, 2666MT/s, Quad Rank | C12: [370-AECZ] | D12: A9781930 | E12: TS2L3-RAM64 | F12: 697
A13: 600GB 10K RPM SAS 12Gbps 512n 2.5in Hot-plug Hard Drive | C13: [400-ASGS] | D13: 400-AUNQ | E13: TS2L3-10K600 | F13: 68
A14: 1.2TB 10K RPM SAS 12Gbps 512n 2.5in Hot-plug Hard Drive | C14: [400-ASHI] | D14: 400-ATJL | E14: TS2L3-10K1200 | F14: 136
A15: 1.8TB 10K RPM SAS 12Gbps 512e 2.5in Hot-plug Hard Drive | C15: [400-ARXC] | D15: 400-ATJR | E15: TS2L3-10K1800 | F15: 169
A16: 960GB SSD SAS Read Intensive 12Gbps 512e 2.5in Hot-plug Drive, PM5-R, 1 DWPD, 1752 TBW | C16: [400-BBPL] | D16: 400-ATLL | E16: TS2L3-SSDR960 | F16: 664
A17: 1.92TB SSD SAS Read Intensive 12Gbps 512e 2.5in Hot-plug Drive, PM1633a | C17: [400-ASFX] | D17: 400-ATND | E17: TS2L3-SSDR1920 | F17: 1313
A18: Broadcom 5720 DP 1Gb Network Interface Card,Full Height,CusKit | C18: [540-BBCX] | D18: 540-BBGY | E18: TS2L3-LAN1 | F18: 22
A19: Broadcom 57412 Dual Port 10Gb, SFP+, PCIe Adapter, Full Height, Customer Install | C19: [540-BBUH] | D19: 540-BBUN | E19: TS2L3-LAN10 | F19: 114 | H19: Kit - Dell EMC PowerEdge SFP+ SR Optic, 10GbE, 850nm | J19: 407-BCBN | K19: 2
A20: QLogic 41112 Dual Port 10Gb SFP+ Adapter, Full Height, Customer Install | C20: [540-BBYK] | D20: 540-BBYH | E20: TS2L3-CNA10 | F20: 110 | H20: Kit - Dell EMC PowerEdge SFP+ SR Optic, 10GbE, 850nm | J20: 407-BCBN | K20: 2
A21: QLogic 2562, Dual Port 8Gb Optical Fibre Channel HBA,Full Height,CusKit | C21: [540-BBEC] | D21: 406-BBEK | E21: TS2L3-FC8 | F21: 245
A22: Broadcom 5720 DP 1Gb Network Interface Card, Low Profile | C22: [540-BBDE] | D22: 540-BBGW | E22: TS2L3-LAN1-L | F22: 22
A23: Broadcom 57412 Dual Port 10Gb, SFP+, PCIe Adapter, Low Profile | C23: [540-BBVI] | D23: 540-BBVL | E23: TS2L3-LAN10-L | F23: 114 | H23: Kit - Dell EMC PowerEdge SFP+ SR Optic, 10GbE, 850nm | J23: 407-BCBN | K23: 2
A24: QLogic FastLinQ 41112 Dual Port 10Gb SFP+ Adapter, Low Profile | C24: [540-BBZI] | D24: 540-BBZM | E24: TS2L3-CNA10-L | F24: 110 | H24: Kit - Dell EMC PowerEdge SFP+ SR Optic, 10GbE, 850nm | J24: 407-BCBN | K24: 2
A25: QLogic 2562, Dual Port 8Gb Optical Fibre Channel HBA, Low Profile | C25: [540-BBEC] | D25: 406-BBEL | E25: TS2L3-FC8-L | F25: 245
A26: Estensione della manutenzione in garanzia per ulteriori 12 mesi | D26: 701-11494 732-79421 | E26: TS2L3-4Y | F26: 40
A27: Estensione della manutenzione in garanzia per ulteriori 24 mesi | D27: 701-11494 701-11494 732-79422 | E27: TS2L3-5Y | F27: 81
A28: Tecnosteel: armadio Rack 19'' 42U | E28: TS2L3-RACK | F28: 504
A29: 1U Rackmount Console 17'' with Italian Keyboard | E29: TS2L3-GUI | F29: 448
A30: 16-port remote KVM switch with one remote user | E30: TS2L3-KVMIP | F30: 495
A31: Riello - UPS MSR3000EVO 3000VA 2U Rackmount (SNMP+USB+RS232) | E31: TS2L3-UPS | F31: 387
A32: 0.2
A33: Coppia di PDU Vertical 1Ph-32A-18xC13-6xC19 - 0U Base + Kit di montaggio A20 | E33: TS2L3-PDU32A | G33: 436
A34: Coppia di PDU Vertical 1Ph-16A-36xC13+6xC19 -0U Metered + Kit di montaggio A20 | E34: TS2L3-TM1613606 | G34: 900
A35: Coppia di PDU Vertical 1Ph-32A-36xC13+6xC19 -0U Metered + Kit di montaggio A20 | E35: TS2L3-TM3213606 | G35: 939
A36: Coppia di PDU Vertical 3Ph-32A-36xC13+6xC19 -0U Metered + Kit di montaggio A20 | E36: TS2L3-TM3233606 | G36: 1106
A37: Coppia di PDU Vertical 1Ph-16A-24xC13+6xC19 -0U Controlled + Kit di montaggio A20 | E37: TS2L3-TK1612406 | G37: 1723
A38: Coppia di PDU Vertical 1Ph-32A-24xC13+6xC19 -0U Controlled + Kit di montaggio A20 | E38: TS2L3-TK3212406 | G38: 1817
A39: Coppia di PDU Vertical 3Ph-32A-24xC13+6xC19 -0U Controlled + Kit di montaggio A20 | E39: TS2L3-TK3232406 | G39: 2154
A40: Coppia di PDU Vertical 1Ph-16A-24xC13+6xC19 -0U Full + Kit di montaggio A20 | E40: TS2L3-TF1612406 | G40: 2173
A41: Coppia di PDU Vertical 1Ph-32A-24xC13+6xC19 -0U Full + Kit di montaggio A20 | E41: TS2L3-TF3212406 | G41: 2277
A42: Coppia di PDU Vertical 3Ph-32A-24xC13+6xC19 -0U Full + Kit di montaggio A20 | E42: TS2L3-TF3232406 | G42: 2518
A43: 2.4TB 10K RPM SAS 12Gbps 512e 2.5in Hot-plug Hard Drive NO VMWARE A20 | E43: TS2L3-10K2400 | G43: 389
A44: SSD 480GB SAS MU 12Gbps 2.5in Hot-Plug A20 | E44: TS2L3-SSDM480 | G44: 399
A45: SSD 400GB SAS WI 12Gbps 2.5in Hot-plug Drive, 10 DWPD A20 | E45: TS2L3-SSDW400 | G45: 1155
A46: SSD 1600GB SAS WI 12Gb 2.5in Hot-plug Drive, 10 DWPD A20 | E46: TS2L3-SSDW1600 | G46: 1475
A47: SSD 960GB SAS Mixed Use 12Gbps 2.5in Hot-plug Drive A20 | E47: TS2L3-SSDM960 | G47: 598
A48: Cavo Rete UTP cat. 5e 3 metri A20 | E48: TS2L3-3MRJ45 | G48: 2
A49: 5 x Dell Networking, Cable, SFP+ to SFP+, 10GbE, Copper Twinax Direct Attach Cable, 3 Meter A20 | E49: TS2L3-5XDAC10M3 | G49: 125
A50: 5 x Dell Networking Cable, 100GbE QSFP28 to QSFP28,Passive Copper Direct Attach Cable,2 Meter A20 | E50: TS2L3-5XDAC100M2 | G50: 940
A51: 5 x Dell Networking Cable,100GbE QSFP28 to QSFP28, Passive Copper Direct Attach Cable,3 Meter A20 | E51: TS2L3-5XDAC100M3 | G51: 1125
A52: Kit upgrade R7425 per GPU A20 | E52: TS2L3-KITGPU | G52: 999
A53: PERC HBA330 RAID Controller, 12Gb Adapter, Full Height A20 | B53: 1 | C53: [405-AAOO] | D53: 405-AAMV | E53: TS2L3-HBA330 | G53: 999
A54: PERC H740P RAID Controller, 8Gb NV Cache, Adapter, Full Height A20 | B54: 1 | C54: [405-AANR] | D54: 405-AAMX | E54: TS2L3-H740P | G54: 999
A55: Broadcom 57416 Dual Port 10Gb, Base-T, PCIe Adapter, Full Height A20 | B55: 1 | C55: [540-BBUI] | D55: 540-BBUO | E55: TS2L3-57416 | G55: 999
A56: QLogic FastLinQ 41162 Dual Port 10Gb Base-T Adapter, Full Height A20 | B56: 1 | C56: [540-BBYJ] | D56: 540-BBYG | E56: TS2L3-41162 | G56: 999
A57: Mellanox ConnectX-5 Single Port EDR VPI QSFP28 PCIe Adapter, Full Height A20 | B57: 1 | C57: [540-BCDK] | D57: 540-BCIV | E57: TS2L3-MCX416A | G57: 999
A58: Mellanox ConnectX-4 Dual Port 100GbE QSFP28 PCIe Adapter, Full Height A20 | B58: 1 | C58: [540-BBUT] | D58: 540-BBUU | E58: TS2L3-MCX516A | G58: 999
A59: Dell 1.6TB, NVMe, Mixed Use Express Flash, 2.5 SFF | E59: TS2L3-NVME1600 | G59: 644
A60: Dell 3.2TB, NVMe, Mixed Use Express Flash, 2.5 SFF | E60: TS2L3-NVME3200 | G60: 1218
A61: Dell 6.4TB, NVMe, Mixed Use Express Flash, 2.5 SFF | E61: TS2L3-NVME6400 | G61: 2469
A62: Dell 960GB NVMe, Data Center, Read Intensive SFF | E62: TS2L3-NVME960 | G62: 241
A63: Dell 1TB, NVMe, Read Intensive Express Flash, 2.5 SFF | E63: TS2L3-NVME1000 | G63: 326
A64: Dell 4TB, NVMe, Read Intensive Express Flash, 2.5 SFF | E64: TS2L3-NVME4000 | G64: 1152
A65: Dell 3.84TB NVMe, Data Center, Read Intensive SFF | E65: TS2L3-NVME3840 | G65: 826
A66: Dell 375GB, NVMe, Ultra Performance Express Flash, 2.5 SFF | E66: TS2L3-NVME375 | G66: 1379
A67: QLogic 2692 Dual Port 16Gb Fibre Channel HBA A20 | B67: 1 | C67: [403-BBMQ] | D67: 403-BBMU | E67: TS2L3-2692 | G67: 999
A68: Broadcom 57416 Dual Port 10Gb, Base-T, PCIe Adapter, Low Profile A20 | B68: 1 | C68: [540-BBVJ] | D68: 540-BBVM | E68: TS2L3-57416-L | G68: 999
A69: Mellanox ConnectX-4 Lx Dual Port 25GbE SFP28 Network Adapter, Low Profile A20 | B69: 1 | C69: [406-BBLD] | D69: 406-BBLC | E69: TS2L3-MCX4121AL | G69: 999
A70: Mellanox ConnectX-4 Dual Port 40/100GbE, QSFP28, PCIe Adapter, Low Profile A20 | B70: 1 | D70: 540-BBVR | E70: TS2L3-MCX416A-L | G70: 999
A71: QLogic FastLinQ 41162 Dual Port 10Gb Base-T Adapter, Low Profile A20 | B71: 1 | C71: [540-BBZK] | D71: 540-BBZN | E71: TS2L3-41162-L | G71: 999
A72: QLogic 2692 Dual Port 16Gb Fibre Channel HBA, Low Profile A20 | B72: 1 | C72: [403-BBMS] | D72: 403-BBMT | E72: TS2L3-2692-L | G72: 999
A73: NVIDIA Tesla V100 32G Passive GPU A20 | B73: 1 | C73: [490-BENY] | E73: TS2L3-GPUV10032 | G73: 999
A74: NVIDIA Tesla™ V100 16G Passive GPU A20 | B74: 1 | C74: [490-BEDZ] | E74: TS2L3-GPUV10016 | G74: 16366.99
A75: NVIDIA Tesla P40 24GB GPU, Passive A20 | B75: 1 | C75: [489-BBCN] | E75: TS2L3-GPUP4024 | G75: 999
A76: NVIDIA Tesla M10 GPU, Requires GRID 2.0 SW for VDI Function A20 | B76: 1 | C76: [489-BBCG] | E76: TS2L3-GPUM10 | G76: 4237.99
A77: ISDM and Combo Card Reader, with 2 32Gb microSDHC/SDXC Card A20 | B77: 1 | D77: 385-BBLF 385-BBKK 385-BBKK | E77: TS2L3-IDSDM32 | G77: 999
A78: ISDM and Combo Card Reader, with 2 64Gb microSDHC/SDXC Card A20 | B78: 1 | D78: 385-BBLF 385-BBKL 385-BBKL | E78: TS2L3-IDSDM64 | G78: 999
A79: BOSS controller card + with 2 M.2 Sticks 240G (RAID 1),FH A20 | B79: 1 | C79: [403-BBPT] | D79: 403-BBVQ 400-ASDQ 400-ASDQ | E79: TS2L3-BOSS240 | G79: 999
A80: BOSS controller card + with 2 M.2 Sticks 480GB (RAID 1),FH A20 | B80: 1 | C80: [403-BBSV] | D80: 403-BBVQ 400-AVSS 400-AVSS | E80: TS2L3-BOSS480 | G80: 999
A82: Trusted Platform Module
A83: No Trusted Platform Module | B83: 1 | C83: [461-AADZ]
A84: Trusted Platform Module 2.0 | B84: 1 | C84: [461-AAEM] | D84: 461-AAEN | E84: TS2L3-TPM2 | G84: 0
A86: Processore aggiuntivo
A87: TS2L3CPU
A88: No Additional Processor | B88: 0 | C88: [374-BBBX] | D88: ="" ->  | E88: ="" ->  | F88: 0 | G88: ="" ->  | H88: Standard Heatsinks, below 180W CPU | I88: 1 | J88: [412-AALN] | K88: 412-AALJ | L88: Blank for 1 CPU Configuration | M88: 1 | N88: [379-BCWU] | O88: Riser Config 1, 2 x8, 1 x16 slots | P88: 1 | Q88: [330-BBIY] | R88: ="" ->  | S88: ="" ->  | T88: ="" -> 
A89: AMD EPYC™ 7301 2.2GHz/2.7GHz, 16C/32T, 64M Cache (155W/170W) DDR4-2400/2666 | B89: 1 | C89: [374-BBTR] | D89: 338-BNCI | E89: TS2L3-CPU | F89: 700 | G89: ="" ->  | H89: Standard Heatsinks, below 180W CPU | I89: 2 | J89: [412-AALN] | K89: 412-AALJ | L89: ="" ->  | M89: ="" ->  | N89: ="" ->  | O89: Riser Config 5, 4 x8, 3 x16 slots | P89: 1 | Q89: [330-BBJD] | R89: 330-BBMK 330-BBLS | T89: ="" -> 
A90: Sistema operativo preinstallato
A91: None | B91: ="" ->  | C91: [619-ABVR] | D91: ="" ->  | E91: ="" ->  | F91: 0 | G91: 0 | H91: ="" ->  | I91: ="" ->  | J91: ="" ->  | K91: ="" ->  | L91: ="" ->  | M91: ="" ->  | N91: 0
A92: Windows Server 2019 Standard Ed,ROK,16CORE (for Distributor sale only) | B92: 1 | D92: 634-BRMW | E92: TS2L3-WIN1 | F92: 553 | H92: Windows Server 2019 Standard Ed,Additional Lic,ROK,2CORE,NoMedia | I92: 8 | K92: 634-BJQW | L92: TS2L3-WIN2CORE | M92: =74*I92 -> 592 | N92: 0
A93: Windows Server 2019 Datacenter Ed 16CORE A20 | B93: 1 | D93: 634-BRMY | E93: TS2L3-WINDC | G93: 3345 | H93: Windows Server 2019 Datacenter Ed Add License 16CORE A20 | I93: 1 | K93: 634-BKYO | L93: TS2L3-WINDC2 | N93: 3343
A94: CentOS 7.0 | B94: 1 | C94: linux | D94: ="" ->  | E94: TS2L3-LINUX | F94: 49 | G94: 0 | H94: ="" ->  | I94: ="" ->  | J94: ="" ->  | K94: ="" ->  | L94: ="" ->  | M94: 0 | N94: 0
A95: 1 Windows Server 2019 Device CALs (Standard or Datacenter),CUS | D95: 623-BBBX | E95: TS2L3-CALDEV | F95: 20
A96: 1 Windows Server 2019 User CALs (Standard or Datacenter),CUS | D96: 623-BBCC | E96: TS2L3-CALUSER | F96: 24
A97: Windows Server 2019 Standard Ed,Additional Lic,ROK,2CORE,NoMedia | D97: 634-BJQW | E97: TS2L3-WIN2CORE | F97: 74
A98: TS2L3MEM1CPU
A99: 64 (DIMM 32GB) | B99: 32GB RDIMM, 2666MT/s, Dual Rank | C99: 2 | D99: [370-ADNF] | E99: A9781929 | F99: ="" ->  | G99: 0 | I99: 2666MT/s RDIMMs | J99: 1 | K99: [370-ADNU]
A100: 128 (DIMM 32GB) | B100: 32GB RDIMM, 2666MT/s, Dual Rank | C100: 4 | D100: [370-ADNF] | E100: A9781929 | F100: TS2L3-RAM32 | G100: =$F$11*(C100-$C$99) -> 694 | I100: 2666MT/s RDIMMs | J100: 1 | K100: [370-ADNU]
A101: 256 (DIMM 32GB) | B101: 32GB RDIMM, 2666MT/s, Dual Rank | C101: 8 | D101: [370-ADNF] | E101: A9781929 | F101: TS2L3-RAM32 | G101: =$F$11*(C101-$C$99) -> 2082 | I101: 2666MT/s RDIMMs | J101: 1 | K101: [370-ADNU]
A102: 384 (DIMM 32GB) | B102: 32GB RDIMM, 2666MT/s, Dual Rank | C102: 12 | D102: [370-ADNF] | E102: A9781929 | F102: TS2L3-RAM32 | G102: =$F$11*(C102-$C$99) -> 3470 | I102: 2666MT/s RDIMMs | J102: 1 | K102: [370-ADNU]
A103: 512 (DIMM 32GB) | B103: 32GB RDIMM, 2666MT/s, Dual Rank | C103: 16 | D103: [370-ADNF] | E103: A9781929 | F103: TS2L3-RAM32 | G103: =$F$11*(C103-$C$99) -> 4858 | I103: 2666MT/s RDIMMs | J103: 1 | K103: [370-ADNU]
A104: -------------------------- | B104: 32GB RDIMM, 2666MT/s, Dual Rank | C104: 2 | D104: [370-ADNF] | E104: A9781929 | G104: 0 | I104: 2666MT/s RDIMMs | J104: 1 | K104: [370-ADNU]
A105: 256 (DIMM 64GB) | B105: 64GB LRDIMM, 2666MT/s, Quad Rank | C105: 4 | D105: [370-AECZ] | E105: A9781930 | F105: TS2L3-RAM64 | G105: =$F$12*C105 -> 2788 | I105: 2666MT/s LRDIMMs | J105: 1 | K105: [370-ADNT]
A106: 384 (DIMM 64GB) | B106: 64GB LRDIMM, 2666MT/s, Quad Rank | C106: 6 | D106: [370-AECZ] | E106: A9781930 | F106: TS2L3-RAM64 | G106: =$F$12*C106 -> 4182 | I106: 2666MT/s LRDIMMs | J106: 1 | K106: [370-ADNT]
A107: 512 (DIMM 64GB) | B107: 64GB LRDIMM, 2666MT/s, Quad Rank | C107: 8 | D107: [370-AECZ] | E107: A9781930 | F107: TS2L3-RAM64 | G107: =$F$12*C107 -> 5576 | I107: 2666MT/s LRDIMMs | J107: 1 | K107: [370-ADNT]
A108: 768 (DIMM 64GB) | B108: 64GB LRDIMM, 2666MT/s, Quad Rank | C108: 12 | D108: [370-AECZ] | E108: A9781930 | F108: TS2L3-RAM64 | G108: =$F$12*C108 -> 8364 | I108: 2666MT/s LRDIMMs | J108: 1 | K108: [370-ADNT]
A109: 1024 (DIMM 64GB) | B109: 64GB LRDIMM, 2666MT/s, Quad Rank | C109: 16 | D109: [370-AECZ] | E109: A9781930 | F109: TS2L3-RAM64 | G109: =$F$12*C109 -> 11152 | I109: 2666MT/s LRDIMMs | J109: 1 | K109: [370-ADNT]
A111: TS2L3MEM2CPU
A112: 64 (DIMM 32GB) | B112: 32GB RDIMM, 2666MT/s, Dual Rank | C112: 2 | D112: [370-ADNF] | E112: A9781929 | F112: ="" ->  | G112: 0 | I112: 2666MT/s RDIMMs | J112: 1 | K112: [370-ADNU]
A113: 128 (DIMM 32GB) | B113: 32GB RDIMM, 2666MT/s, Dual Rank | C113: 4 | D113: [370-ADNF] | E113: A9781929 | F113: TS2L3-RAM32 | G113: =$F$11*(C113-$C$99) -> 694 | I113: 2666MT/s RDIMMs | J113: 1 | K113: [370-ADNU]
A114: 192 (DIMM 32GB) | B114: 32GB RDIMM, 2666MT/s, Dual Rank | C114: 6 | D114: [370-ADNF] | E114: A9781929 | F114: TS2L3-RAM32 | G114: 1388 | I114: 2666MT/s RDIMMs | J114: 1 | K114: [370-ADNU]
A115: 256 (DIMM 32GB) | B115: 32GB RDIMM, 2666MT/s, Dual Rank | C115: 8 | D115: [370-ADNF] | E115: A9781929 | F115: TS2L3-RAM32 | G115: 2082 | I115: 2666MT/s RDIMMs | J115: 1 | K115: [370-ADNU]
A116: 384 (DIMM 32GB) | B116: 32GB RDIMM, 2666MT/s, Dual Rank | C116: 12 | D116: [370-ADNF] | E116: A9781929 | F116: TS2L3-RAM32 | G116: =$F$11*(C116-$C$99) -> 3470 | I116: 2666MT/s RDIMMs | J116: 1 | K116: [370-ADNU]
A117: 512 (DIMM 32GB) | B117: 32GB RDIMM, 2666MT/s, Dual Rank | C117: 16 | D117: [370-ADNF] | E117: A9781929 | F117: TS2L3-RAM32 | G117: 4858 | I117: 2666MT/s RDIMMs | J117: 1 | K117: [370-ADNU]
A118: 768 (DIMM 32GB) | B118: 32GB RDIMM, 2666MT/s, Dual Rank | C118: 24 | D118: [370-ADNF] | E118: A9781929 | F118: TS2L3-RAM32 | G118: 7634 | I118: 2666MT/s RDIMMs | J118: 1 | K118: [370-ADNU]
A119: 1024 (DIMM 32GB) | B119: 32GB RDIMM, 2666MT/s, Dual Rank | C119: 32 | D119: [370-ADNF] | E119: A9781929 | F119: TS2L3-RAM32 | G119: 10410 | I119: 2666MT/s RDIMMs | J119: 1 | K119: [370-ADNU]
A120: -------------------------- | B120: 32GB RDIMM, 2666MT/s, Dual Rank | C120: 2 | D120: [370-ADNF] | E120: A9781929 | G120: 0 | I120: 2666MT/s RDIMMs | J120: 1 | K120: [370-ADNU]
A121: 256 (DIMM 64GB) | B121: 64GB LRDIMM, 2666MT/s, Quad Rank | C121: 4 | D121: [370-AECZ] | E121: A9781930 | F121: TS2L3-RAM64 | G121: =$F$12*C121 -> 2788 | I121: 2666MT/s LRDIMMs | J121: 1 | K121: [370-ADNT]
A122: 384 (DIMM 64GB) | B122: 64GB LRDIMM, 2666MT/s, Quad Rank | C122: 6 | D122: [370-AECZ] | E122: A9781930 | F122: TS2L3-RAM64 | G122: =$F$12*C122 -> 4182 | I122: 2666MT/s LRDIMMs | J122: 1 | K122: [370-ADNT]
A123: 512 (DIMM 64GB) | B123: 64GB LRDIMM, 2666MT/s, Quad Rank | C123: 8 | D123: [370-AECZ] | E123: A9781930 | F123: TS2L3-RAM64 | G123: 5576 | I123: 2666MT/s LRDIMMs | J123: 1 | K123: [370-ADNT]
A124: 768 (DIMM 64GB) | B124: 64GB LRDIMM, 2666MT/s, Quad Rank | C124: 12 | D124: [370-AECZ] | E124: A9781930 | F124: TS2L3-RAM64 | G124: 8364 | I124: 2666MT/s LRDIMMs | J124: 1 | K124: [370-ADNT]
A125: 1024 (DIMM 64GB) | B125: 64GB LRDIMM, 2666MT/s, Quad Rank | C125: 16 | D125: [370-AECZ] | E125: A9781930 | F125: TS2L3-RAM64 | G125: 11152 | I125: 2666MT/s LRDIMMs | J125: 1 | K125: [370-ADNT]
A126: 1536 (DIMM 64GB) | B126: 64GB LRDIMM, 2666MT/s, Quad Rank | C126: 24 | D126: [370-AECZ] | E126: A9781930 | F126: TS2L3-RAM64 | G126: 16728 | I126: 2666MT/s LRDIMMs | J126: 1 | K126: [370-ADNT]
A127: 2048 (DIMM 64GB) | B127: 64GB LRDIMM, 2666MT/s, Quad Rank | C127: 32 | D127: [370-AECZ] | E127: A9781930 | F127: TS2L3-RAM64 | G127: 22304 | I127: 2666MT/s LRDIMMs | J127: 1 | K127: [370-ADNT]
A129: Controller Dischi
A130: PERC H730P RAID Controller, 2Gb NV Cache, Adapter, Full Height | B130: 1 | C130: [405-AAMR] | D130: 405-AAMY | F130: 0
A131: PERC HBA330 RAID Controller, 12Gb Adapter, Full Height A20 | B131: 1 | C131: [405-AAOO] | D131: 405-AAMV | E131: TS2L3-HBA330 | G131: =G53 -> 999
A132: PERC H740P RAID Controller, 8Gb NV Cache, Adapter, Full Height A20 | B132: 1 | C132: [405-AANR] | D132: 405-AAMX | E132: TS2L3-H740P | G132: =G54 -> 999
A134: Modulo Doppia SD - Internal Dual SD Module (IDSDM)
A135: None | E135: ="" -> 
A136: [TS2L3-ISDM32] ISDM and Combo Card Reader, 2x 32GB microSDHC/SDXC Card A20 | B136: 1 | D136: 385-BBLF 385-BBKK 385-BBKK | E136: TS2L3-ISDM32 | G136: 134
A137: ISDM and Combo Card Reader, with 2 64Gb microSDHC/SDXC Card | B137: 1 | D137: 385-BBLF 385-BBKL 385-BBKL | E137: TS2L3-IDSDM64 | G137: =G78 -> 999
A142: 7.2 SATA
A143: 1TB 7.2K RPM SATA 6Gbps 512n 2.5in Hot-plug Hard Drive | C143: [400-ASHF] | D143: 400-ATJG | E143: TS2L3-7K1000 | O143: [Option Id: 5103889] [SKU: 400-ASHF]
A144: 2TB 7.2K RPM SATA 6Gbps 512n 2.5in Hot-plug Hard Drive | C144: [400-ASHT] | D144: 400-ATJZ | E144: TS2L3-7K2000 | O144: [Option Id: 5103953] [SKU: 400-ASHT]
A145: 7.2K NLSAS
A146: 1TB 7.2K RPM NLSAS 12Gbps 512n 2.5in Hot-plug Hard Drive | C146: [400-ASHE] | D146: 400-ATJD | E146: TS2L3-NL1000 | O146: [Option Id: 5103886] [SKU: 400-ASHE]
A147: 2TB 7.2K RPM NLSAS 12Gbps 512n 2.5in Hot-plug Hard Drive | C147: [400-ASHP] | D147: 400-ATJU | E147: TS2L3-NL2000 | O147: [Option Id: 5103937] [SKU: 400-ASHP]
A148: 10K
A149: 600GB 10K RPM SAS 12Gbps 512n 2.5in Hot-plug Hard Drive | C149: [400-ASGS] | D149: 400-AUNQ | E149: TS2L3-10K600 | F149: 68 | O149: [Option Id: 5103901] [SKU: 400-ASHI]
A150: 1.2TB 10K RPM SAS 12Gbps 512n 2.5in Hot-plug Hard Drive | C150: [400-ASHI] | D150: 400-ATJL | E150: TS2L3-10K1200 | F150: 136 | O150: [Option Id: 5103918] [SKU: 400-ASHK]
A151: 1.8TB 10K RPM SAS 12Gbps 512e 2.5in Hot-plug Hard Drive | C151: [400-ARXC] | D151: 400-ATJR | E151: TS2L3-10K1800 | F151: 169 | O151: [Option Id: 5103923] [SKU: 400-ARXC]
A152: 2.4TB 10K RPM SAS 12Gbps 512e 2.5in Hot-plug Hard Drive | C152: [400-AVEZ] | D152: 401-ABHQ | E152: TS2L3-10K2400 | O152: [Option Id: 24TBMD] [SKU: 400-AVEZ]
A153: 1.2TB 10K RPM Self-Encrypting SAS 12Gbps 512n 2.5in Hot-plug Hard Drive, FIPS140 | C153: [400-ASHK] | D153: 400-ATJO | O153: [Option Id: 24TASHJ] [SKU: 400-AVHH]
A154: 2.4TB 10K RPM Self-Encrypting SAS 12Gbps 512e 2.5in Hot-plug Hard Drive, FIPS140 | C154: [400-AVHH] | O154: [Option Id: 5103818] [SKU: 400-ASGS]
A155: 15K
A156: 300GB 15K RPM SAS 12Gbps 512n 2.5in Hot-plug Hard Drive | C156: [400-ASGQ] | D156: 400-ATII | E156: TS2L3-15K300 | O156: [Option Id: 5103806] [SKU: 400-ASGQ]
A157: 600GB 15K RPM SAS 12Gbps 512n 2.5in Hot-plug Hard Drive | C157: [400-ARWN] | D157: 400-ATIN | E157: TS2L3-15K600 | O157: [Option Id: 5102974] [SKU: 400-ARWN]
A158: 900GB 15K RPM SAS 12Gbps 512n 2.5in Hot-plug Hard Drive | C158: [400-ASGV] | D158: 400-ATIQ | E158: TS2L3-15K900 | O158: [Option Id: 5103865] [SKU: 400-ASGV]
A159: SATA RI
A160: 480GB SSD SATA Read Intensive 6Gbps 512 2.5in Hot-plug AG Drive, 1 DWPD, 876 TBW | C160: [400-AXTV] | E160: TS2L3-STRI480 | O160: [Option Id: G3ZJM0K] [SKU: 400-AXTV]
A161: 480GB SSD SATA Read Intensive 6Gbps 512e 2.5in Hot Plug S4510 Drive, 1 DWPD,876 TBW | C161: [400-BDOD] | O161: [Option Id: GCMLA2O] [SKU: 400-BDOD]
A162: 480GB SSD SATA Read Intensive 6Gbps 512e 2.5in Hot-plug Drive, S4500, 1 DWPD,876 TBW | C162: [400-ASXH] | O162: [Option Id: 5106652] [SKU: 400-ASXH]
A163: 960GB SSD SATA Read Intensive 6Gbps 512 2.5in Hot-plug AG Drive, 1 DWPD, 1752 TBW | C163: [400-AXSW] | E163: TS2L3-STRI960 | O163: [Option Id: GA16FX3] [SKU: 400-AXSW]
A164: 960GB SSD SATA Read Intensive 6Gbps 512e 2.5in Hot Plug S4510 Drive, 1 DWPD,1752 TBW | C164: [400-BDNJ] | O164: [Option Id: GK6T7WB] [SKU: 400-BDNJ]
A165: 960GB SSD SATA Read Intensive 6Gbps 512n 2.5in Hot-plug Drive, PM863a | C165: [400-ASFM] | O165: [Option Id: 5103700] [SKU: 400-ASFM]
A166: 1.6TB SSD Self-Encrypting SATA Mix Use 6Gbps 512n 2.5in Hot-plug Drive, Hawk-M4E | C166: [400-ASYY] | O166: [Option Id: 5106694] [SKU: 400-ASYY]
A167: 1.6TB SSD Self-Encrypting SATA Mix Use 6Gbps 512n 2.5in Hot-plug Drive, Hawk-M4E | C167: [400-ASYY] | O167: [Option Id: GLDJ7FE] [SKU: 400-ASYY]
A168: 1.92TB SSD SATA Read Intensive 6Gbps 512 2.5in Hot-plug AG Drive, 1 DWPD, 3504 TBW | C168: [400-AXSD] | O168: [Option Id: GGMU1EX] [SKU: 400-AXSD]
A169: 1.92TB SSD SATA Read Intensive 6Gbps 512e 2.5in Hot-plug S4510 Drive, 1 DWPD,3504 TBW | C169: [400-BDOE] | E169: TS2L3-STRI1920 | O169: [Option Id: G3UTQH6] [SKU: 400-BDOE]
A170: 1.92TB SSD SATA Read Intensive 6Gpbs 512e 2.5in Hot-plug Drive, S4500,1 DWPD,3504 TBW | C170: [400-ASZJ] | O170: [Option Id: 5106704] [SKU: 400-ASZJ]
A171: 3.84TB SSD SATA Read Intensive 6Gbps 512 2.5in Hot-plug AG Drive, 1 DWPD, 7008 TBW | C171: [400-AXSK] | O171: [Option Id: GS7WBQI] [SKU: 400-AXSK]
A172: 3.84TB SSD SATA Read Intensive 6Gbps 512e 2.5in Hot-plug Drive, S4500,1 DWPD,7008 TBW | C172: [400-ASZS] | E172: TS2L3-STSRI3840 | O172: [Option Id: 5106713] [SKU: 400-ASZS]
A173: SATA MU
A174: 480GB SSD SATA Mix Use 6Gbps 512 2.5in Hot-plug AG Drive, 3 DWPD, 2628 TBW | C174: [400-AZUT] | E174: TS2L3-STMU480 | O174: [Option Id: GB6HAM5] [SKU: 400-AZUT]
A175: 800GB SSD SATA Mix Use 6Gbps 512n 2.5in Hot-plug Drive, Hawk-M4E,3 DWPD,4380 TBW | C175: [400-ASYC] | E175: TS2L3-STMU800 | O175: [Option Id: 5106672] [SKU: 400-ASYC]
A176: 960GB SSD SATA Mix Use 6Gbps 512 2.5in Hot-plug AG Drive, 3 DWPD, 5256 TBW | C176: [400-AZVM] | E176: TS2L3-STMU960 | O176: [Option Id: GKTZGJ7] [SKU: 400-AZVM]
A177: 1.6TB SSD SATA Mix Use 6Gbps 512n 2.5in Hot-plug Drive, Hawk-M4E,3 DWPD,8760 TBW | C177: [400-AVMM] | E177: TS2L3-STMU1600 | O177: [Option Id: 1FBT6G] [SKU: 400-AVMM]
A178: 1.92TB SSD SATA Mix Use 6Gbps 512 2.5in Hot-plug AG Drive, 3 DWPD, 10512 TBW | C178: [400-AZTN] | O178: [Option Id: GW19KER] [SKU: 400-AZTN]
A179: 1.92TB SSD SATA Mix Use 6Gbps 512e 2.5in Hot-plug Drive, S4600,3 DWPD,10512 TBW | C179: [400-ASZB] | E179: TS2L3-STMU1920 | O179: [Option Id: 5106696] [SKU: 400-ASZB]
A180: SAS RI
A181: 960GB SSD SAS Read Intensive 12Gbps 512 2.5in Hot-plug AG Drive, 1 DWPD, 1752 TBW | C181: [400-AXQU] | O181: [Option Id: GD4L6BE] [SKU: 400-AXQU]
A182: 960GB SSD SAS Read Intensive 12Gbps 512e 2.5in Hot-plug Drive, PM5-R, 1 DWPD, 1752 TBW | C182: [400-BBPL] | D182: 400-ATLL | E182: TS2L3-SSDR960 | F182: 664 | O182: [Option Id: G4YAXQB] [SKU: 400-BBPL]
A183: 960GB SSD SAS Read Intensive 12Gbps 512n 2.5in Hot-plug Drive, PX05SR | C183: [400-ASEZ] | O183: [Option Id: 5103679] [SKU: 400-ASEZ]
A184: 1.92TB SSD SAS Read Intensive 12Gbps 512 2.5in Hot-plug AG Drive, 1 DWPD, 3504 TBW | C184: [400-AXOP] | O184: [Option Id: GJM2W96] [SKU: 400-AXOP]
A185: 1.92TB SSD SAS Read Intensive 12Gbps 512e 2.5in Hot-plug Drive, PM1633a | C185: [400-ASFX] | D185: 400-ATND | E185: TS2L3-SSDR1920 | F185: 1313 | O185: [Option Id: 5103731] [SKU: 400-ASFX]
A186: 1.92TB SSD SAS Read Intensive 12Gbps 512e 2.5in PM5-R Hot-plug Drive, 1 DWPD, 3504 TBW | C186: [400-BBQQ] | O186: [Option Id: GF74XBJ] [SKU: 400-BBQQ]
A187: 1.92TB SSD SAS Read Intensive MLC 12Gbps 512n 2.5in Hot-plug Drive, PX05SR | C187: [400-ARWC] | O187: [Option Id: 5102925] [SKU: 400-ARWC]
A188: 3.84TB SSD SAS Read Intensive 12Gb 512e 2.5in Hot-plug Drive, PM1633a,1 DWPD,7008 TBW | C188: [400-ASGI] | E188: TS2L3-SSDRI3840 | O188: [Option Id: 5103757] [SKU: 400-ASGI]
A189: 3.84TB SSD SAS Read Intensive 12Gbps 512 2.5in Hot-plug AG Drive, 1 DWPD, 7008 TBW | C189: [400-AXPE] | O189: [Option Id: GUSCJI4] [SKU: 400-AXPE]
A190: 3.84TB SSD SAS Read Intensive 12Gbps 512e 2.5in PM5-R Hot-plug Drive, 1 DWPD, 7008 TBW | C190: [400-BBQX] | O190: [Option Id: GQNDTX4] [SKU: 400-BBQX]
A191: 3.84TB SSD SAS Read Intensive 12Gbps 512n 2.5in Hot-plug Drive, PX05SR | C191: [400-ASGG] | O191: [Option Id: 5103752] [SKU: 400-ASGG]
A192: 7.68TB SSD SAS Read Intensive 12Gbps 512e 2.5in Hot-plug Drive, PM1643, 1 DWPD, 14,016 TBW | C192: [400-BBSM] | E192: TS2L3-SSDRI7680 | O192: [Option Id: G7YW03Q] [SKU: 400-BBSM]
A193: 7.68TB SSD SAS Read Intensive 12Gbps 512e 2.5in PM5-R Hot-plug Drive, 1 DWPD, 14,016 TBW | C193: [400-BDCI] | O193: [Option Id: GGN2SI6] [SKU: 400-BDCI]
A194: SAS MU
A195: 480GB SSD SAS Mix Use 12Gbps 512n 2.5in Hot-plug Drive, PX05SV | C195: [400-ASEO] | E195: TS2L3-SSDMU480 | O195: [Option Id: 5103647] [SKU: 400-ASEO]
A196: 480GB SSD SAS Mixed use 12Gbps 512e 2.5in Hot-Plug PM5-V Drive, 3 DWPD, 2628 TBW | C196: [400-BCQG] | O196: [Option Id: GJP8HF2] [SKU: 400-BCQG]
A197: 800GB SSD SAS Mix Use 12Gbps 512e 2.5in Hot-plug AG Drive, 3 DWPD, 4380 TBW | C197: [400-AZQO] | E197: TS2L3-SSDMU800 | O197: [Option Id: GCAUG9H] [SKU: 400-AZQO]
A198: 960GB SSD SAS Mix Use 12Gbps 512n 2.5in Hot-plug Drive, PX05SV | C198: [400-ASFI] | E198: TS2L3-SSDMU960 | O198: [Option Id: 5103690] [SKU: 400-ASFI]
A199: 960GB SSD SAS Mixed use 12Gbps 512e 2.5in Hot-Plug PM5-V Drive | C199: [400-BCQN] | O199: [Option Id: G46MPBW] [SKU: 400-BCQN]
A200: 1.6TB SSD SAS Mix Use 12Gbps 512e 2.5in Hot-plug AG Drive, 3 DWPD, 8760 TBW | C200: [400-AZOY] | O200: [Option Id: GN5GTO1] [SKU: 400-AZOY]
A201: 1.6TB SSD SAS Mix Use 12Gbps 512e 2.5in Hot-plug Drive, PM1635a | C201: [400-ASFQ] | E201: TS2L3-SSDMU1600 | O201: [Option Id: 5103710] [SKU: 400-ASFQ]
A202: 1.92TB SSD SAS Mix Use 12Gbps 512n 2.5in Hot-plug Drive, PX05SV | C202: [400-ASFZ] | E202: TS2L3-SSDMU1920 | O202: [Option Id: 5103737] [SKU: 400-ASFZ]
A203: 1.92TB SSD SAS Mix Use SED 12Gbps 512n 2.5in Hot-plug Drive, FIPS140, PX05SV,3 DWPD,10512 TBW | C203: [400-ATRX] | O203: [Option Id: 510710] [SKU: 400-ATRX]
A204: 1.92TB SSD SAS Mixed use 12Gbps 512e 2.5in Hot-Plug PM5-V Drive, 3 DWPD, 10512 TBW | C204: [400-BCOM] | O204: [Option Id: G5BLI1F] [SKU: 400-BCOM]
A205: 3.84TB SSD SAS Mix Use 12Gbps 512n 2.5in Hot-plug Drive, PX05SV,3 DWPD,21024 TBW | C205: [400-ASVR] | E205: TS2L3-SSDMU3840 | O205: [Option Id: 5106756] [SKU: 400-ASVR]
A206: 3.8TB SSD SAS Mixed use 12Gbps 512e 2.5in Hot-Plug PM5-V Drive, 3 DWPD, 7008 TBW | C206: [400-BCOV] | O206: [Option Id: GXNZ83B] [SKU: 400-BCOV]
A207: SAS WI
A208: 400GB SSD SAS Write Intensive 12Gbps 512n 2.5in Hot-plug Drive, PX05SM | C208: [400-ASEM] | E208: TS2L3-SSDWI400 | O208: [Option Id: 5103644] [SKU: 400-ASEM]
A209: 800GB SSD SAS Write Intensive 12Gbps 512n 2.5in Hot-plug Drive, PX05SM | C209: [400-ASEV] | E209: TS2L3-SSDWI800 | O209: [Option Id: 5103669] [SKU: 400-ASEV]
... 320 more rows

Sheet Codici&PrezzixRiepilogo (hidden)
A1: CODICE CONVERGE | B1: CODICE CONVENZIONE | C1: Description | D1: Prezzo vendita da Converge a CONSIP tot. | E1: CODICE CONVERGE
A2: TS2L3-SRV | B2: TS2L3-SRV | C2: Server DELL EMC PowerEdge R7425, 2U, 1 x AMD EPYC 7301; RAM 64GB, 2 x HDD 600GB 10K 2.5" | D2: 2087 | E2: TS2L3-SRV | F2: =LEN(B2) -> 9
A4: TS2L3-CPU | B4: TS2L3-CPU | C4: Processore AMD EPYC 7301 | D4: 700 | E4: TS2L3-CPU | F4: =LEN(B4) -> 9
C5: Riser Card 2A,R7425 | F5: 0
C6: Riser Card 3A,R7425 | F6: 0
C7: Standard Heatsink, 180W CPU, R7425 | F7: 0
F8: 0
A9: TS2D-RAM16 | B9: TS2L3-RAM16 | C9: Upgrade KIT RAM 16GB | D9: 103 | E9: TS2D-RAM16 | F9: 11
A10: TS2D-RAM32 | B10: TS2L3-RAM32 | C10: Upgrade KIT RAM 32GB | D10: 347 | E10: TS2D-RAM32 | F10: 11 | G10: =D10*2 -> 694
A11: TS2D-RAM64 | B11: TS2L3-RAM64 | C11: Upgrade KIT RAM 64GB | D11: 697 | E11: TS2D-RAM64 | F11: 11
F12: 0
A13: TS2D-10K600 | B13: TS2L3-10K600 | C13: HDD 600GB 10K SAS 12Gbps 2.5in Hot-plug | D13: 68 | E13: TS2D-10K600 | F13: 12
A14: TS2D-10K1200 | B14: TS2L3-10K1200 | C14: HDD 1200GB 10K SAS 12Gbps 2.5in Hot-plug | D14: 136 | E14: TS2D-10K1200 | F14: 13
A15: TS2D-10K1800 | B15: TS2L3-10K1800 | C15: HDD 1800GB 10K SAS 12Gbps 2.5in Hot-plug | D15: 169 | E15: TS2D-10K1800 | F15: 13
A16: TS2D-SSDR960 | B16: TS2L3-SSDR960 | C16: SSD 960GB SAS RI 12Gbps 2.5in Hot-plug | D16: 664 | E16: TS2D-SSDR960 | F16: 13
A17: TS2D-SSDR1920 | B17: TS2L3-SSDR1920 | C17: SSD 1920GB SAS RI 12Gbps 2.5in Hot-plug | D17: 1313 | E17: TS2D-SSDR1920 | F17: 14
F18: 0
A19: TS2D-LAN1 | B19: TS2L3-LAN1 | C19: Scheda LAN 5720 Dual Port 1Gb,Full Height | D19: 22 | E19: TS2D-LAN1 | F19: 10
A20: TS2D-LAN1-L | B20: TS2L3-LAN1-L | C20: Scheda LAN 5720 Dual Port 1Gb,Low Profile | D20: 22 | E20: TS2D-LAN1-L | F20: 12
A21: TS2D-LAN10 | B21: TS2L3-LAN10 | C21: Scheda LAN 57412 Dual Port 10Gb, SFP+, Full Height | D21: 114 | E21: TS2D-LAN10 | F21: 11
C22: Transceiver SFP+ SR, 10GbE, 850nm | F22: 0
A23: TS2D-LAN10-L | B23: TS2L3-LAN10-L | C23: Scheda LAN 57412 Dual Port 10Gb, SFP+, Low Profile | D23: 114 | E23: TS2D-LAN10-L | F23: 13
C24: Transceiver SFP+ SR, 10GbE, 850nm | F24: 0
A25: TS2D-CNA10 | B25: TS2L3-CNA10 | C25: Scheda CNA 41112 Dual Port 10Gb SFP+, Full Height | D25: 110 | E25: TS2D-CNA10 | F25: 11
C26: Transceiver SFP+ SR, 10GbE, 850nm | F26: 0
A27: TS2D-CNA10-L | B27: TS2L3-CNA10-L | C27: Scheda CNA 41112 Dual Port 10Gb SFP+, Low Profile | D27: 110 | E27: TS2D-CNA10-L | F27: 13
C28: Transceiver SFP+ SR, 10GbE, 850nm | F28: 0
A29: TS2D-FC8 | B29: TS2L3-FC8 | C29: Scheda FC 2562, Dual Port 8Gb HBA, Full Height | D29: 245 | E29: TS2D-FC8 | F29: 9
A30: TS2D-FC8-L | B30: TS2L3-FC8-L | C30: Scheda FC 2562, Dual Port 8Gb HBA, Full Height | D30: 245 | E30: TS2D-FC8-L | F30: 11
F31: 0
A32: TS2L3-4Y | B32: TS2L3-4Y | C32: Estensione della manutenzione in garanzia per ulteriori 12 mesi | D32: 40 | E32: TS2L3-4Y
C33: Onsite Labor CRU, 1Year | F33: 0
A34: TS2L3-5Y | B34: TS2L3-5Y | C34: Estensione della manutenzione in garanzia per ulteriori 24 mesi | D34: 81 | E34: TS2L3-5Y | F34: 8
C35: Onsite Labor CRU, 1Year | F35: 0
F36: 0
A37: TS2D-WIN1 | B37: TS2L3-WIN1 | C37: Windows Server 2019 Standard Ed 16CORE | D37: 553 | E37: TS2D-WIN1 | F37: 10
A38: TS2D-CALDEV | B38: TS2L3-CALDEV | C38: Device CAL 1-pack Windows Server 2019 | D38: 20 | E38: TS2D-CALDEV | F38: 12
A39: TS2D-CALUSER | B39: TS2L3-CALUSER | C39: User CAL 1-pack Windows Server 2019 | D39: 24 | E39: TS2D-CALUSER | F39: 13
A40: TS2D-WIN2CORE | B40: TS2L3-WIN2CORE | C40: Windows Server 2019 Standard Ed Add License 2CORE | D40: 74 | E40: TS2D-WIN2CORE | F40: 14
A41: TS2-LINUX | B41: TS2L3-LINUX | C41: CentOS 7.x | D41: 49 | E41: TS2-LINUX | F41: 11
F42: 0
A43: TS2-UPS | B43: TS2L3-UPS | C43: UPS MSR 3000VA + staffe | D43: 387 | E43: TS2-UPS | F43: 9
C44: Kit 2 Guide universali per UPS | D44: =C44*#REF! ->  | F44: 0
A45: TS2-GUI | B45: TS2L3-GUI | C45: Console KVM GUI da rack | D45: 448 | E45: TS2-GUI | F45: 9
A46: TS2-RACK | B46: TS2L3-RACK | C46: Armadio Rack 42U | D46: 504 | E46: TS2-RACK | F46: 10
A47: TS2-KVMIP | B47: TS2L3-KVMIP | C47: KVM Switch IP per GUI 16P con cavi | D47: 495 | E47: TS2-KVMIP | F47: 11
F48: 0
A49: TS2-3MRJ45 | B49: TS2L3-3MRJ45 | C49: Cavo Rete UTP cat. 5e 3 metri A20 | D49: 2 | E49: TS2-3MRJ45 | F49: 12
A50: TS2D-BOSS240 | B50: TS2L3-BOSS240 | C50: BOSS controller card, full height, 2 x 240G M.2 Drive A20 | D50: 429 | E50: TS2D-BOSS240
A51: TS2D-ISDM32 | B51: TS2L3-ISDM32 | C51: ISDM and Combo Card Reader, 2x 32GB microSDHC/SDXC Card A20 | D51: 134 | E51: TS2D-ISDM32
A52: TS2D-LCDBEZEL | B52: TS2L3-LCDBEZEL | C52: Dell PowerEdge 2U, LCD, 14G, 2U Cable Management Arm A20 | D52: 135 | E52: TS2D-LCDBEZEL
A53: TS2D-STDBEZEL | B53: TS2L3-STDBEZEL | C53: Dell PowerEdge 2U, Standard, 14G,2 2U Cable Management Arm A20 | D53: 101 | E53: TS2D-STDBEZEL
A54: TS2D-MCX416AM3 | B54: TS2L3-MCX416AM3 | C54: Mellanox ConnectX-4 Dual Port 40/100GbE, QSFP28, PCIe Adapter, Full Height, with 2 x 100GbE QSFP28 to QSFP28, Passive Copper DAC,3 Meter A20 | D54: 1331 | E54: TS2D-MCX416AM3
A55: TS2D-MCX516AM3 | B55: TS2L3-MCX516AM3 | C55: Mellanox ConnectX-5 EX Dual Port 100GbE QSFP28 PCIe Adapter, Full Height, with 2 x 100GbE QSFP28 to QSFP28, Passive Copper DAC,3 Meter A20 | D55: 1577 | E55: TS2D-MCX516AM3
A56: TS2D-MCX4121AM3 | B56: TS2L3-MCX4121AM3 | C56: Mellanox ConnectX-4 Lx Dual Port 25GbE SFP28 Network Adapter, Full Height with 2x SFP28 to SFP28, 25GbE, Passive Copper Twinax DAC, 3 Meter A20 | D56: 748 | E56: TS2D-MCX4121AM3
A57: TS2D-HBA330 | B57: TS2L3-HBA330 | C57: PERC HBA330 Adapter, 12Gbps Adapter, A20 | D57: 196 | E57: TS2D-HBA330
A58: TS2D-HBASAS12 | B58: TS2L3-HBASAS12 | C58: Dell 12Gbps SAS Host Bus Adapter External Controller - Full Height A20 | D58: 158 | E58: TS2D-HBASAS12
A59: TS2D-H740P | B59: TS2L3-H740P | C59: Dell PERC H740P RAID Controller Adapter A20 | D59: 777 | E59: TS2D-H740P
A60: TS2D-Q41162T | B60: TS2L3-Q41162T | C60: QLogic FastLinQ 41162 Dual Port 10Gb Base-T Adapter, Full Height A20 | D60: 349 | E60: TS2D-Q41162T
A61: TS2D-Q41162T-L | B61: TS2L3-Q41162T-L | C61: QLogic FastLinQ 41162 Dual Port 10Gb Base-T Adapter, Low Profile A20 | D61: 349 | E61: TS2D-Q41162T-L
A62: TS2D-Q41164T-L | B62: TS2L3-Q41164T-L | C62: QLogic FastLinQ 41164 Quad Port 10G Base-T Adapter, Low Profile A20 | D62: 687 | E62: TS2D-Q41164T-L
A63: TS2D-Q2692 | B63: TS2L3-Q2692 | C63: QLogic 2692 Dual Port 16Gb Fibre Channel HBA, Full Height A20 | D63: 780 | E63: TS2D-Q2692
A64: TS2D-Q2692-L | B64: TS2L3-Q2692-L | C64: QLogic 2692 Dual Port 16Gb Fibre Channel HBA, Low Profile A20 | D64: 780 | E64: TS2D-Q2692-L
A65: TS2D-B57416T | B65: TS2L3-B57416T | C65: Broadcom 57416 Dual Port 10Gb, Base-T, PCIe Adapter, Full Height A20 | D65: 389 | E65: TS2D-B57416T
A66: TS2D-B57416T-L | B66: TS2L3-B57416T-L | C66: Broadcom 57416 Dual Port 10Gb, Base-T, PCIe Adapter, Low Profile A20 | D66: 389 | E66: TS2D-B57416T-L
A67: TS2D-5XDAC100M2 | B67: TS2L3-5XDAC100M2 | C67: 5 x Dell Networking Cable, 100GbE QSFP28 to QSFP28,Passive Copper Direct Attach Cable,2 Meter A20 | D67: 940 | E67: TS2D-5XDAC100M2
A68: TS2D-5XDAC100M3 | B68: TS2L3-5XDAC100M3 | C68: 5 x Dell Networking Cable,100GbE QSFP28 to QSFP28, Passive Copper Direct Attach Cable,3 Meter A20 | D68: 1125 | E68: TS2D-5XDAC100M3
A69: TS2D-5XDAC10M3 | B69: TS2L3-5XDAC10M3 | C69: 5 x Dell Networking, Cable, SFP+ to SFP+, 10GbE, Copper Twinax Direct Attach Cable, 3 Meter A20 | D69: 125 | E69: TS2D-5XDAC10M3
A70: TS2D-SSDW800 | B70: TS2L3-SSDW800 | C70: 800GB SSD SAS Write Intensive 12Gb 512n 2.5in Hot-plug Drive, 10 DWPD A20 | D70: 1723 | E70: TS2D-SSDW800
A71: TS2D-SSDW400 | B71: TS2L3-SSDW400 | C71: 400GB SSD SAS Write Intensive 12Gbps 512n 2.5in Hot-plug Drive, 10 DWPD A20 | D71: 1155 | E71: TS2D-SSDW400
A72: TS2D-10K2400 | B72: TS2L3-10K2400 | C72: 2.4TB 10K RPM SAS 12Gbps 512e 2.5in Hot-plug Hard Drive NO VMWARE A20 | D72: 389 | E72: TS2D-10K2400
A73: TS2D-WINDC | B73: TS2L3-WINDC | C73: Windows Server 2019 Datacenter Ed 16CORE A20 | D73: 3345 | E73: TS2D-WINDC
A74: TS2D-WINDC2 | B74: TS2L3-WINDC2 | C74: Windows Server 2019 Datacenter Ed Add License 16CORE A20 | D74: 3343 | E74: TS2D-WINDC2
A75: TS2D-WINDC2COR | B75: TS2L3-WINDC2COR | C75: Windows Server 2019 Datacenter Ed Add License 2CORE A20 | D75: 437 | E75: TS2D-WINDC2COR
A76: TS2D-IXXV710M3 | B76: TS2L3-IXXV710M3 | C76: Intel XXV710 Dual Port 25GbE SFP28 PCIe Adapter, Full Height, with 2x SFP28 to SFP28, 25GbE, Passive Copper Twinax DAC, 3 Meter A20 | D76: 761 | E76: TS2D-IXXV710M3
A77: TS2D-IXXV710TRV | B77: TS2L3-IXXV710TRV | C77: Intel XXV710 Dual Port 25GbE SFP28 PCIe Adapter, Full Height, with 2 x Transceiver, SFP28, 25GbE, SR, MMF Duplex, LC A20 | D77: 1380 | E77: TS2D-IXXV710TRV
A78: TS2D-VMWKIT6P3Y | B78: TS2L3-VMWKIT6P3Y | C78: VMware vSphere Essentials Plus Kit OEM 6 Processor 3yr A20 | D78: 5230 | E78: TS2D-VMWKIT6P3Y
A79: TS2D-VMWSTD1P3Y | B79: TS2L3-VMWSTD1P3Y | C79: VMware vSphere Standard OEM 1 Processor 3yr Software A20 | D79: 1743 | E79: TS2D-VMWSTD1P3Y
A80: TS2D-VMWVCSTD3Y | B80: TS2L3-VMWVCSTD3Y | C80: VMw vCenter Server Standard for vSphere OEM 3yr Software A20 | D80: 8909 | E80: TS2D-VMWVCSTD3Y
A81: TS2D-VMWVCSTD5Y | B81: TS2L3-VMWVCSTD5Y | C81: VMw vCenter Server Standard for vSphere OEM 5yr Software A20 | D81: 10549 | E81: TS2D-VMWVCSTD5Y
A82: TS2D-VMWEP1P3Y | B82: TS2L3-VMWEP1P3Y | C82: VMware vSphere Enterprise Plus OEM 1 Processor 3yr Software A20 | D82: 4905 | E82: TS2D-VMWEP1P3Y
A83: TS2D-VMWEP1P5Y | B83: TS2L3-VMWEP1P5Y | C83: VMware vSphere Enterprise Plus OEM 1 Processor 5yr Software A20 | D83: 6367 | E83: TS2D-VMWEP1P5Y
A84: TS2D-VSANSTD3Y | B84: TS2L3-VSANSTD3Y | C84: VMware vSAN Standard OEM 1 Processor 3yr Software A20 | D84: 3177 | E84: TS2D-VSANSTD3Y
A85: TS2D-VSANSTD5Y | B85: TS2L3-VSANSTD5Y | C85: VMware vSAN Standard OEM 1 Processor 5yr Software A20 | D85: 4107 | E85: TS2D-VSANSTD5Y
A86: TS2D-VSANADV3Y | B86: TS2L3-VSANADV3Y | C86: VMware vSAN Advanced OEM 1 Processor 3yr Software A20 | D86: 5010 | E86: TS2D-VSANADV3Y
A87: TS2D-VSANADV5Y | B87: TS2L3-VSANADV5Y | C87: VMware vSAN Advanced OEM 1 Processor 5yr Software A20 | D87: 6475 | E87: TS2D-VSANADV5Y
A88: TS2D-GPUM10 | B88: TS2L3-GPUM10 | C88: DELL NVIDIA Tesla M10 GPU A20 | D88: 2426 | E88: TS2D-GPUM10
A89: TS2D-2000W | B89: TS2L3-2000W | C89: Dual, Hot-plug Power Supply (1+1), 2000W with power cord C19/20 A20 | D89: 595 | E89: TS2D-2000W
A90: TS2D-GPUV10016 | B90: TS2L3-GPUV10016 | C90: DELL NVIDIA Tesla V100 16G Passive GPU DW A20 | D90: 8727 | E90: TS2D-GPUV10016
A91: TS2D-GPUV10032 | B91: TS2L3-GPUV10032 | C91: DELL NVIDIA Tesla V100 32G Passive GPU DW A20 | D91: 9556 | E91: TS2D-GPUV10032
A92: TS2D-GPUKITSW | B92: TS2L3-GPUKITSW | C92: GPU installation kit for SW GPU, R7425 A20 | D92: 287 | E92: TS2D-GPUKITSW
A93: TS2D-GPUKITDW | B93: TS2L3-GPUKITDW | C93: GPU installation kit for DW GPU, R7425 A20 | D93: 254 | E93: TS2D-GPUKITDW
A94: TS2D-GPUT4 | B94: TS2L3-GPUT4 | C94: DELL NVIDIA Tesla T4 16G GPU SW A20 | D94: 2227 | E94: TS2D-GPUT4
A95: TS2D-Q41164T | B95: TS2L3-Q41164T | C95: QLogic FastLinQ 41164 Quad Port 10G Base-T Adapter, Full Height A20 | D95: 687 | E95: TS2D-Q41164T
A96: TS2D-Q41262 | B96: TS2L3-Q41262 | C96: QLogic FastLinQ 41262 Dual Port 25 Gb SFP28 Adapter, Full Height A20 | D96: 411 | E96: TS2D-Q41262
A97: TS2D-Q41262-L | B97: TS2L3-Q41262-L | C97: QLogic FastLinQ 41262 Dual Port 25 Gb SFP28 Adapter, Low Profile A20 | D97: 411 | E97: TS2D-Q41262-L
A98: TS2D-SSDW1600 | B98: TS2L3-SSDW1600 | C98: 1600GB SSD SAS Write Intensive 12Gb 512n 2.5in Hot-plug Drive, 10 DWPD A20 | D98: 1475 | E98: TS2D-SSDW1600
A99: TS2D-Q41262OT-L | B99: TS2L3-Q41262OT-L | C99: QLogic FastLinQ 41262 Dual Port 25 Gb SFP28 Adapter, Low Profile with 2 x Transceiver, SFP28, 25GbE, SR, MMF Duplex, LC A20 | D99: 1075 | E99: TS2D-Q41262OT-L
A100: TS2D-Q41262OT | B100: TS2L3-Q41262OT | C100: QLogic FastLinQ 41262 Dual Port 25 Gb SFP28 Adapter, Full Height with 2 x Transceiver, SFP28, 25GbE, SR, MMF Duplex, LC A20 | D100: 1075 | E100: TS2D-Q41262OT
A101: TS2D-MCX516AM3-L | B101: TS2L3-MCX516AM3-L | C101: Mellanox ConnectX-5 EX Dual Port 100GbE QSFP28 PCIe Adapter, Low Profile, with 2 x 100GbE QSFP28 to QSFP28, Passive Copper DAC,3 Meter A20 | D101: 1577 | E101: TS2D-MCX516AM3-L
A102: TS2D-MCX4121A3-L | B102: TS2L3-MCX4121A3-L | C102: Mellanox ConnectX-4 Lx Dual Port 25GbE SFP28 Network Adapter, Low Profile with 2 x 100GbE QSFP28 to QSFP28, Passive Copper DAC,3 Meter A20 | D102: 748 | E102: TS2D-MCX4121A3-L
A103: TS2D-SSDM480 | B103: TS2L3-SSDM480 | C103: SSD 480GB SAS MU 12Gbps 2.5in Hot-Plug A20 | D103: 399 | E103: TS2D-SSDM480
A104: TS2D-SSDM960 | B104: TS2L3-SSDM960 | C104: SSD 960GB SAS Mixed Use 12Gbps 2.5in Hot-plug Drive A20 | D104: 598 | E104: TS2D-SSDM960
A105: TS2D-H840 | B105: TS2L3-H840 | C105: PERC H840 RAID Adapter for External MD14XX Only, 8GB NV Cache, Full Height A20 | D105: 346 | E105: TS2D-H840
A106: TS2D-MCX5SP-L | B106: TS2L3-MCX5SP-L | C106: Mellanox ConnectX-5 Single Port EDR VPI QSFP28 100Gb PCIe Adapter, Low Profile with QSFP passive copper cable, LSZH, 2m A20 | D106: 718 | E106: TS2D-MCX5SP-L
A107: TS2D-MCX5SP | B107: TS2L3-MCX5SP | C107: Mellanox ConnectX-5 Single Port EDR VPI QSFP28 100Gb PCIe Adapter, Full Height with QSFP passive copper cable, LSZH, 2m A20 | D107: 718 | E107: TS2D-MCX5SP
A108: TS2D-UPGNTWEAV | B108: TS2L3-UPGNTWEAV | C108: Dell Networking, Upgrade 25GbE SFP28 - 100GbE QSFP28 A20 | D108: 2136 | E108: TS2D-UPGNTWEAV
A109: TS2D-10GBESR850 | B109: TS2L3-10GBESR850 | C109: Dell Networking, Transceiver, SFP+, 10GbE, SR, 850nm A20 | D109: 1825.1 | E109: TS2D-10GBESR850
A110: TS2D-NVMEKIT | B110: TS2L3-NVMEKIT | C110: Upgrade Chassis for NVMe Drivers | D110: 433 | E110: TS2D-NVMEKIT
A111: TS2D-NVME1600 | B111: TS2L3-NVME1600 | C111: Dell 1.6TB, NVMe, Mixed Use Express Flash, 2.5 SFF | D111: 644 | E111: TS2D-NVME1600
A112: TS2D-NVME3200 | B112: TS2L3-NVME3200 | C112: Dell 3.2TB, NVMe, Mixed Use Express Flash, 2.5 SFF | D112: 1218 | E112: TS2D-NVME3200
A113: TS2D-NVME6400 | B113: TS2L3-NVME6400 | C113: Dell 6.4TB, NVMe, Mixed Use Express Flash, 2.5 SFF | D113: 2469 | E113: TS2D-NVME6400
A114: TS2D-NVME960 | B114: TS2L3-NVME960 | C114: Dell 960GB NVMe, Data Center, Read Intensive SFF | D114: 241 | E114: TS2D-NVME960
A115: TS2D-NVME1000 | B115: TS2L3-NVME1000 | C115: Dell 1TB, NVMe, Read Intensive Express Flash, 2.5 SFF | D115: 326 | E115: TS2D-NVME1000
A116: TS2D-NVME4000 | B116: TS2L3-NVME4000 | C116: Dell 4TB, NVMe, Read Intensive Express Flash, 2.5 SFF | D116: 1152 | E116: TS2D-NVME4000
A117: TS2D-NVME3840 | B117: TS2L3-NVME3840 | C117: Dell 3.84TB NVMe, Data Center, Read Intensive SFF | D117: 826 | E117: TS2D-NVME3840
A118: TS2D-NVME375 | B118: TS2L3-NVME375 | C118: Dell 375GB, NVMe, Ultra Performance Express Flash, 2.5 SFF | D118: 1379 | E118: TS2D-NVME375
A119: TS2-RACKPDU32 | B119: TS2L3-RACKPDU32 | C119: Armadio Rack 42U profonità 120cm con coppia di PDU 32A monofase | D119: 2200 | E119: TS2-RACKPDU32
A120: TS2-PDU32A | B120: TS2L3-PDU32A | C120: Coppia di PDU Vertical 1Ph-32A - 0U | D120: 436 | E120: TS2-PDU32A
F121: 0
C122: Intel Xeon Gold 6134 3.2G, 8C/16T, 10.4GT/s, 24.75M Cache, Turbo, HT (130W) DDR4-2666,CK | D122: 2736 | F122: 0
C123: Intel Xeon Gold 6150 2.7G, 18C/36T, 10.4GT/s, 25M Cache, Turbo, HT (165W) DDR4-2666,CK | D123: 4147 | F123: 0
A124: TS2L3-AMD7501-1 | B124: =LEN(A124) -> 15 | C124: AMD EPYC 7501 2.0GHz/2.6GHz, 32C/64T, 64M Cache (155W/170W) DDR4-2400/2666, CusKit | D124: 4117 | E124: TS2L3-AMD7501-1 | F124: 2
C125: Standard Heatsink, 180W CPU, R7425 | F125: 0
A126: TS2L3-AMD7551-1 | B126: 15 | C126: AMD EPYC 7551 2.00GHz/2.55GHz, 32C/64T, 64M Cache (180W) DDR4-2666 | D126: 3569 | E126: TS2L3-AMD7551-1 | F126: 2
C127: Standard Heatsink, 180W CPU, R7425 | F127: 0
A128: TS2L3-AMD7601-1 | B128: 15 | C128: AMD EPYC 7601 2.20GHz/2.7GHz, 32C/64T, 64M Cache (180W) DDR4-2666 | D128: 4726 | E128: TS2L3-AMD7601-1 | F128: =LEN(B128) -> 2
C129: Standard Heatsink, 180W CPU, R7425 | F129: 0
A130: TS2L3-AMD7501-2 | B130: =LEN(A130) -> 15 | C130: AMD EPYC 7501 2.0GHz/2.6GHz, 32C/64T, 64M Cache (155W/170W) DDR4-2400/2666, CusKit | D130: 4117 | E130: TS2L3-AMD7501-2 | F130: 2
C131: Riser Card 2A,R7425 | F131: 0
C132: Riser Card 3A,R7425 | F132: =LEN(B132) -> 0
C133: Standard Heatsink, 180W CPU, R7425 | F133: 0
A134: TS2L3-AMD7551-2 | B134: 15 | C134: AMD EPYC 7551 2.00GHz/2.55GHz, 32C/64T, 64M Cache (180W) DDR4-2666 | D134: 3569 | E134: TS2L3-AMD7551-2 | F134: =LEN(B134) -> 2
C135: Riser Card 2A,R7425 | F135: 0
C136: Riser Card 3A,R7425
C137: Standard Heatsink, 180W CPU, R7425
A138: TS2L3-AMD7601-2 | B138: 15 | C138: AMD EPYC 7601 2.20GHz/2.7GHz, 32C/64T, 64M Cache (180W) DDR4-2666 | D138: 4726 | E138: TS2L3-AMD7601-2
C139: Riser Card 2A,R7425
C140: Riser Card 3A,R7425
C141: Standard Heatsink, 180W CPU, R7425
C142: High Performance HS for grater 150W,Customer Kit | D142: 18
C143: 600GB 10K RPM SAS 12Gbps 512n 2.5in Hot-plug Hard Drive, CK | D143: 121
C144: 1.2TB 10K RPM SAS 12Gbps 512n 2.5in Hot-plug Hard Drive, CK | D144: 149
C145: 8TB 7.2K RPM NLSAS 12Gbps 512e 3.5in Hot-plug Hard Drive, CK | D145: 254
C146: 4TB 7.2K RPM NLSAS 12Gbps 512n 3.5in Hot-plug Hard Drive, CK | D146: 172
C147: 1.92TB SSD SAS Mix Use 12Gbps 512n 2.5in Hot-plug Drive, PX05SV,3 DWPD,10512 TBW,CK | D147: 1111
A148: TS2L3-SSDMU800 | B148: 14 | C148: 800GB SSD SAS Write Intensive 12Gb 512n 2.5in Hot-plug Drive, PX05SM,10 DWPD,14600 TBWCK | D148: 1070 | E148: TS2L3-SSDMU800
A149: TS2L3-SSDMU960 | B149: 14 | C149: 960GB SSD SAS Mix Use 12Gbps 512n 2.5in Hot-plug Drive, PX05SV,3 DWPD,5256 TBW,CK | D149: 645 | E149: TS2L3-SSDMU960
A150: TS2L3-SSDMU480 | B150: 14 | C150: 480GB SSD SAS Mix Use 12Gbps 512n 2.5in Hot-plug Drive, PX05SV,3 DWPD,2628 TBW,CK | D150: 529 | E150: TS2L3-SSDMU480
A151: TS2L3-SSDMU1920 | B151: 15 | C151: 1.92TB SSD SAS 12Gbps 512 2.5in Cabled PM5 MU, CK | D151: 1110 | E151: TS2L3-SSDMU1920
A152: TS2L3-SSDMU1920 | B152: 15 | C152: 1.92TB SSD SAS 12Gbps 512 2.5in Hot-Plug PM5 MU, 1 DWPD, 10512 TBW, CK | D152: 1107 | E152: TS2L3-SSDMU1920
A153: TS2L3-SSDMU1920 | B153: 15 | C153: 1.92TB SSD SAS 12Gbps 512e 2.5in Hot-Plug PM5 MU, CK | D153: 1106 | E153: TS2L3-SSDMU1920
A154: TS2L3-SATAM1920 | B154: 15 | C154: 1.92TB SSD SATA Mix used 6Gbps 512e 2.5in Hot Plug Drive,S4610,, CK | D154: 1012 | E154: TS2L3-SATAM1920
A155: TS2L3-SATAR1920 | B155: 15 | C155: 960GB SSD SATA Read Intensive 6Gbps 512e 2.5in Hot Plug S4510 Drive, 1 DWPD,1752 TBW, CK | D155: 436 | E155: TS2L3-SATAR1920
A156: TS2L3-SSDWI480 | B156: 14 | C156: 480GB SSD SAS 12Gbps 512 2.5in Hot-Plug PM5 MU, 3 DWPD, 2628 TBW, CK | D156: 528 | E156: TS2L3-SSDWI480
A157: TS2L3-SSDWI400 | B157: 14 | C157: 400GB SSD SAS Write Intensive 12Gbps 512n 2.5in Hot-plug Drive, PX05SM,10 DWPD,7300 TBW, CK | D157: 632 | E157: TS2L3-SSDWI400
A158: TS2L3-7K2000 | B158: 12 | C158: 2TB 7.2K RPM NLSAS 12Gbps 512n 2.5in Hot-plug Hard Drive, CK | D158: 261 | E158: TS2L3-7K2000
A159: TS2L3-10K2400 | B159: 13 | C159: CUS,HD,2.4T,102N,IS12,2.5,4SSB | D159: 243 | E159: TS2L3-10K2400
A160: TS2L3-10K2401 | B160: 13 | C160: 2.4TB 10K RPM SAS 12Gbps 512e 2.5in Hot-plug Hard Drive,CusKit | D160: 241 | E160: TS2L3-10K2401
A161: TS2L3-NVME3T | B161: 12 | C161: Dell 3.2TB, NVMe, Mixed Use Express Flash, 2.5 SFF Drive, U.2, PM1725a with Carrier, CK | D161: 2662 | E161: TS2L3-NVME3T
B162: 0 | C162: Dell 3.2TB, NVMe, Mixed Use Express Flash, 2.5 SFF Drive, U.2, PM1725a with Carrier, Tower,CK | D162: 2667
B163: 0 | C163: Tower to Rack,Conversion Kit,DELLEMC,T640,Customer Kit | D163: 42
B164: 0 | C164: Ready Rails 3U Sliding Rails,CusKit | D164: 51
B165: 0 | C165: 3U Cable Management Arm, CusKit | D165: 43
B166: 0 | C166: BZL,FRT,RACK,DELLEMC,T640,Customer Kit | D166: 32
A167: TS2L3-LCDBEZEL | B167: 14 | C167: CUS,BZL,LCD,2U,14G | D167: 43 | E167: TS2L3-LCDBEZEL
A168: TS2L3-STDBEZEL | B168: 14 | C168: CUS,BZL,STD,2U,14G | D168: 19 | E168: TS2L3-STDBEZEL
B169: 0 | C169: BOSS controller card, CK | D169: 45
A170: TS2L3-BOSS240 | B170: =LEN(A170) -> 13 | C170: BOSS controller card, full height, Customer Kit | D170: 55 | E170: TS2L3-BOSS240
B171: =LEN(A209) -> 11 | C171: 240G M.2 Drive, CK | D171: 155
A172: TS2L3-BOSS480 | B172: =LEN(A172) -> 13 | C172: BOSS controller card, full height, Customer Kit | D172: 55 | E172: TS2L3-BOSS480
B173: =LEN(A211) -> 13 | C173: 480GB, SATA, M.2 solid state drive, CUS | D173: 288
B174: =LEN(A174) -> 0 | C174: PERC HBA330 Adapter, 12Gbps Adapter, Low Profile,CK | D174: 87
B175: 0 | C175: CUS,CRD,CTL,H740P,ADPT | D175: 777
B176: 0 | C176: PERC H730P Controller Card, C6420, Customer Install | D176: 510
B177: 0 | C177: PERC H730P RAID Controller Adapter,CK | D177: 221
B178: 0 | C178: PERC H730P Integrated RAID Controller,2GB NV Cache,CusKit | D178: 252
A179: TS2L3-ISDM32 | B179: 12 | C179: ISDM and Combo Card Reader, CK | D179: 24 | E179: TS2L3-ISDM32
A180: TS2L3-ISDM64 | B180: 12 | C180: 32GB microSDHC/SDXC Card, CusKit | D180: 45 | E180: TS2L3-ISDM64
A181: TS2L3-ISDM64 | B181: 12 | C181: ISDM and Combo Card Reader, CK | D181: 24 | E181: TS2L3-ISDM64
B182: 0 | C182: 64GB microSDHC/SDXC Card, CusKit | D182: 128
B183: 0 | C183: NVIDIA Tesla M10 GPU CusKit | D183: 2426
B184: 0 | C184: NVIDIA Tesla P100 16GB Passive GPU, Customer Install | D184: 5974
B185: 0 | C185: NVIDIA Tesla V100 16G Passive GPU, Customer Install | D185: 8727
B186: 0 | C186: NVIDIA M60 16G GPU, Passive, Requires GRID 2.0 SW for VDI Function, Customer Install | D186: 4716
B187: 0 | C187: NVIDIA Tesla P40 24GB GPU, Passive, Customer Install | D187: 5903
B188: 0 | C188: NVIDIA Tesla V100 32G Passive GPU Customer Install | D188: 9556
B189: 0 | C189: GPU installation kit for SW GPU, R7425 | D189: 288
B190: 0 | C190: GPU installation kit for DW GPU, R7425 | D190: 256
B191: 0 | C191: Riser Config 1, 2 x 16 LP, CusKit | D191: 64
B192: 0 | C192: Riser 1A, Customer Install | D192: 27
B193: 0 | C193: PCIe Riser for C6420, Customer Install | D193: 16
B194: 0 | C194: Mellanox ConnectX-4 Lx Dual Port 25GbE SFP28 Network Adapter, Low Profile, Customer Install | D194: 299
A195: TS2L3-MCX416A-L | B195: 15 | C195: Mellanox ConnectX-5 EX Dual Port 100GbE QSFP28 PCIe Adapter, Low Profile, Customer Install | D195: 1128 | E195: TS2L3-MCX416A-L
A196: TS2L3-MCX416A | B196: 13 | C196: Mellanox ConnectX-5 EX Dual Port 100GbE QSFP28 PCIe Adapter, Full Height, Customer Install | D196: 1128 | E196: TS2L3-MCX416A
A197: TS2L3-PSU1600W | B197: 14 | C197: Mellanox ConnectX-4 Dual Port 40/100GbE, QSFP28, PCIe Adapter, Full Height, Customer Install | D197: 882 | E197: TS2L3-PSU1600W
A198: TS2L3-PSU2000W | B198: 14 | C198: Mellanox ConnectX-4 Dual Port 40/100GbE, QSFP28, PCIe Adapter, Low Profile, Customer Install | D198: 1062 | E198: TS2L3-PSU2000W
A199: TS2L3-GPUKITSW | B199: 14 | C199: Dell Networking Cable 100GbE, QSFP28 to QSFP28, Passive Copper Direct Attach Cable, 1 Meter,Customer Kit | D199: 176 | E199: TS2L3-GPUKITSW
A200: TS2L3-GPUKITDW | B200: 14 | C200: Dell Networking Cable, 100GbE QSFP28 to QSFP28,Passive Copper Direct Attach Cable,2 Meter,Customer Kit | D200: 188 | E200: TS2L3-GPUKITDW
A201: TS2L3-MCX4121AL | B201: 15 | C201: Dell Networking Cable,100GbE QSFP28 to QSFP28, Passive Copper Direct Attach Cable,3 Meter,Customer Kit | D201: 225 | E201: TS2L3-MCX4121AL
... 26 more rows
